ORGANISATION NAME,EFFECTIVE DATE,DIRECTORATE,SUPPLIER NAME,DATE PAID,AMOUNT (�),PURPOSE,TRANSACTION NO.
ROCHDALE BOROUGH COUNCIL,06/11/2017,NEIGHBOURHOODS AND ENVIRONMENT,WARRINGTON TRUCK PARTS LTD,06/11/2017,967.59,VEHICLE MAINTENANCE,V001114150
ROCHDALE BOROUGH COUNCIL,17/11/2017,PHYSICAL DIS & OLDER PEOPLE,JENKINSON OFFICE SUPPLIES,17/11/2017,"3,027.02",PURCHASE OF FURNITURE AND EQUIPMENT,V001124005
ROCHDALE BOROUGH COUNCIL,20/11/2017,NEIGHBOURHOODS AND ENVIRONMENT,INTEGRATED DESIGN LTD,20/11/2017,"2,269.67",PROPERTY - WORKS ELEMENT,V001155224
ROCHDALE BOROUGH COUNCIL,29/11/2017,PUBLIC HEALTH,BOLTON NHS FOUNDATION TRUST,29/11/2017,736.00,PH OTHER CONTRACTS,V001161405
ROCHDALE BOROUGH COUNCIL,03/11/2017,ECONOMY DIRECTORATE,CRAGG MANAGEMENT SERVICES LTD,03/11/2017,"9,800.00",CONDITION SURVEYS,V001164271
ROCHDALE BOROUGH COUNCIL,01/11/2017,NEIGHBOURHOODS AND ENVIRONMENT,WLG LTD,01/11/2017,"2,467.84",CATERING - GENERAL,V001166062
ROCHDALE BOROUGH COUNCIL,01/11/2017,NEIGHBOURHOODS AND ENVIRONMENT,WLG LTD,01/11/2017,"1,262.39",CATERING - GENERAL,V001166066
ROCHDALE BOROUGH COUNCIL,01/11/2017,NEIGHBOURHOODS AND ENVIRONMENT,WLG LTD,01/11/2017,"2,059.42",CATERING - GENERAL,V001166067
ROCHDALE BOROUGH COUNCIL,13/11/2017,PHYSICAL DIS & OLDER PEOPLE,THE PENNINE ACUTE HOSPITALS NHS TRUST,13/11/2017,"4,966.55",AGENCY STAFF,V001166695
ROCHDALE BOROUGH COUNCIL,17/11/2017,NEIGHBOURHOODS AND ENVIRONMENT,DENNIS EAGLE LTD,17/11/2017,"151,148.99",PURCHASE OF VEHICLES,V001169234
ROCHDALE BOROUGH COUNCIL,17/11/2017,NEIGHBOURHOODS AND ENVIRONMENT,DENNIS EAGLE LTD,17/11/2017,505.01,EQUIPMENT - GENERAL,V001169234
ROCHDALE BOROUGH COUNCIL,30/11/2017,NEIGHBOURHOODS AND ENVIRONMENT,STAR TRAQ,30/11/2017,"2,150.00",EQUIPMENT - GENERAL,V001169836
ROCHDALE BOROUGH COUNCIL,01/11/2017,ECONOMY DIRECTORATE,BLOOM PROCUREMENT SERVICES LTD,01/11/2017,"69,133.00",CONSULTANT FEES,V001173029
ROCHDALE BOROUGH COUNCIL,03/11/2017,EARLY HELP AND SCHOOLS,NEWMARK CARE LTD,03/11/2017,528.00,HOME CARE - CHILDRENS SERVICES,V001173135
ROCHDALE BOROUGH COUNCIL,01/11/2017,NEIGHBOURHOODS AND ENVIRONMENT,CORPS,01/11/2017,839.20,SECURITY,V001173291
ROCHDALE BOROUGH COUNCIL,10/11/2017,RESOURCES,MANCHESTER CITY COUNCIL,10/11/2017,"372,967.59",PROFESSIONAL FEES,V001174818
ROCHDALE BOROUGH COUNCIL,10/11/2017,RESOURCES,MANCHESTER CITY COUNCIL,10/11/2017,"1,264.91",WAGES OVERTIME,V001174818
ROCHDALE BOROUGH COUNCIL,03/11/2017,EARLY HELP AND SCHOOLS,WIGAN BOROUGH COUNCIL,03/11/2017,540.48,OTHER EST - SEN PROVISION,V001175783
ROCHDALE BOROUGH COUNCIL,09/11/2017,PHYSICAL DIS & OLDER PEOPLE,ROSS CARE,09/11/2017,"2,500.00",STREET LIGHTING,V001176338
ROCHDALE BOROUGH COUNCIL,01/11/2017,NEIGHBOURHOODS AND ENVIRONMENT,ALLIANCE DISPOSABLES LIMITED,01/11/2017,"3,189.42",EQUIPMENT - GENERAL,V001176672
ROCHDALE BOROUGH COUNCIL,06/11/2017,PUBLIC HEALTH,PENNINE CARE NHS,06/11/2017,"327,779.00",PH PENNINE CARE CONTRACT,V001177754
ROCHDALE BOROUGH COUNCIL,29/11/2017,NEIGHBOURHOODS AND ENVIRONMENT,BALMERS GM LTD,29/11/2017,636.00,EQUIPMENT - GENERAL,V001177786
ROCHDALE BOROUGH COUNCIL,02/11/2017,EARLY HELP AND SCHOOLS,PENNINE CARE NHS,02/11/2017,"4,376.83",HEALTH AUTH - SERVICE LEVEL AGREEMENT,V001177840
ROCHDALE BOROUGH COUNCIL,02/11/2017,EARLY HELP AND SCHOOLS,PENNINE CARE NHS,02/11/2017,720.75,TEACHERS - BASIC,V001177846
ROCHDALE BOROUGH COUNCIL,02/11/2017,EARLY HELP AND SCHOOLS,PENNINE CARE NHS,02/11/2017,"2,978.00",TEACHERS - BASIC,V001177854
ROCHDALE BOROUGH COUNCIL,01/11/2017,EARLY HELP AND SCHOOLS,DEEPLISH ACADEMY,01/11/2017,"4,268.00",RENTS,V001177855
ROCHDALE BOROUGH COUNCIL,03/11/2017,BETTER CARE FUND POOLED BUDGET,THE STROKE ASSOCIATION,03/11/2017,"2,258.08",VOLUNTARY ASSOCIATIONS,V001177856
ROCHDALE BOROUGH COUNCIL,01/11/2017,PROPERTY AND HIGHWAYS,TRANSPORT FOR GREATER MANCHESTER,01/11/2017,"1,000.00",SUPPLIES,V001177951
ROCHDALE BOROUGH COUNCIL,01/11/2017,EARLY HELP AND SCHOOLS,DEEPLISH ACADEMY,01/11/2017,582.75,REPAIRS & ALTS OF BUILDINGS,V001177987
ROCHDALE BOROUGH COUNCIL,07/11/2017,EARLY HELP AND SCHOOLS,OLDHAM COUNCIL,07/11/2017,"9,718.00",OTHER EST - SEN PROVISION,V001177990
ROCHDALE BOROUGH COUNCIL,07/11/2017,EARLY HELP AND SCHOOLS,OLDHAM COUNCIL,07/11/2017,"20,920.00",OTHER EST - SEN PROVISION,V001177991
ROCHDALE BOROUGH COUNCIL,06/11/2017,PUBLIC HEALTH,UNIVERSITY OF BIRMINGHAM,06/11/2017,650.00,TRAINING-NON QUALIFICATION,V001178121
ROCHDALE BOROUGH COUNCIL,07/11/2017,EARLY HELP AND SCHOOLS,HOPWOOD HALL COLLEGE,07/11/2017,"1,666.00",TRAINING-QUALIFICATION,V001178127
ROCHDALE BOROUGH COUNCIL,07/11/2017,EARLY HELP AND SCHOOLS,HOPWOOD HALL COLLEGE,07/11/2017,"3,330.00",TRAINING-QUALIFICATION,V001178128
ROCHDALE BOROUGH COUNCIL,07/11/2017,EARLY HELP AND SCHOOLS,HOPWOOD HALL COLLEGE,07/11/2017,"1,666.00",TRAINING-QUALIFICATION,V001178130
ROCHDALE BOROUGH COUNCIL,07/11/2017,EARLY HELP AND SCHOOLS,HOPWOOD HALL COLLEGE,07/11/2017,"1,666.00",TRAINING-QUALIFICATION,V001178141
ROCHDALE BOROUGH COUNCIL,10/11/2017,PROPERTY AND HIGHWAYS,DDH FABRICATIONS LTD,10/11/2017,720.00,TRANSACTIONS-EXPENDITURE,V001178295
ROCHDALE BOROUGH COUNCIL,03/11/2017,EARLY HELP AND SCHOOLS,REDACTED - PERSONAL DATA,03/11/2017,"12,630.63",OTHER LA`S - SEN PROVISION,V001178505
ROCHDALE BOROUGH COUNCIL,08/11/2017,RESOURCES,CAPITA BUSINESS SERVICES LIMITED,08/11/2017,"11,500.00",SOFTWARE,V001178506
ROCHDALE BOROUGH COUNCIL,03/11/2017,RESOURCES,ROYAL MAIL GROUP PLC,03/11/2017,"1,924.78",POSTAGE,V001178510
ROCHDALE BOROUGH COUNCIL,03/11/2017,NEIGHBOURHOODS AND ENVIRONMENT,VODAFONE LTD,03/11/2017,"2,348.69",TELEPHONE EXPENDITURE,V001178516
ROCHDALE BOROUGH COUNCIL,01/11/2017,NEIGHBOURHOODS AND ENVIRONMENT,CORPS,01/11/2017,"7,825.54",SECURITY,V001178533
ROCHDALE BOROUGH COUNCIL,07/11/2017,CHILDREN�S SOCIAL CARE,HORIZON CARE AND EDUCATION,07/11/2017,717.87,EBD (EMOT & BEHAV DIFF) PLACEMENTS,V001178542
ROCHDALE BOROUGH COUNCIL,29/11/2017,NEIGHBOURHOODS AND ENVIRONMENT,BALMERS GM LTD,29/11/2017,560.43,VEHICLE MAINTENANCE,V001178711
ROCHDALE BOROUGH COUNCIL,01/11/2017,EARLY HELP AND SCHOOLS,NISAI LEARNING,01/11/2017,"2,750.00",OTHER EST - SEN PROVISION,V001178776
ROCHDALE BOROUGH COUNCIL,03/11/2017,RESOURCES,ROSSENDALES,03/11/2017,708.83,INPUT VAT -  ADJUSTMENTS,V001180143
ROCHDALE BOROUGH COUNCIL,06/11/2017,CHILDREN�S SOCIAL CARE,OFSTED,06/11/2017,"2,557.00",FEES / COMMISSION,V001180326
ROCHDALE BOROUGH COUNCIL,14/11/2017,NEIGHBOURHOODS AND ENVIRONMENT,J A CRYER EXCAVATION & GROUNDWORK CONTRACTORS LTD,14/11/2017,665.00,CONTRACTS,V001180430
ROCHDALE BOROUGH COUNCIL,03/11/2017,PROPERTY AND HIGHWAYS,NPOWER LIMITED,03/11/2017,"89,347.13",ENERGY COSTS,V001180450
ROCHDALE BOROUGH COUNCIL,08/11/2017,RESOURCES,JONATHAN AUBURN,08/11/2017,500.00,PROFESSIONAL FEES,V001180828
ROCHDALE BOROUGH COUNCIL,03/11/2017,PUBLIC HEALTH,ANIMAL WARDENS LIMITED,03/11/2017,602.00,CONTRACTED SERVICES,V001180863
ROCHDALE BOROUGH COUNCIL,20/11/2017,ECONOMY DIRECTORATE,GROUNDWORK LANDSCAPES LIMITED,20/11/2017,990.00,REPAIRS & ALTS OF BUILDINGS,V001180866
ROCHDALE BOROUGH COUNCIL,07/11/2017,ECONOMY DIRECTORATE,GROUNDWORK LANDSCAPES LIMITED,07/11/2017,745.80,MINOR BUILDING WORKS,V001180888
ROCHDALE BOROUGH COUNCIL,13/11/2017,RESOURCES,ASTUTIS LTD,13/11/2017,"1,650.00",TRAINING,V001181020
ROCHDALE BOROUGH COUNCIL,01/11/2017,NEIGHBOURHOODS AND ENVIRONMENT,WICKSTEED LEISURE LIMITED,01/11/2017,520.80,EQUIPMENT - GENERAL,V001181604
ROCHDALE BOROUGH COUNCIL,03/11/2017,CHILDREN�S SOCIAL CARE,DEPAUL UK,03/11/2017,"24,685.71",YOUNG PEOPLES RENTS,V001181608
ROCHDALE BOROUGH COUNCIL,08/11/2017,RESOURCES,REDACTED - PERSONAL DATA,08/11/2017,"5,400.00",PROFESSIONAL FEES,V001181620
ROCHDALE BOROUGH COUNCIL,08/11/2017,RESOURCES,REDACTED - PERSONAL DATA,08/11/2017,"1,000.00",PROFESSIONAL FEES,V001181621
ROCHDALE BOROUGH COUNCIL,08/11/2017,RESOURCES,REDACTED - PERSONAL DATA,08/11/2017,"12,400.00",PROFESSIONAL FEES,V001181622
ROCHDALE BOROUGH COUNCIL,01/11/2017,NEIGHBOURHOODS AND ENVIRONMENT,ROCHDALE AND DISTRICT CITIZENS ADVICE BUREAU,01/11/2017,"28,333.33",CITIZENS ADVICE BUREAU,V001181649
ROCHDALE BOROUGH COUNCIL,01/11/2017,PUBLIC HEALTH,THE PENNINE ACUTE HOSPITALS NHS TRUST,01/11/2017,"10,288.91",PH PENNINE ACUTE CONTRACT,V001181659
ROCHDALE BOROUGH COUNCIL,01/11/2017,NEIGHBOURHOODS AND ENVIRONMENT,SAFEGARD SECURITY SOLUTIONS,01/11/2017,"14,250.00",SECURITY,V001181660
ROCHDALE BOROUGH COUNCIL,03/11/2017,EARLY HELP AND SCHOOLS,SKYLIGHT CIRCUS ARTS,03/11/2017,962.49,ACTIVITIES,V001181663
ROCHDALE BOROUGH COUNCIL,01/11/2017,PUBLIC HEALTH,PENNINE CARE NHS,01/11/2017,"150,000.00",CONTRACTED SERVICES,V001181667
ROCHDALE BOROUGH COUNCIL,01/11/2017,PROPERTY AND HIGHWAYS,ENVIRONMENT AGENCY,01/11/2017,"24,636.50",ENVIRONMENTAL AGENCY FLOOD DEFENCE LEVY,V001181670
ROCHDALE BOROUGH COUNCIL,01/11/2017,NEIGHBOURHOODS AND ENVIRONMENT,ROCHDALE FOODBANK,01/11/2017,750.00,SUPPLIES AND SERVICES PROVISION,V001181674
ROCHDALE BOROUGH COUNCIL,01/11/2017,NEIGHBOURHOODS AND ENVIRONMENT,ROCHDALE BOROUGHWIDE HOUSING,01/11/2017,"50,651.67",CONTRACTS,V001181675
ROCHDALE BOROUGH COUNCIL,01/11/2017,EARLY HELP AND SCHOOLS,RAINBOW TRUST CHILDRENS CHARITY,01/11/2017,"1,250.00",ACTIVITIES,V001181676
ROCHDALE BOROUGH COUNCIL,01/11/2017,EARLY HELP AND SCHOOLS,CROSSROADS CARE IN GREATER MANCHESTER,01/11/2017,"3,320.83",ACTIVITIES,V001181677
ROCHDALE BOROUGH COUNCIL,01/11/2017,PUBLIC HEALTH,LINK4LIFE CHARITY,01/11/2017,"225,708.00",LINK 4 LIFE CONTRACT,V001181678
ROCHDALE BOROUGH COUNCIL,01/11/2017,PUBLIC HEALTH,PENNINE CARE NHS,01/11/2017,"89,842.00",PH PENNINE CARE CONTRACT,V001181681
ROCHDALE BOROUGH COUNCIL,01/11/2017,PUBLIC HEALTH,LINK4LIFE TRADING,01/11/2017,"6,383.00",LINK 4 LIFE CONTRACT,V001181682
ROCHDALE BOROUGH COUNCIL,03/11/2017,EARLY HELP AND SCHOOLS,LINK4LIFE CHARITY,03/11/2017,"6,124.56",ACTIVITIES,V001181685
ROCHDALE BOROUGH COUNCIL,03/11/2017,EARLY HELP AND SCHOOLS,BARNARDOS,03/11/2017,"10,513.74",ACTIVITIES,V001181686
ROCHDALE BOROUGH COUNCIL,03/11/2017,EARLY HELP AND SCHOOLS,RAINBOW SCENT,03/11/2017,"1,512.39",ACTIVITIES,V001181687
ROCHDALE BOROUGH COUNCIL,01/11/2017,PUBLIC HEALTH,VIRGIN CARE SERVICES LIMITED,01/11/2017,"262,878.00",VIRGIN CARE,V001181690
ROCHDALE BOROUGH COUNCIL,01/11/2017,PUBLIC HEALTH,BIG LIFE CENTRES,01/11/2017,"120,990.00",PH BIG LIFE CONTRACT,V001181691
ROCHDALE BOROUGH COUNCIL,03/11/2017,RESOURCES,CRESTA WORLD TRAVEL LIMITED,03/11/2017,635.83,ACCOMMODATION,V001183139
ROCHDALE BOROUGH COUNCIL,03/11/2017,RESOURCES,CRESTA WORLD TRAVEL LIMITED,03/11/2017,635.83,ACCOMMODATION,V001183140
ROCHDALE BOROUGH COUNCIL,20/11/2017,EARLY HELP AND SCHOOLS,HOPWOOD HALL COLLEGE,20/11/2017,"3,330.00",TRAINING-QUALIFICATION,V001183196
ROCHDALE BOROUGH COUNCIL,20/11/2017,EARLY HELP AND SCHOOLS,HOPWOOD HALL COLLEGE,20/11/2017,"1,441.00",TRAINING-QUALIFICATION,V001183197
ROCHDALE BOROUGH COUNCIL,14/11/2017,EARLY HELP AND SCHOOLS,CROSSROADS CARE IN GREATER MANCHESTER,14/11/2017,720.00,ACTIVITIES,V001183230
ROCHDALE BOROUGH COUNCIL,14/11/2017,EARLY HELP AND SCHOOLS,CROSSROADS CARE IN GREATER MANCHESTER,14/11/2017,"5,032.50",ACTIVITIES,V001183301
ROCHDALE BOROUGH COUNCIL,03/11/2017,ECONOMY DIRECTORATE,GAZPROM MARKETING AND TRADING RETAIL LTD,03/11/2017,"1,008.35",GAS,V001183302
ROCHDALE BOROUGH COUNCIL,14/11/2017,EARLY HELP AND SCHOOLS,CROSSROADS CARE IN GREATER MANCHESTER,14/11/2017,952.50,ACTIVITIES,V001183303
ROCHDALE BOROUGH COUNCIL,02/11/2017,ECONOMY DIRECTORATE,GAZPROM MARKETING AND TRADING RETAIL LTD,02/11/2017,"1,854.81",GAS,V001183304
ROCHDALE BOROUGH COUNCIL,03/11/2017,ECONOMY DIRECTORATE,GAZPROM MARKETING AND TRADING RETAIL LTD,03/11/2017,"2,378.82",GAS,V001183305
ROCHDALE BOROUGH COUNCIL,03/11/2017,ECONOMY DIRECTORATE,GAZPROM MARKETING AND TRADING RETAIL LTD,03/11/2017,"1,916.91",GAS,V001183306
ROCHDALE BOROUGH COUNCIL,10/11/2017,NEIGHBOURHOODS AND ENVIRONMENT,J COONEY LTD,10/11/2017,"1,500.00",EQUIPMENT - GENERAL,V001183308
ROCHDALE BOROUGH COUNCIL,03/11/2017,CHILDREN�S SOCIAL CARE,NHS HEYWOOD MIDDLETON AND ROCHDALE CCG,03/11/2017,"3,758.05",AGENCY STAFF,V001183366
ROCHDALE BOROUGH COUNCIL,01/11/2017,NEIGHBOURHOODS AND ENVIRONMENT,CF CORPORATE FINANCE LTD,01/11/2017,531.18,HIRE OF EQUIPMENT,V001183507
ROCHDALE BOROUGH COUNCIL,01/11/2017,NEIGHBOURHOODS AND ENVIRONMENT,CF CORPORATE FINANCE LTD,01/11/2017,950.66,HIRE OF EQUIPMENT,V001183510
ROCHDALE BOROUGH COUNCIL,01/11/2017,NEIGHBOURHOODS AND ENVIRONMENT,TFG STAGE TECHNOLOGY LTD,01/11/2017,525.00,ENVIRONMENTAL WORKS LANDSCAPE,V001183986
ROCHDALE BOROUGH COUNCIL,07/11/2017,ECONOMY DIRECTORATE,WILDE CONSULTING ENGINEERS,07/11/2017,"6,358.75",CONSULTANT FEES,V001183990
ROCHDALE BOROUGH COUNCIL,01/11/2017,CHILDREN�S SOCIAL CARE,YOUTH JUSTICE BOARD,01/11/2017,"16,616.00",SERVICE LEVEL AGREEMENTS,V001184015
ROCHDALE BOROUGH COUNCIL,21/11/2017,PROPERTY AND HIGHWAYS,S T HEATINGS SERVICES LTD,21/11/2017,820.86,TRANSACTIONS-EXPENDITURE,V001184068
ROCHDALE BOROUGH COUNCIL,10/11/2017,ECONOMY DIRECTORATE,YOUNG AND CO,10/11/2017,"1,123.70",REPAIRS & ALTS OF BUILDINGS,V001184070
ROCHDALE BOROUGH COUNCIL,10/11/2017,ECONOMY DIRECTORATE,YOUNG AND CO,10/11/2017,650.00,REPAIRS & ALTS OF BUILDINGS,V001184071
ROCHDALE BOROUGH COUNCIL,02/11/2017,NEIGHBOURHOODS AND ENVIRONMENT,PK ENVIRONMENTAL MINI BUS HIRE,02/11/2017,"2,888.82",TAXI HIRE,V001184119
ROCHDALE BOROUGH COUNCIL,02/11/2017,NEIGHBOURHOODS AND ENVIRONMENT,PREMIERESHOW LIMITED,02/11/2017,534.00,TAXI HIRE,V001184120
ROCHDALE BOROUGH COUNCIL,02/11/2017,NEIGHBOURHOODS AND ENVIRONMENT,AIRSAFE UK LIMITED,02/11/2017,650.00,EQUIPMENT - GENERAL,V001184124
ROCHDALE BOROUGH COUNCIL,02/11/2017,NEIGHBOURHOODS AND ENVIRONMENT,GLENDALE HORTICULTURE LTD,02/11/2017,568.75,"TREES, SHRUBS, PLANTS",V001184126
ROCHDALE BOROUGH COUNCIL,07/11/2017,NEIGHBOURHOODS AND ENVIRONMENT,AMTOLL LIMITED,07/11/2017,500.40,CONSUMABLES,V001184132
ROCHDALE BOROUGH COUNCIL,02/11/2017,NEIGHBOURHOODS AND ENVIRONMENT,STHREE PARTNERSHIP LLP,02/11/2017,"6,400.00",CAPITAL SALARIES,V001184153
ROCHDALE BOROUGH COUNCIL,17/11/2017,RESOURCES,ROSSENDALES,17/11/2017,572.25,INPUT VAT -  ADJUSTMENTS,V001184165
ROCHDALE BOROUGH COUNCIL,01/11/2017,CHILDREN�S SOCIAL CARE,RESOLUTION FOSTERING SERVICES LTD,01/11/2017,660.24,FOSTER PARENTS BASIC ALLOWANCE,V001184188
ROCHDALE BOROUGH COUNCIL,02/11/2017,CHILDREN�S SOCIAL CARE,J MARLAND DECORATORS,02/11/2017,630.00,REPAIRS & ALTS OF BUILDINGS,V001184206
ROCHDALE BOROUGH COUNCIL,01/11/2017,NEIGHBOURHOODS AND ENVIRONMENT,PETRUS,01/11/2017,"36,180.00",GRANTS TO THE VOLUNTARY SECTOR,V001184212
ROCHDALE BOROUGH COUNCIL,20/11/2017,NEIGHBOURHOODS AND ENVIRONMENT,OLDHAM COUNCIL,20/11/2017,"5,895.00",SUBSCRIPTIONS,V001184264
ROCHDALE BOROUGH COUNCIL,03/11/2017,BETTER CARE FUND POOLED BUDGET,N COMPASS,03/11/2017,"40,847.69",CONTRACTS,V001184368
ROCHDALE BOROUGH COUNCIL,08/11/2017,RESOURCES,CRITIQOM LIMITED,08/11/2017,603.80,PRINTING & STATIONERY,V001184375
ROCHDALE BOROUGH COUNCIL,03/11/2017,EARLY HELP AND SCHOOLS,JILL WEBB,03/11/2017,526.00,TRAINING-QUALIFICATION,V001184383
ROCHDALE BOROUGH COUNCIL,07/11/2017,PHYSICAL DIS & OLDER PEOPLE,GARY HUMPHREYS,07/11/2017,"1,200.00",TRAINING,V001184385
ROCHDALE BOROUGH COUNCIL,03/11/2017,PROPERTY AND HIGHWAYS,VAISALA LIMITED,03/11/2017,"12,751.00",TRAINING,V001184386
ROCHDALE BOROUGH COUNCIL,03/11/2017,NEIGHBOURHOODS AND ENVIRONMENT,MIDLAND SOFTWARE LTD,03/11/2017,"7,199.00",SOFTWARE,V001184388
ROCHDALE BOROUGH COUNCIL,08/11/2017,RESOURCES,CRITIQOM LIMITED,08/11/2017,"1,012.29",PRINTING & STATIONERY,V001184410
ROCHDALE BOROUGH COUNCIL,08/11/2017,RESOURCES,CRITIQOM LIMITED,08/11/2017,"1,026.46",PRINTING & STATIONERY,V001184411
ROCHDALE BOROUGH COUNCIL,02/11/2017,EARLY HELP AND SCHOOLS,TIMOTHY JAMES CONSULTANCY LTD,02/11/2017,"2,250.00",AGENCY STAFF,V001184418
ROCHDALE BOROUGH COUNCIL,08/11/2017,RESOURCES,CRITIQOM LIMITED,08/11/2017,599.80,PRINTING & STATIONERY,V001184427
ROCHDALE BOROUGH COUNCIL,10/11/2017,RESOURCES,CAPITA BUSINESS SERVICES LIMITED,10/11/2017,"1,800.00",SOFTWARE,V001184515
ROCHDALE BOROUGH COUNCIL,14/11/2017,EARLY HELP AND SCHOOLS,BEECH HOUSE SCHOOL LTD,14/11/2017,"4,137.00",OTHER LA`S - SEN PROVISION,V001184527
ROCHDALE BOROUGH COUNCIL,14/11/2017,EARLY HELP AND SCHOOLS,BEECH HOUSE SCHOOL LTD,14/11/2017,"4,826.50",OTHER LA`S - SEN PROVISION,V001184528
ROCHDALE BOROUGH COUNCIL,14/11/2017,EARLY HELP AND SCHOOLS,BEECH HOUSE SCHOOL LTD,14/11/2017,"2,104.20",OTHER LA`S - SEN PROVISION,V001184529
ROCHDALE BOROUGH COUNCIL,14/11/2017,EARLY HELP AND SCHOOLS,BEECH HOUSE SCHOOL LTD,14/11/2017,"2,454.90",OTHER LA`S - SEN PROVISION,V001184530
ROCHDALE BOROUGH COUNCIL,03/11/2017,NEIGHBOURHOODS AND ENVIRONMENT,CRESTA WORLD TRAVEL LIMITED,03/11/2017,514.66,STAFF TRAVELLING EXPENSES,V001184550
ROCHDALE BOROUGH COUNCIL,16/11/2017,NEIGHBOURHOODS AND ENVIRONMENT,LANCASHIRE COUNTY COUNCIL,16/11/2017,"4,300.00",OTHER LOCAL AUTHORITIES,V001184557
ROCHDALE BOROUGH COUNCIL,03/11/2017,NEIGHBOURHOODS AND ENVIRONMENT,GROUNDWORK LANDSCAPES LIMITED,03/11/2017,980.00,EQUIPMENT - GENERAL,V001184559
ROCHDALE BOROUGH COUNCIL,13/11/2017,EARLY HELP AND SCHOOLS,NEW BRIDGE  SCHOOL,13/11/2017,"4,683.66",OTHER EST - SEN PROVISION,V001184571
ROCHDALE BOROUGH COUNCIL,13/11/2017,EARLY HELP AND SCHOOLS,NEW BRIDGE  SCHOOL,13/11/2017,"3,333.34",SEN COSTS MET BY SCHOOLS,V001184571
ROCHDALE BOROUGH COUNCIL,01/11/2017,ECONOMY DIRECTORATE,ROCHDALE DEVELOPMENT AGENCY,01/11/2017,"1,224.00",CAPITAL SALARIES,V001184584
ROCHDALE BOROUGH COUNCIL,20/11/2017,PUBLIC HEALTH,THE PENNINE ACUTE HOSPITALS NHS TRUST,20/11/2017,"4,979.00",PH OTHER CONTRACTS,V001184587
ROCHDALE BOROUGH COUNCIL,03/11/2017,NEIGHBOURHOODS AND ENVIRONMENT,STHREE PARTNERSHIP LLP,03/11/2017,"1,080.00",AGENCY STAFF,V001185693
ROCHDALE BOROUGH COUNCIL,02/11/2017,CHILDREN�S SOCIAL CARE,FOSTER CARES LTD,02/11/2017,850.00,FOSTER PARENTS BASIC ALLOWANCE,V001185700
ROCHDALE BOROUGH COUNCIL,07/11/2017,NEIGHBOURHOODS AND ENVIRONMENT,J A CRYER EXCAVATION & GROUNDWORK CONTRACTORS LTD,07/11/2017,610.00,ENVIRONMENTAL WORKS LANDSCAPE,V001185825
ROCHDALE BOROUGH COUNCIL,03/11/2017,NEIGHBOURHOODS AND ENVIRONMENT,AEBI SCHMIDT UK LIMITED,03/11/2017,586.99,VEHICLE MAINTENANCE,V001185827
ROCHDALE BOROUGH COUNCIL,21/11/2017,PHYSICAL DIS & OLDER PEOPLE,GARY HUMPHREYS,21/11/2017,600.00,TRAINING,V001185830
ROCHDALE BOROUGH COUNCIL,28/11/2017,NEIGHBOURHOODS AND ENVIRONMENT,J A CRYER EXCAVATION & GROUNDWORK CONTRACTORS LTD,28/11/2017,"1,090.00",ACTIVITIES,V001185832
ROCHDALE BOROUGH COUNCIL,03/11/2017,NEIGHBOURHOODS AND ENVIRONMENT,DOTTED EYES LTD,03/11/2017,725.00,SOFTWARE,V001185839
ROCHDALE BOROUGH COUNCIL,10/11/2017,PROPERTY AND HIGHWAYS,ABBEY ARCHITECTURAL IRONMONGERY CO LTD,10/11/2017,580.37,TRANSACTIONS-EXPENDITURE,V001185851
ROCHDALE BOROUGH COUNCIL,13/11/2017,ECONOMY DIRECTORATE,GTM ELECTRICAL SERVICES LIMITED,13/11/2017,840.00,REPAIRS & ALTS OF BUILDINGS,V001185859
ROCHDALE BOROUGH COUNCIL,10/11/2017,ECONOMY DIRECTORATE,ABC INDUSTRIAL DOORS LTD,10/11/2017,968.00,ONGOING DISBURSEMENTS,V001185866
ROCHDALE BOROUGH COUNCIL,03/11/2017,CHILDREN�S SOCIAL CARE,STEPPING STONE PROJECT ROCHDALE LTD,03/11/2017,"1,796.60",YOUNG PEOPLES RENTS,V001186228
ROCHDALE BOROUGH COUNCIL,03/11/2017,CHILDREN�S SOCIAL CARE,STEPPING STONE PROJECT ROCHDALE LTD,03/11/2017,"2,131.80",YOUNG PEOPLES RENTS,V001186234
ROCHDALE BOROUGH COUNCIL,03/11/2017,CHILDREN�S SOCIAL CARE,STEPPING STONE PROJECT ROCHDALE LTD,03/11/2017,"2,131.80",YOUNG PEOPLES RENTS,V001186235
ROCHDALE BOROUGH COUNCIL,06/11/2017,PHYSICAL DIS & OLDER PEOPLE,REDACTED - PERSONAL DATA,06/11/2017,"-49,250.00",CONTRACTS,V001186482
ROCHDALE BOROUGH COUNCIL,07/11/2017,NEIGHBOURHOODS AND ENVIRONMENT,STHREE PARTNERSHIP LLP,07/11/2017,"1,875.00",AGENCY STAFF,V001186991
ROCHDALE BOROUGH COUNCIL,10/11/2017,PROPERTY AND HIGHWAYS,MET OFFICE,10/11/2017,700.00,REPAIRS & ALTS OF BUILDINGS,V001186993
ROCHDALE BOROUGH COUNCIL,07/11/2017,LEARNING DIS & MENTAL HEALTH,PETRUS,07/11/2017,"23,250.00",SERVICE LEVEL AGREEMENTS,V001186998
ROCHDALE BOROUGH COUNCIL,03/11/2017,NEIGHBOURHOODS AND ENVIRONMENT,ORCHARD  RECYCLING SERVICE LTD,03/11/2017,741.50,EQUIPMENT - GENERAL,V001186999
ROCHDALE BOROUGH COUNCIL,02/11/2017,EARLY HELP AND SCHOOLS,THE UK ASSOCIATION FOR MUSIC EDUCATION MUSIC MARK,02/11/2017,780.00,SUBSCRIPTIONS,V001187000
ROCHDALE BOROUGH COUNCIL,03/11/2017,NEIGHBOURHOODS AND ENVIRONMENT,NO GRAFFITI LTD,03/11/2017,850.00,CONTRACTED SERVICES,V001187019
ROCHDALE BOROUGH COUNCIL,02/11/2017,RESOURCES,BINDMONT PRINT SERVICES LTD,02/11/2017,"1,498.00",PRINTING & STATIONERY,V001187042
ROCHDALE BOROUGH COUNCIL,17/11/2017,RESOURCES,ROYAL MAIL GROUP PLC,17/11/2017,"1,494.48",PRINTING & STATIONERY,V001187045
ROCHDALE BOROUGH COUNCIL,01/11/2017,EARLY HELP AND SCHOOLS,THE OPEN UNIVERSITY,01/11/2017,"1,432.00",TRAINING-QUALIFICATION,V001187060
ROCHDALE BOROUGH COUNCIL,23/11/2017,NEIGHBOURHOODS AND ENVIRONMENT,BRENTWOOD,23/11/2017,"16,425.00",GRANTS TO THE VOLUNTARY SECTOR,V001187064
ROCHDALE BOROUGH COUNCIL,07/11/2017,NEIGHBOURHOODS AND ENVIRONMENT,NO GRAFFITI LTD,07/11/2017,950.00,CONTRACTED SERVICES,V001187066
ROCHDALE BOROUGH COUNCIL,16/11/2017,CHILDREN�S SOCIAL CARE,CARITAS CARE LTD,16/11/2017,750.00,ADOPTION PAYMENTS,V001187078
ROCHDALE BOROUGH COUNCIL,07/11/2017,NEIGHBOURHOODS AND ENVIRONMENT,OLDHAM AND ROCHDALE GROUNDWORK TRUST LTD,07/11/2017,"2,269.00",CAPITAL SALARIES,V001187081
ROCHDALE BOROUGH COUNCIL,07/11/2017,NEIGHBOURHOODS AND ENVIRONMENT,OLDHAM AND ROCHDALE GROUNDWORK TRUST LTD,07/11/2017,"2,269.00",CAPITAL SALARIES,V001187091
ROCHDALE BOROUGH COUNCIL,09/11/2017,ECONOMY DIRECTORATE,FIRST GROUP PLC,09/11/2017,665.00,PUBLIC TRANSPORT,V001187115
ROCHDALE BOROUGH COUNCIL,15/11/2017,ECONOMY DIRECTORATE,J A CRYER EXCAVATION & GROUNDWORK CONTRACTORS LTD,15/11/2017,530.00,ENVIRONMENTAL WORKS LANDSCAPE,V001187130
ROCHDALE BOROUGH COUNCIL,24/11/2017,NEIGHBOURHOODS AND ENVIRONMENT,LINK4LIFE CHARITY,24/11/2017,960.00,ACTIVITIES,V001187168
ROCHDALE BOROUGH COUNCIL,24/11/2017,NEIGHBOURHOODS AND ENVIRONMENT,LINK4LIFE CHARITY,24/11/2017,540.00,ACTIVITIES,V001187168
ROCHDALE BOROUGH COUNCIL,02/11/2017,NEIGHBOURHOODS AND ENVIRONMENT,ROCHDALE MEMORIAL SERVICE,02/11/2017,"9,125.00",FIXTURES & FITTINGS,V001187193
ROCHDALE BOROUGH COUNCIL,16/11/2017,NEIGHBOURHOODS AND ENVIRONMENT,EVERYTHING EVERYWHERE LIMITED,16/11/2017,"2,580.12",TRANSACTIONS-EXPENDITURE,V001187196
ROCHDALE BOROUGH COUNCIL,16/11/2017,NEIGHBOURHOODS AND ENVIRONMENT,EVERYTHING EVERYWHERE LIMITED,16/11/2017,718.36,TRANSACTIONS-EXPENDITURE,V001187197
ROCHDALE BOROUGH COUNCIL,16/11/2017,NEIGHBOURHOODS AND ENVIRONMENT,EVERYTHING EVERYWHERE LIMITED,16/11/2017,"1,951.92",TRANSACTIONS-EXPENDITURE,V001187198
ROCHDALE BOROUGH COUNCIL,16/11/2017,NEIGHBOURHOODS AND ENVIRONMENT,EVERYTHING EVERYWHERE LIMITED,16/11/2017,"9,955.73",TRANSACTIONS-EXPENDITURE,V001187200
ROCHDALE BOROUGH COUNCIL,23/11/2017,NEIGHBOURHOODS AND ENVIRONMENT,AGILISYS LIMITED,23/11/2017,"3,946.07",AGILISYS CONTRACT,V001187204
ROCHDALE BOROUGH COUNCIL,23/11/2017,NEIGHBOURHOODS AND ENVIRONMENT,AGILISYS LIMITED,23/11/2017,"97,723.80",AGILISYS CONTRACT,V001187206
ROCHDALE BOROUGH COUNCIL,02/11/2017,NEIGHBOURHOODS AND ENVIRONMENT,IBM UK LTD,02/11/2017,"58,540.20",SOFTWARE,V001187209
ROCHDALE BOROUGH COUNCIL,03/11/2017,NEIGHBOURHOODS AND ENVIRONMENT,CAUSEWAY TECHNOLOGIES LTD,03/11/2017,"1,066.86",SOFTWARE,V001187210
ROCHDALE BOROUGH COUNCIL,03/11/2017,NEIGHBOURHOODS AND ENVIRONMENT,XMA LIMITED,03/11/2017,628.95,PURCHASE OF ICT HARDWARE,V001187212
ROCHDALE BOROUGH COUNCIL,08/11/2017,NEIGHBOURHOODS AND ENVIRONMENT,TEKLA UK LTD,08/11/2017,"1,150.00",SOFTWARE,V001187218
ROCHDALE BOROUGH COUNCIL,08/11/2017,NEIGHBOURHOODS AND ENVIRONMENT,J COONEY LTD,08/11/2017,"1,500.00",EQUIPMENT - GENERAL,V001187220
ROCHDALE BOROUGH COUNCIL,03/11/2017,PHYSICAL DIS & OLDER PEOPLE,BRIGHTER BLINDS LTD,03/11/2017,"1,404.00",EQUIPMENT - GENERAL,V001187238
ROCHDALE BOROUGH COUNCIL,08/11/2017,NEIGHBOURHOODS AND ENVIRONMENT,STHREE PARTNERSHIP LLP,08/11/2017,"1,400.00",CAPITAL SALARIES,V001187261
ROCHDALE BOROUGH COUNCIL,07/11/2017,NEIGHBOURHOODS AND ENVIRONMENT,DR VINITA CHARAN,07/11/2017,"1,258.40",MEDICAL FEES,V001187303
ROCHDALE BOROUGH COUNCIL,07/11/2017,NEIGHBOURHOODS AND ENVIRONMENT,DR VINITA CHARAN,07/11/2017,848.00,HISTOLOGY PAYMENTS,V001187303
ROCHDALE BOROUGH COUNCIL,03/11/2017,ECONOMY DIRECTORATE,GAZPROM MARKETING AND TRADING RETAIL LTD,03/11/2017,995.94,GAS,V001187304
ROCHDALE BOROUGH COUNCIL,03/11/2017,ECONOMY DIRECTORATE,GAZPROM MARKETING AND TRADING RETAIL LTD,03/11/2017,"1,488.88",GAS,V001187307
ROCHDALE BOROUGH COUNCIL,01/11/2017,NEIGHBOURHOODS AND ENVIRONMENT,FORENSICS LTD,01/11/2017,"2,207.50",TOXICOLOGY PAYMENTS,V001187312
ROCHDALE BOROUGH COUNCIL,06/11/2017,PHYSICAL DIS & OLDER PEOPLE,PENNINE CARE NHS,06/11/2017,"49,250.00",CONTRACTS,V001187315
ROCHDALE BOROUGH COUNCIL,03/11/2017,NEIGHBOURHOODS AND ENVIRONMENT,FORENSICS LTD,03/11/2017,825.00,TOXICOLOGY PAYMENTS,V001187318
ROCHDALE BOROUGH COUNCIL,30/11/2017,NEIGHBOURHOODS AND ENVIRONMENT,AUDITEL SYSTEMS,30/11/2017,"1,370.00",EQUIPMENT - GENERAL,V001187346
ROCHDALE BOROUGH COUNCIL,08/11/2017,RESOURCES,HEALTH MANAGEMENT LIMITED,08/11/2017,"3,823.25",OCCUPATIONAL HEALTH,V001187357
ROCHDALE BOROUGH COUNCIL,09/11/2017,NEIGHBOURHOODS AND ENVIRONMENT,CALVAG,09/11/2017,685.00,EQUIPMENT - GENERAL,V001187464
ROCHDALE BOROUGH COUNCIL,08/11/2017,NEIGHBOURHOODS AND ENVIRONMENT,FREEDOM COMMUNICATIONS,08/11/2017,"3,664.96",IT MAINTENANCE,V001187507
ROCHDALE BOROUGH COUNCIL,24/11/2017,NEIGHBOURHOODS AND ENVIRONMENT,CIVICA UK LIMITED,24/11/2017,"1,021.31",SOFTWARE,V001187511
ROCHDALE BOROUGH COUNCIL,07/11/2017,NEIGHBOURHOODS AND ENVIRONMENT,BRAKE BROS FOOD SERVICE LTD,07/11/2017,717.42,PROVISIONS,V001187512
ROCHDALE BOROUGH COUNCIL,07/11/2017,PROPERTY AND HIGHWAYS,PARKEON LIMITED,07/11/2017,"4,100.00",MAINTENANCE,V001187513
ROCHDALE BOROUGH COUNCIL,08/11/2017,PROPERTY AND HIGHWAYS,MINI SOIL SURVEYS (NORTHERN) LTD,08/11/2017,571.00,TRANSACTIONS-EXPENDITURE,V001187519
ROCHDALE BOROUGH COUNCIL,07/11/2017,PROPERTY AND HIGHWAYS,TLC GARDEN SERVICES,07/11/2017,"4,225.00",REPAIRS & ALTS OF BUILDINGS,V001187520
ROCHDALE BOROUGH COUNCIL,03/11/2017,PROPERTY AND HIGHWAYS,BEXAN LTD,03/11/2017,"1,058.04",PROPERTY - WORKS ELEMENT,V001187523
ROCHDALE BOROUGH COUNCIL,03/11/2017,PROPERTY AND HIGHWAYS,BEXAN LTD,03/11/2017,625.36,PROPERTY - WORKS ELEMENT,V001187523
ROCHDALE BOROUGH COUNCIL,02/11/2017,EARLY HELP AND SCHOOLS,JACKSON JACKSON AND SONS LTD,02/11/2017,"160,300.00",MINOR BUILDING WORKS,V001187524
ROCHDALE BOROUGH COUNCIL,10/11/2017,PROPERTY AND HIGHWAYS,NORTHWEST ASBESTOS REMOVALS LTD,10/11/2017,"1,330.00",MINOR BUILDING WORKS,V001187528
ROCHDALE BOROUGH COUNCIL,09/11/2017,EARLY HELP AND SCHOOLS,TIMOTHY JAMES CONSULTANCY LTD,09/11/2017,"2,250.00",AGENCY STAFF,V001187536
ROCHDALE BOROUGH COUNCIL,09/11/2017,ECONOMY DIRECTORATE,THE OYSTER PARTNERSHIP LTD,09/11/2017,"1,625.00",AGENCY STAFF,V001187537
ROCHDALE BOROUGH COUNCIL,08/11/2017,NEIGHBOURHOODS AND ENVIRONMENT,SSI SCHAEFER LIMITED,08/11/2017,"14,708.40",EQUIPMENT - GENERAL,V001187544
ROCHDALE BOROUGH COUNCIL,08/11/2017,NEIGHBOURHOODS AND ENVIRONMENT,BROXAP LIMITED,08/11/2017,"11,000.00",ENVIRONMENTAL WORKS LANDSCAPE,V001187545
ROCHDALE BOROUGH COUNCIL,03/11/2017,NEIGHBOURHOODS AND ENVIRONMENT,EMO OIL LIMITED,03/11/2017,"4,416.80",OIL,V001187546
ROCHDALE BOROUGH COUNCIL,09/11/2017,NEIGHBOURHOODS AND ENVIRONMENT,AIRSAFE UK LIMITED,09/11/2017,695.00,EQUIPMENT - GENERAL,V001187551
ROCHDALE BOROUGH COUNCIL,01/11/2017,LEARNING DIS & MENTAL HEALTH,CROSSROADS CARE IN GREATER MANCHESTER,01/11/2017,-711.02,PERSONAL BUDGETS - MANAGED,V001187563
ROCHDALE BOROUGH COUNCIL,01/11/2017,EARLY HELP AND SCHOOLS,CRITIQOM LIMITED,01/11/2017,"1,139.93",PRINTING,V001187568
ROCHDALE BOROUGH COUNCIL,01/11/2017,LEARNING DIS & MENTAL HEALTH,MT CARE PROPERTY LTD,01/11/2017,"1,800.00",RESIDENTIAL LONG TERM,V001187569
ROCHDALE BOROUGH COUNCIL,01/11/2017,LEARNING DIS & MENTAL HEALTH,MT CARE PROPERTY LTD,01/11/2017,"1,960.37",RESIDENTIAL LONG TERM,V001187570
ROCHDALE BOROUGH COUNCIL,01/11/2017,PHYSICAL DIS & OLDER PEOPLE,BUPA CARE HOMES LIMITED,01/11/2017,"4,867.15",RESIDENTIAL LONG TERM,V001187571
ROCHDALE BOROUGH COUNCIL,01/11/2017,PHYSICAL DIS & OLDER PEOPLE,BUPA CARE HOMES LIMITED,01/11/2017,"3,167.21",RESIDENTIAL LONG TERM,V001187572
ROCHDALE BOROUGH COUNCIL,01/11/2017,PHYSICAL DIS & OLDER PEOPLE,FOUR SEASONS HEALTHCARE,01/11/2017,"9,535.50",PERSONAL BUDGETS - MANAGED,V001187573
ROCHDALE BOROUGH COUNCIL,01/11/2017,PHYSICAL DIS & OLDER PEOPLE,EAGLE CARE HOMES LTD,01/11/2017,"1,612.32",RESIDENTIAL LONG TERM,V001187574
ROCHDALE BOROUGH COUNCIL,01/11/2017,PHYSICAL DIS & OLDER PEOPLE,BELVOIR CARE HOME LIMITED,01/11/2017,672.25,RESIDENTIAL LONG TERM,V001187575
ROCHDALE BOROUGH COUNCIL,01/11/2017,NEIGHBOURHOODS AND ENVIRONMENT,BRITISH GAS,01/11/2017,966.46,ELECTRICITY,V001187576
ROCHDALE BOROUGH COUNCIL,01/11/2017,ECONOMY DIRECTORATE,BRITISH GAS,01/11/2017,809.53,ELECTRICITY,V001187576
ROCHDALE BOROUGH COUNCIL,01/11/2017,ECONOMY DIRECTORATE,BRITISH GAS,01/11/2017,754.20,ELECTRICITY,V001187576
ROCHDALE BOROUGH COUNCIL,01/11/2017,ECONOMY DIRECTORATE,BRITISH GAS,01/11/2017,644.14,ELECTRICITY,V001187576
ROCHDALE BOROUGH COUNCIL,01/11/2017,EARLY HELP AND SCHOOLS,BRITISH GAS,01/11/2017,571.71,ELECTRICITY,V001187576
ROCHDALE BOROUGH COUNCIL,01/11/2017,NEIGHBOURHOODS AND ENVIRONMENT,BRITISH GAS,01/11/2017,558.98,ELECTRICITY,V001187576
ROCHDALE BOROUGH COUNCIL,01/11/2017,EARLY HELP AND SCHOOLS,SHUTTERS VILLAGE NURSERY,01/11/2017,"1,000.00",TRAINING,V001187582
ROCHDALE BOROUGH COUNCIL,10/11/2017,NEIGHBOURHOODS AND ENVIRONMENT,AMTOLL LIMITED,10/11/2017,760.00,EQUIPMENT - GENERAL,V001187585
ROCHDALE BOROUGH COUNCIL,03/11/2017,NEIGHBOURHOODS AND ENVIRONMENT,PLURALSIGHT,03/11/2017,"9,067.65",SOFTWARE,V001187602
ROCHDALE BOROUGH COUNCIL,07/11/2017,NEIGHBOURHOODS AND ENVIRONMENT,EMO OIL LIMITED,07/11/2017,"28,500.00",TRANSACTIONS-EXPENDITURE,V001187603
ROCHDALE BOROUGH COUNCIL,01/11/2017,PHYSICAL DIS & OLDER PEOPLE,ALLIED HEALTHCARE,01/11/2017,"13,271.75",HOME CARE - ADULT SERVICES,V001187606
ROCHDALE BOROUGH COUNCIL,01/11/2017,PHYSICAL DIS & OLDER PEOPLE,CALDERDALE HOMECARE LTD,01/11/2017,"6,582.38",HOME CARE - ADULT SERVICES,V001187607
ROCHDALE BOROUGH COUNCIL,01/11/2017,PHYSICAL DIS & OLDER PEOPLE,CARE 4 U,01/11/2017,"6,093.43",HOME CARE - ADULT SERVICES,V001187609
ROCHDALE BOROUGH COUNCIL,01/11/2017,PHYSICAL DIS & OLDER PEOPLE,CAREWATCH CARE SERVICES LTD,01/11/2017,"3,967.91",HOME CARE - ADULT SERVICES,V001187610
ROCHDALE BOROUGH COUNCIL,01/11/2017,PHYSICAL DIS & OLDER PEOPLE,COMMUNITY CARE LINE SERVICES,01/11/2017,"3,620.87",HOME CARE - ADULT SERVICES,V001187611
ROCHDALE BOROUGH COUNCIL,01/11/2017,PHYSICAL DIS & OLDER PEOPLE,COMFORT CALL LTD,01/11/2017,"9,369.42",HOME CARE - ADULT SERVICES,V001187612
ROCHDALE BOROUGH COUNCIL,01/11/2017,PHYSICAL DIS & OLDER PEOPLE,COTTAGE HOMECARE SERVICES,01/11/2017,"3,888.21",HOME CARE - ADULT SERVICES,V001187614
ROCHDALE BOROUGH COUNCIL,01/11/2017,PHYSICAL DIS & OLDER PEOPLE,HOMECARE SUPPORT,01/11/2017,"2,695.61",HOME CARE - ADULT SERVICES,V001187616
ROCHDALE BOROUGH COUNCIL,01/11/2017,PHYSICAL DIS & OLDER PEOPLE,HG CARE SERVICES LIMITED,01/11/2017,"4,153.39",HOME CARE - ADULT SERVICES,V001187618
ROCHDALE BOROUGH COUNCIL,01/11/2017,PHYSICAL DIS & OLDER PEOPLE,HOMECARE4U LTD,01/11/2017,"4,962.82",HOME CARE - ADULT SERVICES,V001187619
ROCHDALE BOROUGH COUNCIL,01/11/2017,PHYSICAL DIS & OLDER PEOPLE,NEWMARK CARE LTD,01/11/2017,"3,741.74",HOME CARE - ADULT SERVICES,V001187621
ROCHDALE BOROUGH COUNCIL,02/11/2017,PROPERTY AND HIGHWAYS,NU FIRE AND SECURITY LTD,02/11/2017,675.00,MAINTENANCE,V001187640
ROCHDALE BOROUGH COUNCIL,01/11/2017,PHYSICAL DIS & OLDER PEOPLE,CROSSROADS CARE IN GREATER MANCHESTER,01/11/2017,"1,073.41",HOME CARE - ADULT SERVICES,V001187641
ROCHDALE BOROUGH COUNCIL,01/11/2017,PHYSICAL DIS & OLDER PEOPLE,PREMIER CARE LTD,01/11/2017,"14,231.00",HOME CARE - ADULT SERVICES,V001187642
ROCHDALE BOROUGH COUNCIL,01/11/2017,PHYSICAL DIS & OLDER PEOPLE,SEVACARE UK LTD,01/11/2017,"12,783.27",HOME CARE - ADULT SERVICES,V001187643
ROCHDALE BOROUGH COUNCIL,01/11/2017,PHYSICAL DIS & OLDER PEOPLE,SUNSHINE CARE CO-OP,01/11/2017,"2,169.08",HOME CARE - ADULT SERVICES,V001187644
ROCHDALE BOROUGH COUNCIL,15/11/2017,NEIGHBOURHOODS AND ENVIRONMENT,PITNEY BOWES POSTAGE BY PHONE,15/11/2017,"3,000.00",TRANSACTIONS-EXPENDITURE,V001187646
ROCHDALE BOROUGH COUNCIL,15/11/2017,ECONOMY DIRECTORATE,GMCA,15/11/2017,"807,233.00",PASSENGER TRANSPORT LEVY,V001187648
ROCHDALE BOROUGH COUNCIL,07/11/2017,NEIGHBOURHOODS AND ENVIRONMENT,WHISTL UK LTD,07/11/2017,"1,047.27",POSTAGE,V001187649
ROCHDALE BOROUGH COUNCIL,24/11/2017,EARLY HELP AND SCHOOLS,THE ROYAL NATIONAL COLLEGE FOR THE BLIND,24/11/2017,"11,565.67",OTHER EST - SEN PROVISION,V001187653
ROCHDALE BOROUGH COUNCIL,24/11/2017,CHILDREN�S SOCIAL CARE,ADOPTION MATTERS NORTHWEST,24/11/2017,"4,924.00",ACTIVITIES,V001187654
ROCHDALE BOROUGH COUNCIL,23/11/2017,CHILDREN�S SOCIAL CARE,BURY MBC,23/11/2017,"27,000.00",ADOPTION PAYMENTS,V001187655
ROCHDALE BOROUGH COUNCIL,01/11/2017,EARLY HELP AND SCHOOLS,CRITIQOM LIMITED,01/11/2017,"1,678.28",PRINTING,V001187665
ROCHDALE BOROUGH COUNCIL,01/11/2017,EARLY HELP AND SCHOOLS,CRITIQOM LIMITED,01/11/2017,859.71,PRINTING,V001187667
ROCHDALE BOROUGH COUNCIL,02/11/2017,NEIGHBOURHOODS AND ENVIRONMENT,THE COOPERATIVE FUNERALCARE,02/11/2017,742.50,UNDERTAKERS COSTS,V001187686
ROCHDALE BOROUGH COUNCIL,02/11/2017,NEIGHBOURHOODS AND ENVIRONMENT,THE COOPERATIVE FUNERALCARE,02/11/2017,940.50,UNDERTAKERS COSTS,V001187688
ROCHDALE BOROUGH COUNCIL,02/11/2017,NEIGHBOURHOODS AND ENVIRONMENT,THE COOPERATIVE FUNERALCARE,02/11/2017,"1,336.50",UNDERTAKERS COSTS,V001187689
ROCHDALE BOROUGH COUNCIL,01/11/2017,NEIGHBOURHOODS AND ENVIRONMENT,ATI ENVIRONMENT UK LTD,01/11/2017,"2,506.82",SPECIFIED MAINTENANCE,V001187690
ROCHDALE BOROUGH COUNCIL,03/11/2017,NEIGHBOURHOODS AND ENVIRONMENT,THE COOPERATIVE FUNERALCARE,03/11/2017,"1,138.50",UNDERTAKERS COSTS,V001187691
ROCHDALE BOROUGH COUNCIL,02/11/2017,NEIGHBOURHOODS AND ENVIRONMENT,THE COOPERATIVE FUNERALCARE,02/11/2017,891.00,UNDERTAKERS COSTS,V001187692
ROCHDALE BOROUGH COUNCIL,03/11/2017,NEIGHBOURHOODS AND ENVIRONMENT,THE COOPERATIVE FUNERALCARE,03/11/2017,990.00,UNDERTAKERS COSTS,V001187693
ROCHDALE BOROUGH COUNCIL,03/11/2017,NEIGHBOURHOODS AND ENVIRONMENT,THE COOPERATIVE FUNERALCARE,03/11/2017,"1,138.50",UNDERTAKERS COSTS,V001187694
ROCHDALE BOROUGH COUNCIL,03/11/2017,NEIGHBOURHOODS AND ENVIRONMENT,THE COOPERATIVE FUNERALCARE,03/11/2017,643.50,UNDERTAKERS COSTS,V001187695
ROCHDALE BOROUGH COUNCIL,02/11/2017,NEIGHBOURHOODS AND ENVIRONMENT,DR K BAIDEN-AMISSAH,02/11/2017,"1,645.60",MEDICAL FEES,V001187696
ROCHDALE BOROUGH COUNCIL,02/11/2017,NEIGHBOURHOODS AND ENVIRONMENT,DR K BAIDEN-AMISSAH,02/11/2017,"1,276.00",HISTOLOGY PAYMENTS,V001187696
ROCHDALE BOROUGH COUNCIL,09/11/2017,PUBLIC HEALTH,BRAHM FUNDCO 1 LTD,09/11/2017,"6,232.47",RENTS,V001187698
ROCHDALE BOROUGH COUNCIL,23/11/2017,PHYSICAL DIS & OLDER PEOPLE,THE PENNINE ACUTE HOSPITALS NHS TRUST,23/11/2017,"3,233.35",AGENCY STAFF,V001187699
ROCHDALE BOROUGH COUNCIL,01/11/2017,NEIGHBOURHOODS AND ENVIRONMENT,CLOVER SECURITY SERVICES LIMITED,01/11/2017,"1,160.00",SECURITY,V001187704
ROCHDALE BOROUGH COUNCIL,02/11/2017,NEIGHBOURHOODS AND ENVIRONMENT,PRIORY ROSES,02/11/2017,682.00,"TREES, SHRUBS, PLANTS",V001187707
ROCHDALE BOROUGH COUNCIL,20/11/2017,NEIGHBOURHOODS AND ENVIRONMENT,HENRY ALTY LIMITED,20/11/2017,"1,267.71","TREES, SHRUBS, PLANTS",V001187708
ROCHDALE BOROUGH COUNCIL,10/11/2017,ECONOMY DIRECTORATE,CLYDE & CO,10/11/2017,"1,896.00",LEGAL SERVICES EXTERNAL,V001187710
ROCHDALE BOROUGH COUNCIL,10/11/2017,ECONOMY DIRECTORATE,ROCHDALE TOWN CENTRE MANAGEMENT CO,10/11/2017,"1,265.00",MINOR BUILDING WORKS,V001187711
ROCHDALE BOROUGH COUNCIL,01/11/2017,NEIGHBOURHOODS AND ENVIRONMENT,ANGLIA SIGN CASTING COMPANY LIMITED,01/11/2017,692.49,MATERIAL - GENERAL,V001187730
ROCHDALE BOROUGH COUNCIL,09/11/2017,ECONOMY DIRECTORATE,BRAHM LIFT LIMITED,09/11/2017,974.87,PFI SCHEMES RPI,V001187731
ROCHDALE BOROUGH COUNCIL,01/11/2017,RESOURCES,REDACTED - PERSONAL DATA,01/11/2017,666.60,RENT ALLOWS-PRIVATE TENANTS ST,V001187732
ROCHDALE BOROUGH COUNCIL,01/11/2017,RESOURCES,REDACTED - PERSONAL DATA,01/11/2017,848.08,RENT ALLOWS-PRIVATE TENANTS ST,V001187747
ROCHDALE BOROUGH COUNCIL,01/11/2017,RESOURCES,REDACTED - PERSONAL DATA,01/11/2017,971.58,RENT ALLOWS-PRIVATE TENANTS ST,V001187757
ROCHDALE BOROUGH COUNCIL,01/11/2017,RESOURCES,REDACTED - PERSONAL DATA,01/11/2017,"1,254.16",RENT ALLOWS-PRIVATE TENANTS ST,V001187769
ROCHDALE BOROUGH COUNCIL,23/11/2017,EARLY HELP AND SCHOOLS,HOPWOOD HALL COLLEGE,23/11/2017,"1,665.00",TRAINING-QUALIFICATION,V001187770
ROCHDALE BOROUGH COUNCIL,08/11/2017,NEIGHBOURHOODS AND ENVIRONMENT,KEN BROGDEN LIMITED,08/11/2017,"3,686.00",EQUIPMENT - GENERAL,V001187771
ROCHDALE BOROUGH COUNCIL,08/11/2017,NEIGHBOURHOODS AND ENVIRONMENT,KEN BROGDEN LIMITED,08/11/2017,"3,052.00",EQUIPMENT - GENERAL,V001187771
ROCHDALE BOROUGH COUNCIL,03/11/2017,NEIGHBOURHOODS AND ENVIRONMENT,FORENSICS LTD,03/11/2017,-740.00,TOXICOLOGY PAYMENTS,V001187776
ROCHDALE BOROUGH COUNCIL,02/11/2017,NEIGHBOURHOODS AND ENVIRONMENT,DR S TITI,02/11/2017,"1,595.00",HISTOLOGY PAYMENTS,V001187778
ROCHDALE BOROUGH COUNCIL,02/11/2017,NEIGHBOURHOODS AND ENVIRONMENT,DR S TITI,02/11/2017,"1,161.60",MEDICAL FEES,V001187778
ROCHDALE BOROUGH COUNCIL,02/11/2017,NEIGHBOURHOODS AND ENVIRONMENT,THE COOPERATIVE FUNERALCARE,02/11/2017,"1,089.00",UNDERTAKERS COSTS,V001187779
ROCHDALE BOROUGH COUNCIL,23/11/2017,RESOURCES,CAPITA BUSINESS SERVICES LIMITED,23/11/2017,"3,750.00",SOFTWARE,V001187781
ROCHDALE BOROUGH COUNCIL,15/11/2017,NEIGHBOURHOODS AND ENVIRONMENT,LANES GROUP PLC,15/11/2017,699.58,EQUIPMENT - GENERAL,V001187782
ROCHDALE BOROUGH COUNCIL,03/11/2017,EARLY HELP AND SCHOOLS,CRITIQOM LIMITED,03/11/2017,"1,073.05",PRINTING,V001187785
ROCHDALE BOROUGH COUNCIL,24/11/2017,ECONOMY DIRECTORATE,LINK4LIFE CHARITY,24/11/2017,"6,000.00",ACTIVITIES,V001187790
ROCHDALE BOROUGH COUNCIL,02/11/2017,LEARNING DIS & MENTAL HEALTH,CROSSROADS CARE IN GREATER MANCHESTER,02/11/2017,"1,169.52",PERSONAL BUDGETS - MANAGED,V001187793
ROCHDALE BOROUGH COUNCIL,02/11/2017,LEARNING DIS & MENTAL HEALTH,CROSSROADS CARE IN GREATER MANCHESTER,02/11/2017,631.84,PERSONAL BUDGETS - MANAGED,V001187795
ROCHDALE BOROUGH COUNCIL,02/11/2017,ECONOMY DIRECTORATE,REDACTED - PERSONAL DATA,02/11/2017,"1,175.49",GRANTS TO OTHER BODIES,V001187800
ROCHDALE BOROUGH COUNCIL,02/11/2017,ECONOMY DIRECTORATE,REDACTED - PERSONAL DATA,02/11/2017,"5,780.05",GRANTS TO OTHER BODIES,V001187801
ROCHDALE BOROUGH COUNCIL,02/11/2017,ECONOMY DIRECTORATE,HEATSENSE,02/11/2017,"4,610.50",GRANTS TO THE NON VOLUNTARY SECTOR,V001187802
ROCHDALE BOROUGH COUNCIL,02/11/2017,ECONOMY DIRECTORATE,MIDDLETON TOWN CENTRE MANAGEMENT CO LTD,02/11/2017,"8,750.00",GRANTS TO THE NON VOLUNTARY SECTOR,V001187803
ROCHDALE BOROUGH COUNCIL,02/11/2017,ECONOMY DIRECTORATE,NAYLORS EQUESTRIAN LTD,02/11/2017,"23,426.00",GRANTS TO THE NON VOLUNTARY SECTOR,V001187805
ROCHDALE BOROUGH COUNCIL,13/11/2017,NEIGHBOURHOODS AND ENVIRONMENT,PIONEER TREE SERVICES LIMITED,13/11/2017,"4,750.00",EQUIPMENT - GENERAL,V001187810
ROCHDALE BOROUGH COUNCIL,02/11/2017,NEIGHBOURHOODS AND ENVIRONMENT,PETERS LIMITED,02/11/2017,850.90,REFERENCE BOOKS/NEWSPAPERS/PERIODICALS,V001187812
ROCHDALE BOROUGH COUNCIL,02/11/2017,RESOURCES,ZURICH MUNICIPAL,02/11/2017,"49,400.00",TRANSACTIONS-EXPENDITURE,V001187828
ROCHDALE BOROUGH COUNCIL,02/11/2017,PHYSICAL DIS & OLDER PEOPLE,STANNAH LIFT SERVICES LTD,02/11/2017,"2,973.00",MINOR BUILDING WORKS,V001187836
ROCHDALE BOROUGH COUNCIL,02/11/2017,PHYSICAL DIS & OLDER PEOPLE,STANNAH LIFT SERVICES LTD,02/11/2017,"2,251.00",MINOR BUILDING WORKS,V001187837
ROCHDALE BOROUGH COUNCIL,02/11/2017,PHYSICAL DIS & OLDER PEOPLE,STANNAH LIFT SERVICES LTD,02/11/2017,"4,337.00",MINOR BUILDING WORKS,V001187838
ROCHDALE BOROUGH COUNCIL,02/11/2017,NEIGHBOURHOODS AND ENVIRONMENT,CP DAVIDSON AND SONS LTD,02/11/2017,"1,600.00",TRANSACTIONS-EXPENDITURE,V001187840
ROCHDALE BOROUGH COUNCIL,02/11/2017,NEIGHBOURHOODS AND ENVIRONMENT,CP DAVIDSON AND SONS LTD,02/11/2017,"1,600.00",TRANSACTIONS-EXPENDITURE,V001187841
ROCHDALE BOROUGH COUNCIL,20/11/2017,CHILDREN�S SOCIAL CARE,OFSTED,20/11/2017,"2,344.00",FEES / COMMISSION,V001187842
ROCHDALE BOROUGH COUNCIL,09/11/2017,EARLY HELP AND SCHOOLS,ROSS CARE,09/11/2017,"9,272.87",EQUIPMENT - GENERAL,V001187843
ROCHDALE BOROUGH COUNCIL,03/11/2017,CHILDREN�S SOCIAL CARE,REDACTED - PERSONAL DATA,03/11/2017,560.00,FOSTER PARENTS BASIC ALLOWANCE,V001187844
ROCHDALE BOROUGH COUNCIL,03/11/2017,CHILDREN�S SOCIAL CARE,REDACTED - PERSONAL DATA,03/11/2017,560.00,FOSTER PARENTS BASIC ALLOWANCE,V001187844
ROCHDALE BOROUGH COUNCIL,03/11/2017,CHILDREN�S SOCIAL CARE,REDACTED - PERSONAL DATA,03/11/2017,699.76,FOSTER PARENTS BASIC ALLOWANCE,V001187846
ROCHDALE BOROUGH COUNCIL,03/11/2017,CHILDREN�S SOCIAL CARE,REDACTED - PERSONAL DATA,03/11/2017,560.00,FOSTER PARENTS BASIC ALLOWANCE,V001187857
ROCHDALE BOROUGH COUNCIL,03/11/2017,CHILDREN�S SOCIAL CARE,REDACTED - PERSONAL DATA,03/11/2017,560.00,FOSTER PARENTS BASIC ALLOWANCE,V001187857
ROCHDALE BOROUGH COUNCIL,03/11/2017,CHILDREN�S SOCIAL CARE,REDACTED - PERSONAL DATA,03/11/2017,560.00,FOSTER PARENTS BASIC ALLOWANCE,V001187860
ROCHDALE BOROUGH COUNCIL,03/11/2017,CHILDREN�S SOCIAL CARE,REDACTED - PERSONAL DATA,03/11/2017,560.00,FOSTER PARENTS BASIC ALLOWANCE,V001187860
ROCHDALE BOROUGH COUNCIL,03/11/2017,CHILDREN�S SOCIAL CARE,REDACTED - PERSONAL DATA,03/11/2017,560.00,FOSTER PARENTS BASIC ALLOWANCE,V001187860
ROCHDALE BOROUGH COUNCIL,03/11/2017,CHILDREN�S SOCIAL CARE,REDACTED - PERSONAL DATA,03/11/2017,560.00,FOSTER PARENTS BASIC ALLOWANCE,V001187860
ROCHDALE BOROUGH COUNCIL,03/11/2017,CHILDREN�S SOCIAL CARE,REDACTED - PERSONAL DATA,03/11/2017,587.66,FOSTER PARENTS BASIC ALLOWANCE,V001187874
ROCHDALE BOROUGH COUNCIL,03/11/2017,CHILDREN�S SOCIAL CARE,REDACTED - PERSONAL DATA,03/11/2017,560.00,FOSTER PARENTS BASIC ALLOWANCE,V001187878
ROCHDALE BOROUGH COUNCIL,03/11/2017,CHILDREN�S SOCIAL CARE,REDACTED - PERSONAL DATA,03/11/2017,560.00,FOSTER PARENTS BASIC ALLOWANCE,V001187878
ROCHDALE BOROUGH COUNCIL,03/11/2017,CHILDREN�S SOCIAL CARE,REDACTED - PERSONAL DATA,03/11/2017,560.00,FOSTER PARENTS BASIC ALLOWANCE,V001187878
ROCHDALE BOROUGH COUNCIL,03/11/2017,CHILDREN�S SOCIAL CARE,REDACTED - PERSONAL DATA,03/11/2017,560.00,FOSTER PARENTS BASIC ALLOWANCE,V001187878
ROCHDALE BOROUGH COUNCIL,03/11/2017,CHILDREN�S SOCIAL CARE,REDACTED - PERSONAL DATA,03/11/2017,558.66,SUBSIDISED ADOPTERS PMTS,V001187881
ROCHDALE BOROUGH COUNCIL,03/11/2017,LEARNING DIS & MENTAL HEALTH,REDACTED - PERSONAL DATA,03/11/2017,827.64,CONTRACTS,V001187882
ROCHDALE BOROUGH COUNCIL,03/11/2017,CHILDREN�S SOCIAL CARE,REDACTED - PERSONAL DATA,03/11/2017,560.00,FOSTER PARENTS BASIC ALLOWANCE,V001187887
ROCHDALE BOROUGH COUNCIL,03/11/2017,CHILDREN�S SOCIAL CARE,REDACTED - PERSONAL DATA,03/11/2017,560.00,FOSTER PARENTS BASIC ALLOWANCE,V001187887
ROCHDALE BOROUGH COUNCIL,03/11/2017,CHILDREN�S SOCIAL CARE,REDACTED - PERSONAL DATA,03/11/2017,560.00,FOSTER PARENTS BASIC ALLOWANCE,V001187887
ROCHDALE BOROUGH COUNCIL,03/11/2017,CHILDREN�S SOCIAL CARE,REDACTED - PERSONAL DATA,03/11/2017,627.96,FOSTER PARENTS BASIC ALLOWANCE,V001187888
ROCHDALE BOROUGH COUNCIL,03/11/2017,CHILDREN�S SOCIAL CARE,REDACTED - PERSONAL DATA,03/11/2017,560.00,FOSTER PARENTS BASIC ALLOWANCE,V001187892
ROCHDALE BOROUGH COUNCIL,03/11/2017,CHILDREN�S SOCIAL CARE,REDACTED - PERSONAL DATA,03/11/2017,560.00,FOSTER PARENTS BASIC ALLOWANCE,V001187892
ROCHDALE BOROUGH COUNCIL,03/11/2017,CHILDREN�S SOCIAL CARE,REDACTED - PERSONAL DATA,03/11/2017,560.00,FOSTER PARENTS BASIC ALLOWANCE,V001187899
ROCHDALE BOROUGH COUNCIL,03/11/2017,CHILDREN�S SOCIAL CARE,REDACTED - PERSONAL DATA,03/11/2017,560.00,FOSTER PARENTS BASIC ALLOWANCE,V001187899
ROCHDALE BOROUGH COUNCIL,03/11/2017,CHILDREN�S SOCIAL CARE,REDACTED - PERSONAL DATA,03/11/2017,560.00,FOSTER PARENTS BASIC ALLOWANCE,V001187899
ROCHDALE BOROUGH COUNCIL,03/11/2017,EARLY HELP AND SCHOOLS,REDACTED - PERSONAL DATA,03/11/2017,914.96,FOSTER PARENTS BASIC ALLOWANCE,V001187910
ROCHDALE BOROUGH COUNCIL,03/11/2017,CHILDREN�S SOCIAL CARE,REDACTED - PERSONAL DATA,03/11/2017,"1,032.43",SUBSIDISED ADOPTERS PMTS,V001187935
ROCHDALE BOROUGH COUNCIL,03/11/2017,CHILDREN�S SOCIAL CARE,REDACTED - PERSONAL DATA,03/11/2017,"1,032.43",SUBSIDISED ADOPTERS PMTS,V001187935
ROCHDALE BOROUGH COUNCIL,03/11/2017,CHILDREN�S SOCIAL CARE,REDACTED - PERSONAL DATA,03/11/2017,"1,196.74",FOSTER PARENTS BASIC ALLOWANCE,V001187936
ROCHDALE BOROUGH COUNCIL,03/11/2017,EARLY HELP AND SCHOOLS,REDACTED - PERSONAL DATA,03/11/2017,914.96,FOSTER PARENTS BASIC ALLOWANCE,V001187942
ROCHDALE BOROUGH COUNCIL,03/11/2017,CHILDREN�S SOCIAL CARE,REDACTED - PERSONAL DATA,03/11/2017,684.34,SUBSIDISED ADOPTERS PMTS,V001187944
ROCHDALE BOROUGH COUNCIL,03/11/2017,CHILDREN�S SOCIAL CARE,REDACTED - PERSONAL DATA,03/11/2017,684.34,SUBSIDISED ADOPTERS PMTS,V001187944
ROCHDALE BOROUGH COUNCIL,03/11/2017,CHILDREN�S SOCIAL CARE,REDACTED - PERSONAL DATA,03/11/2017,668.00,FOSTER PARENTS BASIC ALLOWANCE,V001187945
ROCHDALE BOROUGH COUNCIL,03/11/2017,CHILDREN�S SOCIAL CARE,REDACTED - PERSONAL DATA,03/11/2017,668.00,FOSTER PARENTS BASIC ALLOWANCE,V001187945
ROCHDALE BOROUGH COUNCIL,03/11/2017,CHILDREN�S SOCIAL CARE,REDACTED - PERSONAL DATA,03/11/2017,560.00,FOSTER PARENTS BASIC ALLOWANCE,V001187956
ROCHDALE BOROUGH COUNCIL,03/11/2017,CHILDREN�S SOCIAL CARE,REDACTED - PERSONAL DATA,03/11/2017,560.00,FOSTER PARENTS BASIC ALLOWANCE,V001187957
ROCHDALE BOROUGH COUNCIL,03/11/2017,CHILDREN�S SOCIAL CARE,REDACTED - PERSONAL DATA,03/11/2017,560.00,FOSTER PARENTS BASIC ALLOWANCE,V001187965
ROCHDALE BOROUGH COUNCIL,03/11/2017,CHILDREN�S SOCIAL CARE,REDACTED - PERSONAL DATA,03/11/2017,560.00,FOSTER PARENTS BASIC ALLOWANCE,V001187965
ROCHDALE BOROUGH COUNCIL,03/11/2017,CHILDREN�S SOCIAL CARE,REDACTED - PERSONAL DATA,03/11/2017,560.00,FOSTER PARENTS BASIC ALLOWANCE,V001187968
ROCHDALE BOROUGH COUNCIL,03/11/2017,CHILDREN�S SOCIAL CARE,REDACTED - PERSONAL DATA,03/11/2017,560.00,FOSTER PARENTS BASIC ALLOWANCE,V001187968
ROCHDALE BOROUGH COUNCIL,03/11/2017,CHILDREN�S SOCIAL CARE,REDACTED - PERSONAL DATA,03/11/2017,560.00,FOSTER PARENTS BASIC ALLOWANCE,V001187968
ROCHDALE BOROUGH COUNCIL,03/11/2017,CHILDREN�S SOCIAL CARE,REDACTED - PERSONAL DATA,03/11/2017,560.00,FOSTER PARENTS BASIC ALLOWANCE,V001187968
ROCHDALE BOROUGH COUNCIL,03/11/2017,CHILDREN�S SOCIAL CARE,REDACTED - PERSONAL DATA,03/11/2017,500.00,SUBSIDISED ADOPTERS PMTS,V001187978
ROCHDALE BOROUGH COUNCIL,03/11/2017,CHILDREN�S SOCIAL CARE,REDACTED - PERSONAL DATA,03/11/2017,500.00,SUBSIDISED ADOPTERS PMTS,V001187978
ROCHDALE BOROUGH COUNCIL,03/11/2017,CHILDREN�S SOCIAL CARE,REDACTED - PERSONAL DATA,03/11/2017,532.14,FOSTER PARENTS BASIC ALLOWANCE,V001187979
ROCHDALE BOROUGH COUNCIL,03/11/2017,CHILDREN�S SOCIAL CARE,REDACTED - PERSONAL DATA,03/11/2017,560.00,FOSTER PARENTS BASIC ALLOWANCE,V001187983
ROCHDALE BOROUGH COUNCIL,03/11/2017,CHILDREN�S SOCIAL CARE,REDACTED - PERSONAL DATA,03/11/2017,560.00,FOSTER PARENTS BASIC ALLOWANCE,V001187983
ROCHDALE BOROUGH COUNCIL,03/11/2017,CHILDREN�S SOCIAL CARE,REDACTED - PERSONAL DATA,03/11/2017,"1,244.43",FOSTER PARENTS BASIC ALLOWANCE,V001187993
ROCHDALE BOROUGH COUNCIL,03/11/2017,CHILDREN�S SOCIAL CARE,REDACTED - PERSONAL DATA,03/11/2017,560.00,FOSTER PARENTS BASIC ALLOWANCE,V001187995
ROCHDALE BOROUGH COUNCIL,03/11/2017,CHILDREN�S SOCIAL CARE,REDACTED - PERSONAL DATA,03/11/2017,560.00,FOSTER PARENTS BASIC ALLOWANCE,V001187995
ROCHDALE BOROUGH COUNCIL,03/11/2017,CHILDREN�S SOCIAL CARE,REDACTED - PERSONAL DATA,03/11/2017,560.00,FOSTER PARENTS BASIC ALLOWANCE,V001188003
ROCHDALE BOROUGH COUNCIL,03/11/2017,CHILDREN�S SOCIAL CARE,REDACTED - PERSONAL DATA,03/11/2017,560.00,FOSTER PARENTS BASIC ALLOWANCE,V001188003
ROCHDALE BOROUGH COUNCIL,03/11/2017,CHILDREN�S SOCIAL CARE,REDACTED - PERSONAL DATA,03/11/2017,552.00,FOSTER PARENTS BASIC ALLOWANCE,V001188011
ROCHDALE BOROUGH COUNCIL,03/11/2017,CHILDREN�S SOCIAL CARE,REDACTED - PERSONAL DATA,03/11/2017,641.86,FOSTER PARENTS BASIC ALLOWANCE,V001188013
ROCHDALE BOROUGH COUNCIL,03/11/2017,CHILDREN�S SOCIAL CARE,REDACTED - PERSONAL DATA,03/11/2017,560.00,FOSTER PARENTS BASIC ALLOWANCE,V001188039
ROCHDALE BOROUGH COUNCIL,03/11/2017,CHILDREN�S SOCIAL CARE,REDACTED - PERSONAL DATA,03/11/2017,560.00,FOSTER PARENTS BASIC ALLOWANCE,V001188039
ROCHDALE BOROUGH COUNCIL,03/11/2017,CHILDREN�S SOCIAL CARE,REDACTED - PERSONAL DATA,03/11/2017,"1,124.14",PROFESSIONAL FEES,V001188049
ROCHDALE BOROUGH COUNCIL,03/11/2017,CHILDREN�S SOCIAL CARE,REDACTED - PERSONAL DATA,03/11/2017,"1,124.14",FOSTER PARENTS BASIC ALLOWANCE,V001188051
ROCHDALE BOROUGH COUNCIL,03/11/2017,CHILDREN�S SOCIAL CARE,REDACTED - PERSONAL DATA,03/11/2017,560.00,FOSTER PARENTS BASIC ALLOWANCE,V001188051
ROCHDALE BOROUGH COUNCIL,03/11/2017,CHILDREN�S SOCIAL CARE,REDACTED - PERSONAL DATA,03/11/2017,746.94,FOSTER PARENTS BASIC ALLOWANCE,V001188053
ROCHDALE BOROUGH COUNCIL,03/11/2017,CHILDREN�S SOCIAL CARE,REDACTED - PERSONAL DATA,03/11/2017,760.00,FOSTER PARENTS BASIC ALLOWANCE,V001188059
ROCHDALE BOROUGH COUNCIL,03/11/2017,CHILDREN�S SOCIAL CARE,REDACTED - PERSONAL DATA,03/11/2017,805.00,FOSTER PARENTS BASIC ALLOWANCE,V001188063
ROCHDALE BOROUGH COUNCIL,03/11/2017,CHILDREN�S SOCIAL CARE,REDACTED - PERSONAL DATA,03/11/2017,"1,124.14",FOSTER PARENTS BASIC ALLOWANCE,V001188069
ROCHDALE BOROUGH COUNCIL,03/11/2017,CHILDREN�S SOCIAL CARE,REDACTED - PERSONAL DATA,03/11/2017,770.00,FOSTER PARENTS BASIC ALLOWANCE,V001188077
ROCHDALE BOROUGH COUNCIL,03/11/2017,CHILDREN�S SOCIAL CARE,REDACTED - PERSONAL DATA,03/11/2017,"1,124.14",FOSTER PARENTS BASIC ALLOWANCE,V001188097
ROCHDALE BOROUGH COUNCIL,03/11/2017,CHILDREN�S SOCIAL CARE,REDACTED - PERSONAL DATA,03/11/2017,560.00,FOSTER PARENTS BASIC ALLOWANCE,V001188097
ROCHDALE BOROUGH COUNCIL,03/11/2017,CHILDREN�S SOCIAL CARE,REDACTED - PERSONAL DATA,03/11/2017,560.00,FOSTER PARENTS BASIC ALLOWANCE,V001188097
ROCHDALE BOROUGH COUNCIL,03/11/2017,CHILDREN�S SOCIAL CARE,REDACTED - PERSONAL DATA,03/11/2017,560.00,FOSTER PARENTS BASIC ALLOWANCE,V001188097
ROCHDALE BOROUGH COUNCIL,03/11/2017,CHILDREN�S SOCIAL CARE,REDACTED - PERSONAL DATA,03/11/2017,560.00,FOSTER PARENTS BASIC ALLOWANCE,V001188097
ROCHDALE BOROUGH COUNCIL,03/11/2017,CHILDREN�S SOCIAL CARE,REDACTED - PERSONAL DATA,03/11/2017,758.60,FOSTER PARENTS BASIC ALLOWANCE,V001188099
ROCHDALE BOROUGH COUNCIL,03/11/2017,CHILDREN�S SOCIAL CARE,REDACTED - PERSONAL DATA,03/11/2017,756.00,FOSTER PARENTS BASIC ALLOWANCE,V001188100
ROCHDALE BOROUGH COUNCIL,03/11/2017,CHILDREN�S SOCIAL CARE,REDACTED - PERSONAL DATA,03/11/2017,-504.00,FOSTER PARENTS BASIC ALLOWANCE,V001188100
ROCHDALE BOROUGH COUNCIL,03/11/2017,CHILDREN�S SOCIAL CARE,REDACTED - PERSONAL DATA,03/11/2017,896.74,FOSTER PARENTS BASIC ALLOWANCE,V001188101
ROCHDALE BOROUGH COUNCIL,03/11/2017,CHILDREN�S SOCIAL CARE,REDACTED - PERSONAL DATA,03/11/2017,626.98,FOSTER PARENTS BASIC ALLOWANCE,V001188101
ROCHDALE BOROUGH COUNCIL,03/11/2017,CHILDREN�S SOCIAL CARE,REDACTED - PERSONAL DATA,03/11/2017,560.00,FOSTER PARENTS BASIC ALLOWANCE,V001188101
ROCHDALE BOROUGH COUNCIL,03/11/2017,CHILDREN�S SOCIAL CARE,REDACTED - PERSONAL DATA,03/11/2017,560.00,FOSTER PARENTS BASIC ALLOWANCE,V001188104
ROCHDALE BOROUGH COUNCIL,03/11/2017,CHILDREN�S SOCIAL CARE,REDACTED - PERSONAL DATA,03/11/2017,560.00,FOSTER PARENTS BASIC ALLOWANCE,V001188106
ROCHDALE BOROUGH COUNCIL,03/11/2017,CHILDREN�S SOCIAL CARE,REDACTED - PERSONAL DATA,03/11/2017,560.00,FOSTER PARENTS BASIC ALLOWANCE,V001188109
ROCHDALE BOROUGH COUNCIL,03/11/2017,CHILDREN�S SOCIAL CARE,REDACTED - PERSONAL DATA,03/11/2017,560.00,FOSTER PARENTS BASIC ALLOWANCE,V001188109
ROCHDALE BOROUGH COUNCIL,03/11/2017,CHILDREN�S SOCIAL CARE,REDACTED - PERSONAL DATA,03/11/2017,560.00,FOSTER PARENTS BASIC ALLOWANCE,V001188109
ROCHDALE BOROUGH COUNCIL,03/11/2017,CHILDREN�S SOCIAL CARE,REDACTED - PERSONAL DATA,03/11/2017,643.00,FOSTER PARENTS BASIC ALLOWANCE,V001188110
ROCHDALE BOROUGH COUNCIL,03/11/2017,LEARNING DIS & MENTAL HEALTH,REDACTED - PERSONAL DATA,03/11/2017,680.80,CONTRACTS,V001188112
ROCHDALE BOROUGH COUNCIL,03/11/2017,CHILDREN�S SOCIAL CARE,REDACTED - PERSONAL DATA,03/11/2017,631.05,YOUNG PEOPLES RENTS,V001188113
ROCHDALE BOROUGH COUNCIL,03/11/2017,CHILDREN�S SOCIAL CARE,REDACTED - PERSONAL DATA,03/11/2017,680.84,FOSTER PARENTS BASIC ALLOWANCE,V001188127
ROCHDALE BOROUGH COUNCIL,03/11/2017,CHILDREN�S SOCIAL CARE,REDACTED - PERSONAL DATA,03/11/2017,768.00,FOSTER PARENTS BASIC ALLOWANCE,V001188138
ROCHDALE BOROUGH COUNCIL,03/11/2017,CHILDREN�S SOCIAL CARE,REDACTED - PERSONAL DATA,03/11/2017,677.66,FOSTER PARENTS BASIC ALLOWANCE,V001188139
ROCHDALE BOROUGH COUNCIL,03/11/2017,CHILDREN�S SOCIAL CARE,REDACTED - PERSONAL DATA,03/11/2017,698.94,FOSTER PARENTS BASIC ALLOWANCE,V001188147
ROCHDALE BOROUGH COUNCIL,03/11/2017,CHILDREN�S SOCIAL CARE,REDACTED - PERSONAL DATA,03/11/2017,698.94,FOSTER PARENTS BASIC ALLOWANCE,V001188147
ROCHDALE BOROUGH COUNCIL,03/11/2017,CHILDREN�S SOCIAL CARE,REDACTED - PERSONAL DATA,03/11/2017,698.94,FOSTER PARENTS BASIC ALLOWANCE,V001188147
ROCHDALE BOROUGH COUNCIL,03/11/2017,CHILDREN�S SOCIAL CARE,REDACTED - PERSONAL DATA,03/11/2017,727.07,EQUIPMENT - GENERAL,V001188150
ROCHDALE BOROUGH COUNCIL,03/11/2017,CHILDREN�S SOCIAL CARE,REDACTED - PERSONAL DATA,03/11/2017,"1,884.76",FOSTER PARENTS BASIC ALLOWANCE,V001188152
ROCHDALE BOROUGH COUNCIL,03/11/2017,CHILDREN�S SOCIAL CARE,REDACTED - PERSONAL DATA,03/11/2017,692.65,ALLOWANCES,V001188153
ROCHDALE BOROUGH COUNCIL,03/11/2017,NEIGHBOURHOODS AND ENVIRONMENT,Oracle Corporation UK Limited,03/11/2017,"37,849.58",SOFTWARE,V001188165
ROCHDALE BOROUGH COUNCIL,13/11/2017,NEIGHBOURHOODS AND ENVIRONMENT,STHREE PARTNERSHIP LLP,13/11/2017,"1,875.00",AGENCY STAFF,V001188167
ROCHDALE BOROUGH COUNCIL,13/11/2017,NEIGHBOURHOODS AND ENVIRONMENT,STHREE PARTNERSHIP LLP,13/11/2017,"1,800.00",AGENCY STAFF,V001188168
ROCHDALE BOROUGH COUNCIL,10/11/2017,NEIGHBOURHOODS AND ENVIRONMENT,XMA LIMITED,10/11/2017,"3,789.50",PURCHASE OF ICT HARDWARE,V001188184
ROCHDALE BOROUGH COUNCIL,14/11/2017,EARLY HELP AND SCHOOLS,LIQUIDLOGIC LTD,14/11/2017,"12,000.00",SOFTWARE,V001188186
ROCHDALE BOROUGH COUNCIL,10/11/2017,ECONOMY DIRECTORATE,WILDE CONSULTING ENGINEERS,10/11/2017,"3,987.83",CONDITION SURVEYS,V001188218
ROCHDALE BOROUGH COUNCIL,02/11/2017,NEIGHBOURHOODS AND ENVIRONMENT,UNITED UTILITIES WATER PLC,02/11/2017,849.78,EQUIPMENT - GENERAL,V001188464
ROCHDALE BOROUGH COUNCIL,02/11/2017,NEIGHBOURHOODS AND ENVIRONMENT,UNITED UTILITIES WATER PLC,02/11/2017,849.78,EQUIPMENT - GENERAL,V001188465
ROCHDALE BOROUGH COUNCIL,14/11/2017,PHYSICAL DIS & OLDER PEOPLE,ROYAL VOLUNTARY SERVICE,14/11/2017,"6,500.00",SERVICE LEVEL AGREEMENTS,V001188467
ROCHDALE BOROUGH COUNCIL,02/11/2017,PHYSICAL DIS & OLDER PEOPLE,NHS HEYWOOD MIDDLETON AND ROCHDALE CCG,02/11/2017,"43,656.03",SOCIAL SERVICES OTHER,V001188470
ROCHDALE BOROUGH COUNCIL,03/11/2017,RESOURCES,CRITIQOM LIMITED,03/11/2017,"2,490.46",PRINTING & STATIONERY,V001188471
ROCHDALE BOROUGH COUNCIL,03/11/2017,RESOURCES,CRITIQOM LIMITED,03/11/2017,765.48,PRINTING & STATIONERY,V001188472
ROCHDALE BOROUGH COUNCIL,02/11/2017,RESOURCES,CRITIQOM LIMITED,02/11/2017,"1,869.70",PRINTING & STATIONERY,V001188473
ROCHDALE BOROUGH COUNCIL,02/11/2017,RESOURCES,CRITIQOM LIMITED,02/11/2017,672.72,PRINTING & STATIONERY,V001188474
ROCHDALE BOROUGH COUNCIL,27/11/2017,ECONOMY DIRECTORATE,MANTRA LEARNING LTD,27/11/2017,630.00,TRAINING-NON QUALIFICATION,V001188479
ROCHDALE BOROUGH COUNCIL,10/11/2017,PHYSICAL DIS & OLDER PEOPLE,GARY HUMPHREYS,10/11/2017,"1,200.00",TRAINING,V001188493
ROCHDALE BOROUGH COUNCIL,10/11/2017,NEIGHBOURHOODS AND ENVIRONMENT,PROBRUSH,10/11/2017,850.46,EQUIPMENT - GENERAL,V001188504
ROCHDALE BOROUGH COUNCIL,10/11/2017,NEIGHBOURHOODS AND ENVIRONMENT,PROBRUSH,10/11/2017,849.60,EQUIPMENT - GENERAL,V001188504
ROCHDALE BOROUGH COUNCIL,10/11/2017,NEIGHBOURHOODS AND ENVIRONMENT,PROBRUSH,10/11/2017,849.60,EQUIPMENT - GENERAL,V001188504
ROCHDALE BOROUGH COUNCIL,10/11/2017,NEIGHBOURHOODS AND ENVIRONMENT,PROBRUSH,10/11/2017,849.60,EQUIPMENT - GENERAL,V001188504
ROCHDALE BOROUGH COUNCIL,10/11/2017,NEIGHBOURHOODS AND ENVIRONMENT,PROBRUSH,10/11/2017,849.60,EQUIPMENT - GENERAL,V001188504
ROCHDALE BOROUGH COUNCIL,03/11/2017,CHILDREN�S SOCIAL CARE,REED SPECIALIST RECRUITMENT LTD,03/11/2017,"1,580.07",AGENCY STAFF,V001188511
ROCHDALE BOROUGH COUNCIL,03/11/2017,CHILDREN�S SOCIAL CARE,REED SPECIALIST RECRUITMENT LTD,03/11/2017,"1,578.72",AGENCY STAFF,V001188511
ROCHDALE BOROUGH COUNCIL,03/11/2017,CHILDREN�S SOCIAL CARE,REED SPECIALIST RECRUITMENT LTD,03/11/2017,"1,454.40",AGENCY STAFF,V001188511
ROCHDALE BOROUGH COUNCIL,03/11/2017,RESOURCES,REED SPECIALIST RECRUITMENT LTD,03/11/2017,"1,380.40",AGENCY STAFF,V001188511
ROCHDALE BOROUGH COUNCIL,03/11/2017,CHILDREN�S SOCIAL CARE,REED SPECIALIST RECRUITMENT LTD,03/11/2017,"1,331.45",AGENCY STAFF,V001188511
ROCHDALE BOROUGH COUNCIL,03/11/2017,CHILDREN�S SOCIAL CARE,REED SPECIALIST RECRUITMENT LTD,03/11/2017,"1,331.45",AGENCY STAFF,V001188511
ROCHDALE BOROUGH COUNCIL,03/11/2017,CHILDREN�S SOCIAL CARE,REED SPECIALIST RECRUITMENT LTD,03/11/2017,"1,018.54",AGENCY STAFF,V001188511
ROCHDALE BOROUGH COUNCIL,03/11/2017,EARLY HELP AND SCHOOLS,REED SPECIALIST RECRUITMENT LTD,03/11/2017,"1,018.54",AGENCY STAFF,V001188511
ROCHDALE BOROUGH COUNCIL,03/11/2017,CHILDREN�S SOCIAL CARE,REED SPECIALIST RECRUITMENT LTD,03/11/2017,"1,018.54",AGENCY STAFF,V001188511
ROCHDALE BOROUGH COUNCIL,03/11/2017,PROPERTY AND HIGHWAYS,REED SPECIALIST RECRUITMENT LTD,03/11/2017,971.23,AGENCY STAFF,V001188511
ROCHDALE BOROUGH COUNCIL,03/11/2017,PROPERTY AND HIGHWAYS,REED SPECIALIST RECRUITMENT LTD,03/11/2017,917.55,AGENCY STAFF,V001188511
ROCHDALE BOROUGH COUNCIL,03/11/2017,CHILDREN�S SOCIAL CARE,REED SPECIALIST RECRUITMENT LTD,03/11/2017,897.92,AGENCY STAFF,V001188511
ROCHDALE BOROUGH COUNCIL,03/11/2017,EARLY HELP AND SCHOOLS,REED SPECIALIST RECRUITMENT LTD,03/11/2017,897.70,AGENCY STAFF,V001188511
ROCHDALE BOROUGH COUNCIL,03/11/2017,CHILDREN�S SOCIAL CARE,REED SPECIALIST RECRUITMENT LTD,03/11/2017,859.85,AGENCY STAFF,V001188511
ROCHDALE BOROUGH COUNCIL,03/11/2017,PHYSICAL DIS & OLDER PEOPLE,REED SPECIALIST RECRUITMENT LTD,03/11/2017,825.84,AGENCY STAFF,V001188511
ROCHDALE BOROUGH COUNCIL,03/11/2017,EARLY HELP AND SCHOOLS,REED SPECIALIST RECRUITMENT LTD,03/11/2017,812.08,AGENCY STAFF,V001188511
ROCHDALE BOROUGH COUNCIL,03/11/2017,LEARNING DIS & MENTAL HEALTH,REED SPECIALIST RECRUITMENT LTD,03/11/2017,798.31,AGENCY STAFF,V001188511
ROCHDALE BOROUGH COUNCIL,03/11/2017,PROPERTY AND HIGHWAYS,REED SPECIALIST RECRUITMENT LTD,03/11/2017,796.41,AGENCY STAFF,V001188511
ROCHDALE BOROUGH COUNCIL,03/11/2017,PROPERTY AND HIGHWAYS,REED SPECIALIST RECRUITMENT LTD,03/11/2017,791.99,AGENCY STAFF,V001188511
ROCHDALE BOROUGH COUNCIL,03/11/2017,CHILDREN�S SOCIAL CARE,REED SPECIALIST RECRUITMENT LTD,03/11/2017,787.93,AGENCY STAFF,V001188511
ROCHDALE BOROUGH COUNCIL,03/11/2017,NEIGHBOURHOODS AND ENVIRONMENT,REED SPECIALIST RECRUITMENT LTD,03/11/2017,755.84,AGENCY STAFF,V001188511
ROCHDALE BOROUGH COUNCIL,03/11/2017,PROPERTY AND HIGHWAYS,REED SPECIALIST RECRUITMENT LTD,03/11/2017,744.72,AGENCY STAFF,V001188511
ROCHDALE BOROUGH COUNCIL,03/11/2017,NEIGHBOURHOODS AND ENVIRONMENT,REED SPECIALIST RECRUITMENT LTD,03/11/2017,726.43,AGENCY STAFF,V001188511
ROCHDALE BOROUGH COUNCIL,03/11/2017,NEIGHBOURHOODS AND ENVIRONMENT,REED SPECIALIST RECRUITMENT LTD,03/11/2017,671.95,AGENCY STAFF,V001188511
ROCHDALE BOROUGH COUNCIL,03/11/2017,NEIGHBOURHOODS AND ENVIRONMENT,REED SPECIALIST RECRUITMENT LTD,03/11/2017,637.19,AGENCY STAFF,V001188511
ROCHDALE BOROUGH COUNCIL,03/11/2017,NEIGHBOURHOODS AND ENVIRONMENT,REED SPECIALIST RECRUITMENT LTD,03/11/2017,635.43,AGENCY STAFF,V001188511
ROCHDALE BOROUGH COUNCIL,03/11/2017,NEIGHBOURHOODS AND ENVIRONMENT,REED SPECIALIST RECRUITMENT LTD,03/11/2017,635.43,AGENCY STAFF,V001188511
ROCHDALE BOROUGH COUNCIL,03/11/2017,NEIGHBOURHOODS AND ENVIRONMENT,REED SPECIALIST RECRUITMENT LTD,03/11/2017,635.43,AGENCY STAFF,V001188511
ROCHDALE BOROUGH COUNCIL,03/11/2017,NEIGHBOURHOODS AND ENVIRONMENT,REED SPECIALIST RECRUITMENT LTD,03/11/2017,635.43,AGENCY STAFF,V001188511
ROCHDALE BOROUGH COUNCIL,03/11/2017,NEIGHBOURHOODS AND ENVIRONMENT,REED SPECIALIST RECRUITMENT LTD,03/11/2017,635.43,AGENCY STAFF,V001188511
ROCHDALE BOROUGH COUNCIL,03/11/2017,PUBLIC HEALTH,REED SPECIALIST RECRUITMENT LTD,03/11/2017,596.34,AGENCY STAFF,V001188511
ROCHDALE BOROUGH COUNCIL,03/11/2017,LEARNING DIS & MENTAL HEALTH,REED SPECIALIST RECRUITMENT LTD,03/11/2017,595.85,AGENCY STAFF,V001188511
ROCHDALE BOROUGH COUNCIL,03/11/2017,CHILDREN�S SOCIAL CARE,REED SPECIALIST RECRUITMENT LTD,03/11/2017,594.93,AGENCY STAFF,V001188511
ROCHDALE BOROUGH COUNCIL,03/11/2017,CHILDREN�S SOCIAL CARE,REED SPECIALIST RECRUITMENT LTD,03/11/2017,582.67,AGENCY STAFF,V001188511
ROCHDALE BOROUGH COUNCIL,03/11/2017,PHYSICAL DIS & OLDER PEOPLE,REED SPECIALIST RECRUITMENT LTD,03/11/2017,576.97,AGENCY STAFF,V001188511
ROCHDALE BOROUGH COUNCIL,03/11/2017,NEIGHBOURHOODS AND ENVIRONMENT,REED SPECIALIST RECRUITMENT LTD,03/11/2017,572.73,AGENCY STAFF,V001188511
ROCHDALE BOROUGH COUNCIL,03/11/2017,NEIGHBOURHOODS AND ENVIRONMENT,REED SPECIALIST RECRUITMENT LTD,03/11/2017,572.73,AGENCY STAFF,V001188511
ROCHDALE BOROUGH COUNCIL,03/11/2017,NEIGHBOURHOODS AND ENVIRONMENT,REED SPECIALIST RECRUITMENT LTD,03/11/2017,572.17,AGENCY STAFF,V001188511
ROCHDALE BOROUGH COUNCIL,03/11/2017,NEIGHBOURHOODS AND ENVIRONMENT,REED SPECIALIST RECRUITMENT LTD,03/11/2017,569.43,AGENCY STAFF,V001188511
ROCHDALE BOROUGH COUNCIL,03/11/2017,PROPERTY AND HIGHWAYS,REED SPECIALIST RECRUITMENT LTD,03/11/2017,568.85,AGENCY STAFF,V001188511
ROCHDALE BOROUGH COUNCIL,03/11/2017,NEIGHBOURHOODS AND ENVIRONMENT,REED SPECIALIST RECRUITMENT LTD,03/11/2017,555.44,CAPITAL SALARIES,V001188511
ROCHDALE BOROUGH COUNCIL,03/11/2017,NEIGHBOURHOODS AND ENVIRONMENT,REED SPECIALIST RECRUITMENT LTD,03/11/2017,555.30,AGENCY STAFF,V001188511
ROCHDALE BOROUGH COUNCIL,03/11/2017,NEIGHBOURHOODS AND ENVIRONMENT,REED SPECIALIST RECRUITMENT LTD,03/11/2017,552.54,AGENCY STAFF,V001188511
ROCHDALE BOROUGH COUNCIL,03/11/2017,NEIGHBOURHOODS AND ENVIRONMENT,REED SPECIALIST RECRUITMENT LTD,03/11/2017,546.70,AGENCY STAFF,V001188511
ROCHDALE BOROUGH COUNCIL,03/11/2017,NEIGHBOURHOODS AND ENVIRONMENT,REED SPECIALIST RECRUITMENT LTD,03/11/2017,546.70,AGENCY STAFF,V001188511
ROCHDALE BOROUGH COUNCIL,03/11/2017,NEIGHBOURHOODS AND ENVIRONMENT,REED SPECIALIST RECRUITMENT LTD,03/11/2017,538.73,AGENCY STAFF,V001188511
ROCHDALE BOROUGH COUNCIL,03/11/2017,NEIGHBOURHOODS AND ENVIRONMENT,REED SPECIALIST RECRUITMENT LTD,03/11/2017,533.16,AGENCY STAFF,V001188511
ROCHDALE BOROUGH COUNCIL,03/11/2017,NEIGHBOURHOODS AND ENVIRONMENT,REED SPECIALIST RECRUITMENT LTD,03/11/2017,531.00,AGENCY STAFF,V001188511
ROCHDALE BOROUGH COUNCIL,03/11/2017,NEIGHBOURHOODS AND ENVIRONMENT,REED SPECIALIST RECRUITMENT LTD,03/11/2017,524.92,AGENCY STAFF,V001188511
ROCHDALE BOROUGH COUNCIL,03/11/2017,NEIGHBOURHOODS AND ENVIRONMENT,REED SPECIALIST RECRUITMENT LTD,03/11/2017,524.92,AGENCY STAFF,V001188511
ROCHDALE BOROUGH COUNCIL,03/11/2017,NEIGHBOURHOODS AND ENVIRONMENT,REED SPECIALIST RECRUITMENT LTD,03/11/2017,524.92,AGENCY STAFF,V001188511
ROCHDALE BOROUGH COUNCIL,03/11/2017,NEIGHBOURHOODS AND ENVIRONMENT,REED SPECIALIST RECRUITMENT LTD,03/11/2017,524.92,AGENCY STAFF,V001188511
ROCHDALE BOROUGH COUNCIL,03/11/2017,NEIGHBOURHOODS AND ENVIRONMENT,REED SPECIALIST RECRUITMENT LTD,03/11/2017,524.92,AGENCY STAFF,V001188511
ROCHDALE BOROUGH COUNCIL,03/11/2017,NEIGHBOURHOODS AND ENVIRONMENT,REED SPECIALIST RECRUITMENT LTD,03/11/2017,524.92,AGENCY STAFF,V001188511
ROCHDALE BOROUGH COUNCIL,03/11/2017,NEIGHBOURHOODS AND ENVIRONMENT,REED SPECIALIST RECRUITMENT LTD,03/11/2017,524.92,AGENCY STAFF,V001188511
ROCHDALE BOROUGH COUNCIL,03/11/2017,NEIGHBOURHOODS AND ENVIRONMENT,REED SPECIALIST RECRUITMENT LTD,03/11/2017,524.92,AGENCY STAFF,V001188511
ROCHDALE BOROUGH COUNCIL,03/11/2017,NEIGHBOURHOODS AND ENVIRONMENT,REED SPECIALIST RECRUITMENT LTD,03/11/2017,524.92,AGENCY STAFF,V001188511
ROCHDALE BOROUGH COUNCIL,03/11/2017,NEIGHBOURHOODS AND ENVIRONMENT,REED SPECIALIST RECRUITMENT LTD,03/11/2017,524.92,AGENCY STAFF,V001188511
ROCHDALE BOROUGH COUNCIL,03/11/2017,NEIGHBOURHOODS AND ENVIRONMENT,REED SPECIALIST RECRUITMENT LTD,03/11/2017,524.92,AGENCY STAFF,V001188511
ROCHDALE BOROUGH COUNCIL,03/11/2017,NEIGHBOURHOODS AND ENVIRONMENT,REED SPECIALIST RECRUITMENT LTD,03/11/2017,524.92,AGENCY STAFF,V001188511
ROCHDALE BOROUGH COUNCIL,03/11/2017,NEIGHBOURHOODS AND ENVIRONMENT,REED SPECIALIST RECRUITMENT LTD,03/11/2017,524.92,AGENCY STAFF,V001188511
ROCHDALE BOROUGH COUNCIL,03/11/2017,NEIGHBOURHOODS AND ENVIRONMENT,REED SPECIALIST RECRUITMENT LTD,03/11/2017,524.92,AGENCY STAFF,V001188511
ROCHDALE BOROUGH COUNCIL,03/11/2017,NEIGHBOURHOODS AND ENVIRONMENT,REED SPECIALIST RECRUITMENT LTD,03/11/2017,524.92,AGENCY STAFF,V001188511
ROCHDALE BOROUGH COUNCIL,03/11/2017,PROPERTY AND HIGHWAYS,REED SPECIALIST RECRUITMENT LTD,03/11/2017,522.61,AGENCY STAFF,V001188511
ROCHDALE BOROUGH COUNCIL,03/11/2017,NEIGHBOURHOODS AND ENVIRONMENT,REED SPECIALIST RECRUITMENT LTD,03/11/2017,521.30,AGENCY STAFF,V001188511
ROCHDALE BOROUGH COUNCIL,03/11/2017,NEIGHBOURHOODS AND ENVIRONMENT,REED SPECIALIST RECRUITMENT LTD,03/11/2017,504.19,AGENCY STAFF,V001188511
ROCHDALE BOROUGH COUNCIL,03/11/2017,NEIGHBOURHOODS AND ENVIRONMENT,REED SPECIALIST RECRUITMENT LTD,03/11/2017,504.19,AGENCY STAFF,V001188511
ROCHDALE BOROUGH COUNCIL,03/11/2017,CHILDREN�S SOCIAL CARE,REED SPECIALIST RECRUITMENT LTD,03/11/2017,"1,578.72",AGENCY STAFF,V001188519
ROCHDALE BOROUGH COUNCIL,03/11/2017,CHILDREN�S SOCIAL CARE,REED SPECIALIST RECRUITMENT LTD,03/11/2017,"1,454.40",AGENCY STAFF,V001188519
ROCHDALE BOROUGH COUNCIL,03/11/2017,RESOURCES,REED SPECIALIST RECRUITMENT LTD,03/11/2017,"1,380.40",AGENCY STAFF,V001188519
ROCHDALE BOROUGH COUNCIL,03/11/2017,CHILDREN�S SOCIAL CARE,REED SPECIALIST RECRUITMENT LTD,03/11/2017,"1,222.78",AGENCY STAFF,V001188519
ROCHDALE BOROUGH COUNCIL,03/11/2017,CHILDREN�S SOCIAL CARE,REED SPECIALIST RECRUITMENT LTD,03/11/2017,"1,146.00",AGENCY STAFF,V001188519
ROCHDALE BOROUGH COUNCIL,03/11/2017,CHILDREN�S SOCIAL CARE,REED SPECIALIST RECRUITMENT LTD,03/11/2017,"1,118.38",AGENCY STAFF,V001188519
ROCHDALE BOROUGH COUNCIL,03/11/2017,CHILDREN�S SOCIAL CARE,REED SPECIALIST RECRUITMENT LTD,03/11/2017,"1,018.54",AGENCY STAFF,V001188519
ROCHDALE BOROUGH COUNCIL,03/11/2017,EARLY HELP AND SCHOOLS,REED SPECIALIST RECRUITMENT LTD,03/11/2017,"1,018.54",AGENCY STAFF,V001188519
ROCHDALE BOROUGH COUNCIL,03/11/2017,CHILDREN�S SOCIAL CARE,REED SPECIALIST RECRUITMENT LTD,03/11/2017,"1,018.54",AGENCY STAFF,V001188519
ROCHDALE BOROUGH COUNCIL,03/11/2017,PHYSICAL DIS & OLDER PEOPLE,REED SPECIALIST RECRUITMENT LTD,03/11/2017,"1,018.54",AGENCY STAFF,V001188519
ROCHDALE BOROUGH COUNCIL,03/11/2017,CHILDREN�S SOCIAL CARE,REED SPECIALIST RECRUITMENT LTD,03/11/2017,"1,013.62",AGENCY STAFF,V001188519
ROCHDALE BOROUGH COUNCIL,03/11/2017,CHILDREN�S SOCIAL CARE,REED SPECIALIST RECRUITMENT LTD,03/11/2017,"1,013.62",AGENCY STAFF,V001188519
ROCHDALE BOROUGH COUNCIL,03/11/2017,CHILDREN�S SOCIAL CARE,REED SPECIALIST RECRUITMENT LTD,03/11/2017,"1,013.62",AGENCY STAFF,V001188519
ROCHDALE BOROUGH COUNCIL,03/11/2017,CHILDREN�S SOCIAL CARE,REED SPECIALIST RECRUITMENT LTD,03/11/2017,"1,013.62",AGENCY STAFF,V001188519
ROCHDALE BOROUGH COUNCIL,03/11/2017,PROPERTY AND HIGHWAYS,REED SPECIALIST RECRUITMENT LTD,03/11/2017,990.20,AGENCY STAFF,V001188519
ROCHDALE BOROUGH COUNCIL,03/11/2017,PROPERTY AND HIGHWAYS,REED SPECIALIST RECRUITMENT LTD,03/11/2017,966.99,AGENCY STAFF,V001188519
ROCHDALE BOROUGH COUNCIL,03/11/2017,PROPERTY AND HIGHWAYS,REED SPECIALIST RECRUITMENT LTD,03/11/2017,951.97,AGENCY STAFF,V001188519
ROCHDALE BOROUGH COUNCIL,03/11/2017,EARLY HELP AND SCHOOLS,REED SPECIALIST RECRUITMENT LTD,03/11/2017,949.67,AGENCY STAFF,V001188519
ROCHDALE BOROUGH COUNCIL,03/11/2017,EARLY HELP AND SCHOOLS,REED SPECIALIST RECRUITMENT LTD,03/11/2017,897.70,AGENCY STAFF,V001188519
ROCHDALE BOROUGH COUNCIL,03/11/2017,EARLY HELP AND SCHOOLS,REED SPECIALIST RECRUITMENT LTD,03/11/2017,825.84,AGENCY STAFF,V001188519
ROCHDALE BOROUGH COUNCIL,03/11/2017,PROPERTY AND HIGHWAYS,REED SPECIALIST RECRUITMENT LTD,03/11/2017,813.73,AGENCY STAFF,V001188519
ROCHDALE BOROUGH COUNCIL,03/11/2017,LEARNING DIS & MENTAL HEALTH,REED SPECIALIST RECRUITMENT LTD,03/11/2017,798.31,AGENCY STAFF,V001188519
ROCHDALE BOROUGH COUNCIL,03/11/2017,PROPERTY AND HIGHWAYS,REED SPECIALIST RECRUITMENT LTD,03/11/2017,796.41,AGENCY STAFF,V001188519
ROCHDALE BOROUGH COUNCIL,03/11/2017,PROPERTY AND HIGHWAYS,REED SPECIALIST RECRUITMENT LTD,03/11/2017,771.82,AGENCY STAFF,V001188519
ROCHDALE BOROUGH COUNCIL,03/11/2017,NEIGHBOURHOODS AND ENVIRONMENT,REED SPECIALIST RECRUITMENT LTD,03/11/2017,756.03,AGENCY STAFF,V001188519
ROCHDALE BOROUGH COUNCIL,03/11/2017,PROPERTY AND HIGHWAYS,REED SPECIALIST RECRUITMENT LTD,03/11/2017,744.55,AGENCY STAFF,V001188519
ROCHDALE BOROUGH COUNCIL,03/11/2017,CHILDREN�S SOCIAL CARE,REED SPECIALIST RECRUITMENT LTD,03/11/2017,737.62,AGENCY STAFF,V001188519
ROCHDALE BOROUGH COUNCIL,03/11/2017,CHILDREN�S SOCIAL CARE,REED SPECIALIST RECRUITMENT LTD,03/11/2017,725.73,AGENCY STAFF,V001188519
ROCHDALE BOROUGH COUNCIL,03/11/2017,CHILDREN�S SOCIAL CARE,REED SPECIALIST RECRUITMENT LTD,03/11/2017,711.67,AGENCY STAFF,V001188519
ROCHDALE BOROUGH COUNCIL,03/11/2017,NEIGHBOURHOODS AND ENVIRONMENT,REED SPECIALIST RECRUITMENT LTD,03/11/2017,671.95,AGENCY STAFF,V001188519
ROCHDALE BOROUGH COUNCIL,03/11/2017,NEIGHBOURHOODS AND ENVIRONMENT,REED SPECIALIST RECRUITMENT LTD,03/11/2017,635.43,AGENCY STAFF,V001188519
ROCHDALE BOROUGH COUNCIL,03/11/2017,LEARNING DIS & MENTAL HEALTH,REED SPECIALIST RECRUITMENT LTD,03/11/2017,623.25,AGENCY STAFF,V001188519
ROCHDALE BOROUGH COUNCIL,03/11/2017,CHILDREN�S SOCIAL CARE,REED SPECIALIST RECRUITMENT LTD,03/11/2017,616.40,AGENCY STAFF,V001188519
ROCHDALE BOROUGH COUNCIL,03/11/2017,NEIGHBOURHOODS AND ENVIRONMENT,REED SPECIALIST RECRUITMENT LTD,03/11/2017,610.01,LEGAL SERVICES INTERNAL,V001188519
ROCHDALE BOROUGH COUNCIL,03/11/2017,PUBLIC HEALTH,REED SPECIALIST RECRUITMENT LTD,03/11/2017,596.34,AGENCY STAFF,V001188519
ROCHDALE BOROUGH COUNCIL,03/11/2017,PHYSICAL DIS & OLDER PEOPLE,REED SPECIALIST RECRUITMENT LTD,03/11/2017,576.97,AGENCY STAFF,V001188519
ROCHDALE BOROUGH COUNCIL,03/11/2017,PROPERTY AND HIGHWAYS,REED SPECIALIST RECRUITMENT LTD,03/11/2017,568.85,AGENCY STAFF,V001188519
ROCHDALE BOROUGH COUNCIL,03/11/2017,NEIGHBOURHOODS AND ENVIRONMENT,REED SPECIALIST RECRUITMENT LTD,03/11/2017,555.44,CAPITAL SALARIES,V001188519
ROCHDALE BOROUGH COUNCIL,03/11/2017,NEIGHBOURHOODS AND ENVIRONMENT,REED SPECIALIST RECRUITMENT LTD,03/11/2017,538.73,AGENCY STAFF,V001188519
ROCHDALE BOROUGH COUNCIL,03/11/2017,NEIGHBOURHOODS AND ENVIRONMENT,REED SPECIALIST RECRUITMENT LTD,03/11/2017,531.00,AGENCY STAFF,V001188519
ROCHDALE BOROUGH COUNCIL,03/11/2017,NEIGHBOURHOODS AND ENVIRONMENT,REED SPECIALIST RECRUITMENT LTD,03/11/2017,531.00,AGENCY STAFF,V001188519
ROCHDALE BOROUGH COUNCIL,03/11/2017,NEIGHBOURHOODS AND ENVIRONMENT,REED SPECIALIST RECRUITMENT LTD,03/11/2017,531.00,AGENCY STAFF,V001188519
ROCHDALE BOROUGH COUNCIL,03/11/2017,NEIGHBOURHOODS AND ENVIRONMENT,REED SPECIALIST RECRUITMENT LTD,03/11/2017,524.92,AGENCY STAFF,V001188519
ROCHDALE BOROUGH COUNCIL,03/11/2017,NEIGHBOURHOODS AND ENVIRONMENT,REED SPECIALIST RECRUITMENT LTD,03/11/2017,524.92,AGENCY STAFF,V001188519
ROCHDALE BOROUGH COUNCIL,03/11/2017,NEIGHBOURHOODS AND ENVIRONMENT,REED SPECIALIST RECRUITMENT LTD,03/11/2017,524.92,AGENCY STAFF,V001188519
ROCHDALE BOROUGH COUNCIL,03/11/2017,NEIGHBOURHOODS AND ENVIRONMENT,REED SPECIALIST RECRUITMENT LTD,03/11/2017,524.92,AGENCY STAFF,V001188519
ROCHDALE BOROUGH COUNCIL,03/11/2017,NEIGHBOURHOODS AND ENVIRONMENT,REED SPECIALIST RECRUITMENT LTD,03/11/2017,524.92,AGENCY STAFF,V001188519
ROCHDALE BOROUGH COUNCIL,03/11/2017,NEIGHBOURHOODS AND ENVIRONMENT,REED SPECIALIST RECRUITMENT LTD,03/11/2017,524.92,AGENCY STAFF,V001188519
ROCHDALE BOROUGH COUNCIL,03/11/2017,NEIGHBOURHOODS AND ENVIRONMENT,REED SPECIALIST RECRUITMENT LTD,03/11/2017,524.92,AGENCY STAFF,V001188519
ROCHDALE BOROUGH COUNCIL,03/11/2017,NEIGHBOURHOODS AND ENVIRONMENT,REED SPECIALIST RECRUITMENT LTD,03/11/2017,524.92,AGENCY STAFF,V001188519
ROCHDALE BOROUGH COUNCIL,03/11/2017,NEIGHBOURHOODS AND ENVIRONMENT,REED SPECIALIST RECRUITMENT LTD,03/11/2017,524.92,AGENCY STAFF,V001188519
ROCHDALE BOROUGH COUNCIL,03/11/2017,NEIGHBOURHOODS AND ENVIRONMENT,REED SPECIALIST RECRUITMENT LTD,03/11/2017,524.92,AGENCY STAFF,V001188519
ROCHDALE BOROUGH COUNCIL,03/11/2017,NEIGHBOURHOODS AND ENVIRONMENT,REED SPECIALIST RECRUITMENT LTD,03/11/2017,524.92,AGENCY STAFF,V001188519
ROCHDALE BOROUGH COUNCIL,03/11/2017,NEIGHBOURHOODS AND ENVIRONMENT,REED SPECIALIST RECRUITMENT LTD,03/11/2017,524.92,AGENCY STAFF,V001188519
ROCHDALE BOROUGH COUNCIL,03/11/2017,NEIGHBOURHOODS AND ENVIRONMENT,REED SPECIALIST RECRUITMENT LTD,03/11/2017,524.92,AGENCY STAFF,V001188519
ROCHDALE BOROUGH COUNCIL,03/11/2017,NEIGHBOURHOODS AND ENVIRONMENT,REED SPECIALIST RECRUITMENT LTD,03/11/2017,524.92,AGENCY STAFF,V001188519
ROCHDALE BOROUGH COUNCIL,03/11/2017,NEIGHBOURHOODS AND ENVIRONMENT,REED SPECIALIST RECRUITMENT LTD,03/11/2017,524.92,AGENCY STAFF,V001188519
ROCHDALE BOROUGH COUNCIL,03/11/2017,NEIGHBOURHOODS AND ENVIRONMENT,REED SPECIALIST RECRUITMENT LTD,03/11/2017,524.92,AGENCY STAFF,V001188519
ROCHDALE BOROUGH COUNCIL,03/11/2017,ECONOMY DIRECTORATE,REED SPECIALIST RECRUITMENT LTD,03/11/2017,522.92,AGENCY STAFF,V001188519
ROCHDALE BOROUGH COUNCIL,03/11/2017,NEIGHBOURHOODS AND ENVIRONMENT,REED SPECIALIST RECRUITMENT LTD,03/11/2017,509.98,AGENCY STAFF,V001188519
ROCHDALE BOROUGH COUNCIL,03/11/2017,NEIGHBOURHOODS AND ENVIRONMENT,REED SPECIALIST RECRUITMENT LTD,03/11/2017,507.64,AGENCY STAFF,V001188519
ROCHDALE BOROUGH COUNCIL,03/11/2017,RESOURCES,AON LIMITED,03/11/2017,"11,500.00",TRANSACTIONS-EXPENDITURE,V001188528
ROCHDALE BOROUGH COUNCIL,03/11/2017,RESOURCES,INFORM CPI LTD,03/11/2017,"1,740.00",FEES / COMMISSION,V001188565
ROCHDALE BOROUGH COUNCIL,06/11/2017,PHYSICAL DIS & OLDER PEOPLE,TUNSTALL HEALTHCARE (UK) LTD,06/11/2017,"2,475.00",EQUIPMENT - GENERAL,V001188581
ROCHDALE BOROUGH COUNCIL,06/11/2017,PHYSICAL DIS & OLDER PEOPLE,TUNSTALL HEALTHCARE (UK) LTD,06/11/2017,"1,873.50",EQUIPMENT - GENERAL,V001188581
ROCHDALE BOROUGH COUNCIL,06/11/2017,PHYSICAL DIS & OLDER PEOPLE,TUNSTALL HEALTHCARE (UK) LTD,06/11/2017,"1,320.00",EQUIPMENT - GENERAL,V001188581
ROCHDALE BOROUGH COUNCIL,06/11/2017,PHYSICAL DIS & OLDER PEOPLE,TUNSTALL HEALTHCARE (UK) LTD,06/11/2017,750.00,EQUIPMENT - GENERAL,V001188581
ROCHDALE BOROUGH COUNCIL,06/11/2017,PHYSICAL DIS & OLDER PEOPLE,TUNSTALL HEALTHCARE (UK) LTD,06/11/2017,545.00,EQUIPMENT - GENERAL,V001188581
ROCHDALE BOROUGH COUNCIL,06/11/2017,PHYSICAL DIS & OLDER PEOPLE,TUNSTALL HEALTHCARE (UK) LTD,06/11/2017,600.00,EQUIPMENT - GENERAL,V001188582
ROCHDALE BOROUGH COUNCIL,06/11/2017,PHYSICAL DIS & OLDER PEOPLE,TUNSTALL HEALTHCARE (UK) LTD,06/11/2017,816.00,EQUIPMENT - GENERAL,V001188583
ROCHDALE BOROUGH COUNCIL,23/11/2017,PROPERTY AND HIGHWAYS,BOLTON MBC,23/11/2017,"6,324.51",CONSULTANT FEES,V001188586
ROCHDALE BOROUGH COUNCIL,14/11/2017,NEIGHBOURHOODS AND ENVIRONMENT,STHREE PARTNERSHIP LLP,14/11/2017,"2,000.00",CAPITAL SALARIES,V001188587
ROCHDALE BOROUGH COUNCIL,03/11/2017,EARLY HELP AND SCHOOLS,DERBYSHIRE COUNTY COUNCIL,03/11/2017,796.00,ACTIVITIES,V001188612
ROCHDALE BOROUGH COUNCIL,21/11/2017,PROPERTY AND HIGHWAYS,ALPINE FIRE ENGINEERS,21/11/2017,"1,334.00",PROPERTY - WORKS ELEMENT,V001188614
ROCHDALE BOROUGH COUNCIL,29/11/2017,NEIGHBOURHOODS AND ENVIRONMENT,DDH FABRICATIONS LTD,29/11/2017,"1,650.00",EQUIPMENT - GENERAL,V001188615
ROCHDALE BOROUGH COUNCIL,15/11/2017,EARLY HELP AND SCHOOLS,TRIAD FABRICATIONS LIMITED,15/11/2017,"2,534.00",MINOR BUILDING WORKS,V001188620
ROCHDALE BOROUGH COUNCIL,15/11/2017,PROPERTY AND HIGHWAYS,S T HEATINGS SERVICES LTD,15/11/2017,"4,835.94",MINOR BUILDING WORKS,V001188621
ROCHDALE BOROUGH COUNCIL,03/11/2017,NEIGHBOURHOODS AND ENVIRONMENT,COZY CARS,03/11/2017,553.68,TAXI HIRE,V001188644
ROCHDALE BOROUGH COUNCIL,15/11/2017,NEIGHBOURHOODS AND ENVIRONMENT,RISUAL LTD,15/11/2017,"5,500.00",CAPITAL SALARIES,V001188648
ROCHDALE BOROUGH COUNCIL,03/11/2017,NEIGHBOURHOODS AND ENVIRONMENT,GPD TRAVEL,03/11/2017,"1,429.12",TAXI HIRE,V001188664
ROCHDALE BOROUGH COUNCIL,03/11/2017,NEIGHBOURHOODS AND ENVIRONMENT,GPD TRAVEL,03/11/2017,"2,024.96",TAXI HIRE,V001188665
ROCHDALE BOROUGH COUNCIL,03/11/2017,NEIGHBOURHOODS AND ENVIRONMENT,GPD TRAVEL,03/11/2017,"1,886.72",TAXI HIRE,V001188666
ROCHDALE BOROUGH COUNCIL,03/11/2017,NEIGHBOURHOODS AND ENVIRONMENT,GPD TRAVEL,03/11/2017,"1,326.00",TAXI HIRE,V001188667
ROCHDALE BOROUGH COUNCIL,14/11/2017,NEIGHBOURHOODS AND ENVIRONMENT,TG PRODUCTION SUPPLY LTD,14/11/2017,"2,012.00",ACTIVITIES,V001188668
ROCHDALE BOROUGH COUNCIL,07/11/2017,NEIGHBOURHOODS AND ENVIRONMENT,FAUN ZOELLER UK LTD,07/11/2017,"147,006.74",PURCHASE OF VEHICLES,V001188672
ROCHDALE BOROUGH COUNCIL,07/11/2017,NEIGHBOURHOODS AND ENVIRONMENT,FAUN ZOELLER UK LTD,07/11/2017,705.00,PURCHASE OF VEHICLES,V001188672
ROCHDALE BOROUGH COUNCIL,03/11/2017,EARLY HELP AND SCHOOLS,AXIOM EDUCATION ROCHDALE LIMITED,03/11/2017,"32,149.63",WATER CHARGES,V001188673
ROCHDALE BOROUGH COUNCIL,03/11/2017,LEARNING DIS & MENTAL HEALTH,NHS HEYWOOD MIDDLETON AND ROCHDALE CCG,03/11/2017,"1,934.48",AGENCY STAFF,V001188679
ROCHDALE BOROUGH COUNCIL,03/11/2017,LEARNING DIS & MENTAL HEALTH,NHS HEYWOOD MIDDLETON AND ROCHDALE CCG,03/11/2017,"1,934.48",AGENCY STAFF,V001188680
ROCHDALE BOROUGH COUNCIL,09/11/2017,BETTER CARE FUND POOLED BUDGET,ROSS CARE,09/11/2017,"63,682.30",OTHER AGENCIES,V001188683
ROCHDALE BOROUGH COUNCIL,03/11/2017,PHYSICAL DIS & OLDER PEOPLE,ROCHDALE HOUSING INITIATIVE,03/11/2017,635.54,FEES / COMMISSION,V001188687
ROCHDALE BOROUGH COUNCIL,10/11/2017,NEIGHBOURHOODS AND ENVIRONMENT,ORCHARD  RECYCLING SERVICE LTD,10/11/2017,666.00,EQUIPMENT - GENERAL,V001188690
ROCHDALE BOROUGH COUNCIL,10/11/2017,NEIGHBOURHOODS AND ENVIRONMENT,TLC GARDEN SERVICES,10/11/2017,"1,650.00",MINOR BUILDING WORKS,V001188691
ROCHDALE BOROUGH COUNCIL,03/11/2017,PHYSICAL DIS & OLDER PEOPLE,K P DODD CONSTRUCTION LIMITED,03/11/2017,917.00,MINOR BUILDING WORKS,V001188701
ROCHDALE BOROUGH COUNCIL,07/11/2017,NEIGHBOURHOODS AND ENVIRONMENT,DALE INDUSTRIAL SERVICES LIMITED,07/11/2017,"2,093.38",TAXI HIRE,V001188707
ROCHDALE BOROUGH COUNCIL,07/11/2017,NEIGHBOURHOODS AND ENVIRONMENT,DALE INDUSTRIAL SERVICES LIMITED,07/11/2017,"2,079.44",TAXI HIRE,V001188707
ROCHDALE BOROUGH COUNCIL,07/11/2017,NEIGHBOURHOODS AND ENVIRONMENT,DALE INDUSTRIAL SERVICES LIMITED,07/11/2017,"2,075.36",TAXI HIRE,V001188707
ROCHDALE BOROUGH COUNCIL,07/11/2017,NEIGHBOURHOODS AND ENVIRONMENT,DALE INDUSTRIAL SERVICES LIMITED,07/11/2017,"2,075.02",TAXI HIRE,V001188707
ROCHDALE BOROUGH COUNCIL,07/11/2017,NEIGHBOURHOODS AND ENVIRONMENT,DALE INDUSTRIAL SERVICES LIMITED,07/11/2017,"2,067.20",TAXI HIRE,V001188707
ROCHDALE BOROUGH COUNCIL,07/11/2017,NEIGHBOURHOODS AND ENVIRONMENT,DALE INDUSTRIAL SERVICES LIMITED,07/11/2017,"1,966.40",TAXI HIRE,V001188707
ROCHDALE BOROUGH COUNCIL,07/11/2017,NEIGHBOURHOODS AND ENVIRONMENT,DALE INDUSTRIAL SERVICES LIMITED,07/11/2017,"1,916.80",TAXI HIRE,V001188707
ROCHDALE BOROUGH COUNCIL,07/11/2017,EARLY HELP AND SCHOOLS,FRS ROOFING SERVICES LIMITED,07/11/2017,"31,790.25",MINOR BUILDING WORKS,V001188713
ROCHDALE BOROUGH COUNCIL,16/11/2017,LEARNING DIS & MENTAL HEALTH,POSSABILITIES CIC TRADING,16/11/2017,"8,943.33",CONTRACTS,V001188716
ROCHDALE BOROUGH COUNCIL,10/11/2017,ECONOMY DIRECTORATE,EVAC AND CHAIR INTERNATIONAL LIMITED,10/11/2017,"2,684.00",REPAIRS & ALTS OF BUILDINGS,V001188718
ROCHDALE BOROUGH COUNCIL,15/11/2017,NEIGHBOURHOODS AND ENVIRONMENT,ROAD SAFETY SERVICES LIMITED,15/11/2017,550.00,EQUIPMENT - GENERAL,V001188721
ROCHDALE BOROUGH COUNCIL,15/11/2017,NEIGHBOURHOODS AND ENVIRONMENT,ROAD SAFETY SERVICES LIMITED,15/11/2017,850.00,EQUIPMENT - GENERAL,V001188722
ROCHDALE BOROUGH COUNCIL,10/11/2017,EARLY HELP AND SCHOOLS,THOMAS KERSHAW BUILDERS LTD,10/11/2017,"23,849.80",MINOR BUILDING WORKS,V001188730
ROCHDALE BOROUGH COUNCIL,10/11/2017,ECONOMY DIRECTORATE,EVAC AND CHAIR INTERNATIONAL LIMITED,10/11/2017,"2,684.00",REPAIRS & ALTS OF BUILDINGS,V001188733
ROCHDALE BOROUGH COUNCIL,30/11/2017,PROPERTY AND HIGHWAYS,GMCA,30/11/2017,"1,354.24",ROADWORKS,V001188734
ROCHDALE BOROUGH COUNCIL,07/11/2017,NEIGHBOURHOODS AND ENVIRONMENT,S P EXECUTIVE TRAVEL,07/11/2017,"1,963.84",TAXI HIRE,V001188742
ROCHDALE BOROUGH COUNCIL,07/11/2017,NEIGHBOURHOODS AND ENVIRONMENT,S P EXECUTIVE TRAVEL,07/11/2017,"1,474.33",TAXI HIRE,V001188743
ROCHDALE BOROUGH COUNCIL,09/11/2017,PHYSICAL DIS & OLDER PEOPLE,ROSS CARE,09/11/2017,"-2,500.00",STREET LIGHTING,V001188744
ROCHDALE BOROUGH COUNCIL,14/11/2017,NEIGHBOURHOODS AND ENVIRONMENT,TJ BOOTH ASSOCIATES,14/11/2017,"1,220.00",EQUIPMENT - GENERAL,V001188750
ROCHDALE BOROUGH COUNCIL,24/11/2017,LEARNING DIS & MENTAL HEALTH,PENNINE CARE NHS,24/11/2017,"9,250.00",RENTS,V001188753
ROCHDALE BOROUGH COUNCIL,06/11/2017,PUBLIC HEALTH,MANCHESTER UNIVERSITY NHS FOUNDATION  TRUST MFT,06/11/2017,"10,860.00",PH OTHER CONTRACTS,V001188755
ROCHDALE BOROUGH COUNCIL,24/11/2017,PUBLIC HEALTH,LINK4LIFE CHARITY,24/11/2017,"30,000.00",LINK 4 LIFE CONTRACT,V001188759
ROCHDALE BOROUGH COUNCIL,30/11/2017,EARLY HELP AND SCHOOLS,J C MILLS & SON LIMITED,30/11/2017,"4,176.22",REPAIRS & ALTS OF BUILDINGS,V001188786
ROCHDALE BOROUGH COUNCIL,15/11/2017,PROPERTY AND HIGHWAYS,J C MILLS & SON LIMITED,15/11/2017,"1,065.00",MINOR BUILDING WORKS,V001188789
ROCHDALE BOROUGH COUNCIL,30/11/2017,RESOURCES,TRANSPORT FOR GREATER MANCHESTER,30/11/2017,"1,405.95",TRANSACTIONS-EXPENDITURE,V001188792
ROCHDALE BOROUGH COUNCIL,15/11/2017,ECONOMY DIRECTORATE,DUVAL FM LIMITED,15/11/2017,"5,368.54",SECURITY,V001188794
ROCHDALE BOROUGH COUNCIL,15/11/2017,PROPERTY AND HIGHWAYS,CHRISTMAS PLUS LTD,15/11/2017,"4,064.00",CHRISTMAS DECORATIONS,V001188795
ROCHDALE BOROUGH COUNCIL,15/11/2017,PROPERTY AND HIGHWAYS,CHRISTMAS PLUS LTD,15/11/2017,526.50,REPAIRS & ALTS OF BUILDINGS,V001188796
ROCHDALE BOROUGH COUNCIL,15/11/2017,CHILDREN�S SOCIAL CARE,AURORA CARE  YOUNG PEOPLES SERVICE LTD,15/11/2017,"11,049.29",EBD (EMOT & BEHAV DIFF) PLACEMENTS,V001188805
ROCHDALE BOROUGH COUNCIL,16/11/2017,RESOURCES,REDACTED - PERSONAL DATA,16/11/2017,"4,800.00",PROFESSIONAL FEES,V001188809
ROCHDALE BOROUGH COUNCIL,23/11/2017,CHILDREN�S SOCIAL CARE,BARNARDOS,23/11/2017,"3,542.86",FOSTER PARENTS BASIC ALLOWANCE,V001188815
ROCHDALE BOROUGH COUNCIL,16/11/2017,CHILDREN�S SOCIAL CARE,BY THE BRIDGE THERAPUTIC FOSTERING SERVICE,16/11/2017,"3,912.64",FOSTER PARENTS BASIC ALLOWANCE,V001188816
ROCHDALE BOROUGH COUNCIL,16/11/2017,CHILDREN�S SOCIAL CARE,BY THE BRIDGE THERAPUTIC FOSTERING SERVICE,16/11/2017,"4,101.30",FOSTER PARENTS BASIC ALLOWANCE,V001188817
ROCHDALE BOROUGH COUNCIL,16/11/2017,CHILDREN�S SOCIAL CARE,BY THE BRIDGE THERAPUTIC FOSTERING SERVICE,16/11/2017,"3,896.26",FOSTER PARENTS BASIC ALLOWANCE,V001188818
ROCHDALE BOROUGH COUNCIL,16/11/2017,CHILDREN�S SOCIAL CARE,BY THE BRIDGE THERAPUTIC FOSTERING SERVICE,16/11/2017,"3,109.08",FOSTER PARENTS BASIC ALLOWANCE,V001188819
ROCHDALE BOROUGH COUNCIL,16/11/2017,CHILDREN�S SOCIAL CARE,BY THE BRIDGE THERAPUTIC FOSTERING SERVICE,16/11/2017,"4,186.11",FOSTER PARENTS BASIC ALLOWANCE,V001188820
ROCHDALE BOROUGH COUNCIL,07/11/2017,CHILDREN�S SOCIAL CARE,CARE 4 CHILDREN RESIDENTIAL SERVICES,07/11/2017,"18,821.34",EBD (EMOT & BEHAV DIFF) PLACEMENTS,V001188821
ROCHDALE BOROUGH COUNCIL,07/11/2017,CHILDREN�S SOCIAL CARE,CAPSTONE FOSTER CARE,07/11/2017,"3,450.07",FOSTER PARENTS BASIC ALLOWANCE,V001188822
ROCHDALE BOROUGH COUNCIL,07/11/2017,CHILDREN�S SOCIAL CARE,CAPSTONE FOSTER CARE,07/11/2017,"4,288.23",FOSTER PARENTS BASIC ALLOWANCE,V001188823
ROCHDALE BOROUGH COUNCIL,07/11/2017,CHILDREN�S SOCIAL CARE,CCATS FOSTERING LTD,07/11/2017,"3,477.58",FOSTER PARENTS BASIC ALLOWANCE,V001188824
ROCHDALE BOROUGH COUNCIL,07/11/2017,CHILDREN�S SOCIAL CARE,CCATS FOSTERING LTD,07/11/2017,"3,622.35",FOSTER PARENTS BASIC ALLOWANCE,V001188825
ROCHDALE BOROUGH COUNCIL,07/11/2017,CHILDREN�S SOCIAL CARE,CCATS FOSTERING LTD,07/11/2017,"3,799.67",FOSTER PARENTS BASIC ALLOWANCE,V001188826
ROCHDALE BOROUGH COUNCIL,07/11/2017,CHILDREN�S SOCIAL CARE,CCATS FOSTERING LTD,07/11/2017,"3,799.67",FOSTER PARENTS BASIC ALLOWANCE,V001188827
ROCHDALE BOROUGH COUNCIL,07/11/2017,CHILDREN�S SOCIAL CARE,COMPASS FOSTERING NORTH LTD,07/11/2017,"3,764.33",CLOTHING INITIAL FOSTERING GRANT,V001188828
ROCHDALE BOROUGH COUNCIL,07/11/2017,CHILDREN�S SOCIAL CARE,COMPASS FOSTERING NORTH LTD,07/11/2017,"3,168.60",FOSTER PARENTS BASIC ALLOWANCE,V001188829
ROCHDALE BOROUGH COUNCIL,07/11/2017,CHILDREN�S SOCIAL CARE,COMPASS FOSTERING NORTH LTD,07/11/2017,"3,010.10",FOSTER PARENTS BASIC ALLOWANCE,V001188830
ROCHDALE BOROUGH COUNCIL,07/11/2017,CHILDREN�S SOCIAL CARE,COURTYARD CARE LIMITED,07/11/2017,"13,064.33",EBD (EMOT & BEHAV DIFF) PLACEMENTS,V001188831
ROCHDALE BOROUGH COUNCIL,15/11/2017,CHILDREN�S SOCIAL CARE,ENABLING FUTURES LTD,15/11/2017,"14,171.43",EBD (EMOT & BEHAV DIFF) PLACEMENTS,V001188832
ROCHDALE BOROUGH COUNCIL,07/11/2017,CHILDREN�S SOCIAL CARE,FOSTERING SOLUTIONS LTD,07/11/2017,"3,144.33",FOSTER PARENTS BASIC ALLOWANCE,V001188833
ROCHDALE BOROUGH COUNCIL,07/11/2017,CHILDREN�S SOCIAL CARE,FOSTERING SOLUTIONS LTD,07/11/2017,"2,493.08",FOSTER PARENTS BASIC ALLOWANCE,V001188834
ROCHDALE BOROUGH COUNCIL,07/11/2017,CHILDREN�S SOCIAL CARE,FOSTERING SOLUTIONS LTD,07/11/2017,"2,218.67",FOSTER PARENTS BASIC ALLOWANCE,V001188835
ROCHDALE BOROUGH COUNCIL,07/11/2017,CHILDREN�S SOCIAL CARE,FOSTERING SOLUTIONS LTD,07/11/2017,"2,218.67",FOSTER PARENTS BASIC ALLOWANCE,V001188836
ROCHDALE BOROUGH COUNCIL,07/11/2017,CHILDREN�S SOCIAL CARE,FOSTERING SOLUTIONS LTD,07/11/2017,"3,125.02",FOSTER PARENTS BASIC ALLOWANCE,V001188837
ROCHDALE BOROUGH COUNCIL,07/11/2017,CHILDREN�S SOCIAL CARE,FOSTERING SOLUTIONS LTD,07/11/2017,"2,957.02",FOSTER PARENTS BASIC ALLOWANCE,V001188838
ROCHDALE BOROUGH COUNCIL,07/11/2017,CHILDREN�S SOCIAL CARE,FOSTERING SOLUTIONS LTD,07/11/2017,"3,360.24",FOSTER PARENTS BASIC ALLOWANCE,V001188839
ROCHDALE BOROUGH COUNCIL,07/11/2017,CHILDREN�S SOCIAL CARE,FOSTER CARE ASSOCIATES LIMITED,07/11/2017,"5,799.30",FOSTER PARENTS BASIC ALLOWANCE,V001188840
ROCHDALE BOROUGH COUNCIL,07/11/2017,CHILDREN�S SOCIAL CARE,FOSTER CARE ASSOCIATES LIMITED,07/11/2017,"3,412.94",FOSTER PARENTS BASIC ALLOWANCE,V001188841
ROCHDALE BOROUGH COUNCIL,07/11/2017,CHILDREN�S SOCIAL CARE,FOSTER CARE ASSOCIATES LIMITED,07/11/2017,"3,620.13",FOSTER PARENTS BASIC ALLOWANCE,V001188844
ROCHDALE BOROUGH COUNCIL,16/11/2017,NEIGHBOURHOODS AND ENVIRONMENT,HARFIELD COMPONENTS LTD,16/11/2017,760.56,EQUIPMENT - GENERAL,V001188846
ROCHDALE BOROUGH COUNCIL,10/11/2017,NEIGHBOURHOODS AND ENVIRONMENT,POWERMASTER SERVICE LTD,10/11/2017,980.00,PROPERTY - WORKS ELEMENT,V001188851
ROCHDALE BOROUGH COUNCIL,10/11/2017,EARLY HELP AND SCHOOLS,SPEAKMAN CONTRACTORS LTD,10/11/2017,"35,078.87",MINOR BUILDING WORKS,V001188852
ROCHDALE BOROUGH COUNCIL,17/11/2017,EARLY HELP AND SCHOOLS,ROTA ROD LIMITED,17/11/2017,500.00,MINOR BUILDING WORKS,V001188854
ROCHDALE BOROUGH COUNCIL,07/11/2017,CHILDREN�S SOCIAL CARE,CRYSTAL CARE SOLUTIONS LTD,07/11/2017,"3,242.40",EBD (EMOT & BEHAV DIFF) PLACEMENTS,V001188869
ROCHDALE BOROUGH COUNCIL,07/11/2017,CHILDREN�S SOCIAL CARE,CRYSTAL CARE SOLUTIONS LTD,07/11/2017,"3,242.40",EBD (EMOT & BEHAV DIFF) PLACEMENTS,V001188870
ROCHDALE BOROUGH COUNCIL,09/11/2017,CHILDREN�S SOCIAL CARE,FOSTER CARES LTD,09/11/2017,850.00,FOSTER PARENTS BASIC ALLOWANCE,V001188871
ROCHDALE BOROUGH COUNCIL,07/11/2017,CHILDREN�S SOCIAL CARE,FOSTERING LTD,07/11/2017,759.00,FOSTER PARENTS BASIC ALLOWANCE,V001188872
ROCHDALE BOROUGH COUNCIL,07/11/2017,CHILDREN�S SOCIAL CARE,FIRST AFFINITY FOSTERING SERVICES LTD,07/11/2017,"3,720.00",FOSTER PARENTS BASIC ALLOWANCE,V001188920
ROCHDALE BOROUGH COUNCIL,16/11/2017,CHILDREN�S SOCIAL CARE,FOOTSTEPS A PATH TO CHANGE,16/11/2017,"11,550.00",EBD (EMOT & BEHAV DIFF) PLACEMENTS,V001188930
ROCHDALE BOROUGH COUNCIL,07/11/2017,CHILDREN�S SOCIAL CARE,FUSION FOSTERING LTD,07/11/2017,"4,455.00",FOSTER PARENTS BASIC ALLOWANCE,V001188937
ROCHDALE BOROUGH COUNCIL,09/11/2017,CHILDREN�S SOCIAL CARE,HEXAGON CARE SERVICES LTD,09/11/2017,"11,713.57",EBD (EMOT & BEHAV DIFF) PLACEMENTS,V001188946
ROCHDALE BOROUGH COUNCIL,08/11/2017,CHILDREN�S SOCIAL CARE,RESOLUTION FOSTERING SERVICES LTD,08/11/2017,660.24,FOSTER PARENTS BASIC ALLOWANCE,V001188963
ROCHDALE BOROUGH COUNCIL,09/11/2017,CHILDREN�S SOCIAL CARE,HEXAGON CARE SERVICES LTD,09/11/2017,"13,263.57",EBD (EMOT & BEHAV DIFF) PLACEMENTS,V001188972
ROCHDALE BOROUGH COUNCIL,09/11/2017,CHILDREN�S SOCIAL CARE,HEXAGON CARE SERVICES LTD,09/11/2017,"12,621.43",EBD (EMOT & BEHAV DIFF) PLACEMENTS,V001188979
ROCHDALE BOROUGH COUNCIL,08/11/2017,CHILDREN�S SOCIAL CARE,HORIZON CARE AND EDUCATION,08/11/2017,"13,399.96",EBD (EMOT & BEHAV DIFF) PLACEMENTS,V001189000
ROCHDALE BOROUGH COUNCIL,07/11/2017,CHILDREN�S SOCIAL CARE,LANDSKER CHILD CARE,07/11/2017,"17,492.86",EBD (EMOT & BEHAV DIFF) PLACEMENTS,V001189001
ROCHDALE BOROUGH COUNCIL,15/11/2017,CHILDREN�S SOCIAL CARE,RESOLUTION FOSTERING SERVICES LTD,15/11/2017,660.24,FOSTER PARENTS BASIC ALLOWANCE,V001189002
ROCHDALE BOROUGH COUNCIL,07/11/2017,CHILDREN�S SOCIAL CARE,LIFETIME OPPORTUNITIES,07/11/2017,"11,780.00",EBD (EMOT & BEHAV DIFF) PLACEMENTS,V001189003
ROCHDALE BOROUGH COUNCIL,07/11/2017,CHILDREN�S SOCIAL CARE,LIFETIME OPPORTUNITIES,07/11/2017,"11,780.00",EBD (EMOT & BEHAV DIFF) PLACEMENTS,V001189005
ROCHDALE BOROUGH COUNCIL,07/11/2017,CHILDREN�S SOCIAL CARE,MEADOWS CARE LIMITED,07/11/2017,"17,271.43",EBD (EMOT & BEHAV DIFF) PLACEMENTS,V001189006
ROCHDALE BOROUGH COUNCIL,10/11/2017,CHILDREN�S SOCIAL CARE,NORTHERN COMMUNITY PATHWAYS LTD,10/11/2017,"13,285.71",EBD (EMOT & BEHAV DIFF) PLACEMENTS,V001189008
ROCHDALE BOROUGH COUNCIL,07/11/2017,CHILDREN�S SOCIAL CARE,SWIIS FOSTER CARE LIMITED,07/11/2017,780.01,FOSTER PARENTS BASIC ALLOWANCE,V001189011
ROCHDALE BOROUGH COUNCIL,08/11/2017,CHILDREN�S SOCIAL CARE,PACE,08/11/2017,"3,750.00",CONSULTANT FEES,V001189012
ROCHDALE BOROUGH COUNCIL,07/11/2017,CHILDREN�S SOCIAL CARE,ORANGE GROVE FOSTERCARE LTD,07/11/2017,"3,551.27",FOSTER PARENTS BASIC ALLOWANCE,V001189013
ROCHDALE BOROUGH COUNCIL,07/11/2017,CHILDREN�S SOCIAL CARE,ORANGE GROVE FOSTERCARE LTD,07/11/2017,"3,488.74",FOSTER PARENTS BASIC ALLOWANCE,V001189014
ROCHDALE BOROUGH COUNCIL,07/11/2017,CHILDREN�S SOCIAL CARE,ORANGE GROVE FOSTERCARE LTD,07/11/2017,"3,945.99",FOSTER PARENTS BASIC ALLOWANCE,V001189016
ROCHDALE BOROUGH COUNCIL,16/11/2017,NEIGHBOURHOODS AND ENVIRONMENT,ROCHDALE HOUSING INITIATIVE,16/11/2017,"3,648.55",CONDITION SURVEYS,V001189018
ROCHDALE BOROUGH COUNCIL,16/11/2017,EARLY HELP AND SCHOOLS,SPORT WORKS GTR MANCHESTER LTD,16/11/2017,"8,827.43",ACTIVITIES,V001189020
ROCHDALE BOROUGH COUNCIL,07/11/2017,CHILDREN�S SOCIAL CARE,PATHWAY TO PROSPECTS,07/11/2017,"7,411.50",YOUNG PEOPLES RENTS,V001189021
ROCHDALE BOROUGH COUNCIL,16/11/2017,ECONOMY DIRECTORATE,THE OYSTER PARTNERSHIP LTD,16/11/2017,"1,453.13",AGENCY STAFF,V001189022
ROCHDALE BOROUGH COUNCIL,07/11/2017,CHILDREN�S SOCIAL CARE,PATHWAY TO PROSPECTS,07/11/2017,"7,189.28",YOUNG PEOPLES RENTS,V001189023
ROCHDALE BOROUGH COUNCIL,10/11/2017,CHILDREN�S SOCIAL CARE,PERPETUAL FOSTERING LTD,10/11/2017,"2,373.00",FOSTER PARENTS BASIC ALLOWANCE,V001189024
ROCHDALE BOROUGH COUNCIL,15/11/2017,EARLY HELP AND SCHOOLS,ALEX KELLY LTD,15/11/2017,812.62,TRAINING-QUALIFICATION,V001189025
ROCHDALE BOROUGH COUNCIL,10/11/2017,CHILDREN�S SOCIAL CARE,PERPETUAL FOSTERING LTD,10/11/2017,"2,396.94",FOSTER PARENTS BASIC ALLOWANCE,V001189026
ROCHDALE BOROUGH COUNCIL,07/11/2017,CHILDREN�S SOCIAL CARE,SAFEHOUSES FOSTERING,07/11/2017,"3,782.31",FOSTER PARENTS BASIC ALLOWANCE,V001189028
ROCHDALE BOROUGH COUNCIL,06/11/2017,LEARNING DIS & MENTAL HEALTH,EZITRACKER,06/11/2017,"4,656.63",SOFTWARE,V001189029
ROCHDALE BOROUGH COUNCIL,07/11/2017,CHILDREN�S SOCIAL CARE,SAFEHOUSES FOSTERING,07/11/2017,"6,864.33",FOSTER PARENTS BASIC ALLOWANCE,V001189030
ROCHDALE BOROUGH COUNCIL,07/11/2017,CHILDREN�S SOCIAL CARE,SAFEHOUSES FOSTERING,07/11/2017,"3,782.31",FOSTER PARENTS BASIC ALLOWANCE,V001189031
ROCHDALE BOROUGH COUNCIL,15/11/2017,NEIGHBOURHOODS AND ENVIRONMENT,CRESTA WORLD TRAVEL LIMITED,15/11/2017,876.68,STAFF TRAVELLING EXPENSES,V001189032
ROCHDALE BOROUGH COUNCIL,07/11/2017,CHILDREN�S SOCIAL CARE,SAFEHOUSES FOSTERING,07/11/2017,"3,571.82",FOSTER PARENTS BASIC ALLOWANCE,V001189033
ROCHDALE BOROUGH COUNCIL,07/11/2017,CHILDREN�S SOCIAL CARE,SOCIAL CARE SERVICES LIMITED,07/11/2017,"13,175.00",EBD (EMOT & BEHAV DIFF) PLACEMENTS,V001189035
ROCHDALE BOROUGH COUNCIL,07/11/2017,CHILDREN�S SOCIAL CARE,TIME OUT CHILDRENS HOMES LTD,07/11/2017,"14,900.00",EBD (EMOT & BEHAV DIFF) PLACEMENTS,V001189036
ROCHDALE BOROUGH COUNCIL,15/11/2017,EARLY HELP AND SCHOOLS,SUPPLY DESK,15/11/2017,"6,000.00",INDEPENDENT UNITS,V001189037
ROCHDALE BOROUGH COUNCIL,07/11/2017,CHILDREN�S SOCIAL CARE,WOODLANDS LIMITED,07/11/2017,"18,157.14",EBD (EMOT & BEHAV DIFF) PLACEMENTS,V001189038
ROCHDALE BOROUGH COUNCIL,06/11/2017,RESOURCES,REDACTED - PERSONAL DATA,06/11/2017,"3,600.00",PROFESSIONAL FEES,V001189044
ROCHDALE BOROUGH COUNCIL,07/11/2017,CHILDREN�S SOCIAL CARE,FOSTERING SOLUTIONS LTD,07/11/2017,"3,077.99",FOSTER PARENTS BASIC ALLOWANCE,V001189049
ROCHDALE BOROUGH COUNCIL,07/11/2017,PHYSICAL DIS & OLDER PEOPLE,HOMECARE4U LTD,07/11/2017,763.47,HOME CARE - ADULT SERVICES,V001189050
ROCHDALE BOROUGH COUNCIL,07/11/2017,PHYSICAL DIS & OLDER PEOPLE,CALDERDALE HOMECARE LTD,07/11/2017,835.04,HOME CARE - ADULT SERVICES,V001189051
ROCHDALE BOROUGH COUNCIL,09/11/2017,CHILDREN�S SOCIAL CARE,KALEIDOSCOPE ASSESSMENT SERVICES,09/11/2017,"2,850.00",EBD (EMOT & BEHAV DIFF) PLACEMENTS,V001189052
ROCHDALE BOROUGH COUNCIL,09/11/2017,NEIGHBOURHOODS AND ENVIRONMENT,NO GRAFFITI LTD,09/11/2017,"1,071.00",CONTRACTED SERVICES,V001189053
ROCHDALE BOROUGH COUNCIL,08/11/2017,NEIGHBOURHOODS AND ENVIRONMENT,CAR 2000 HEYWOOD LLP,08/11/2017,643.50,TAXI HIRE,V001189057
ROCHDALE BOROUGH COUNCIL,08/11/2017,NEIGHBOURHOODS AND ENVIRONMENT,CAR 2000 HEYWOOD LLP,08/11/2017,598.40,TAXI HIRE,V001189058
ROCHDALE BOROUGH COUNCIL,08/11/2017,NEIGHBOURHOODS AND ENVIRONMENT,CAR 2000 HEYWOOD LLP,08/11/2017,842.76,TAXI HIRE,V001189059
ROCHDALE BOROUGH COUNCIL,08/11/2017,NEIGHBOURHOODS AND ENVIRONMENT,CAR 2000 HEYWOOD LLP,08/11/2017,"2,601.00",TAXI HIRE,V001189060
ROCHDALE BOROUGH COUNCIL,08/11/2017,NEIGHBOURHOODS AND ENVIRONMENT,CAR 2000 HEYWOOD LLP,08/11/2017,"2,883.88",TAXI HIRE,V001189061
ROCHDALE BOROUGH COUNCIL,08/11/2017,NEIGHBOURHOODS AND ENVIRONMENT,MIDDLETON CARS,08/11/2017,917.50,TAXI HIRE,V001189062
ROCHDALE BOROUGH COUNCIL,08/11/2017,NEIGHBOURHOODS AND ENVIRONMENT,MIDDLETON CARS,08/11/2017,"1,032.00",TAXI HIRE,V001189064
ROCHDALE BOROUGH COUNCIL,08/11/2017,NEIGHBOURHOODS AND ENVIRONMENT,ANDY HARROP,08/11/2017,"1,638.00",TAXI HIRE,V001189065
ROCHDALE BOROUGH COUNCIL,07/11/2017,NEIGHBOURHOODS AND ENVIRONMENT,PREMIERESHOW LIMITED,07/11/2017,667.50,TAXI HIRE,V001189066
ROCHDALE BOROUGH COUNCIL,07/11/2017,NEIGHBOURHOODS AND ENVIRONMENT,PREMIERESHOW LIMITED,07/11/2017,617.10,TAXI HIRE,V001189066
ROCHDALE BOROUGH COUNCIL,07/11/2017,NEIGHBOURHOODS AND ENVIRONMENT,PREMIERESHOW LIMITED,07/11/2017,569.15,TAXI HIRE,V001189066
ROCHDALE BOROUGH COUNCIL,07/11/2017,NEIGHBOURHOODS AND ENVIRONMENT,ROYTON MINIBUSES LIMITED,07/11/2017,"3,017.50",TAXI HIRE,V001189067
ROCHDALE BOROUGH COUNCIL,07/11/2017,NEIGHBOURHOODS AND ENVIRONMENT,ROYTON MINIBUSES LIMITED,07/11/2017,"2,768.00",TAXI HIRE,V001189067
ROCHDALE BOROUGH COUNCIL,07/11/2017,NEIGHBOURHOODS AND ENVIRONMENT,ROYTON MINIBUSES LIMITED,07/11/2017,"2,389.76",TAXI HIRE,V001189067
ROCHDALE BOROUGH COUNCIL,07/11/2017,NEIGHBOURHOODS AND ENVIRONMENT,ROYTON MINIBUSES LIMITED,07/11/2017,"2,294.08",TAXI HIRE,V001189067
ROCHDALE BOROUGH COUNCIL,07/11/2017,NEIGHBOURHOODS AND ENVIRONMENT,ROYTON MINIBUSES LIMITED,07/11/2017,"2,216.00",TAXI HIRE,V001189067
ROCHDALE BOROUGH COUNCIL,07/11/2017,NEIGHBOURHOODS AND ENVIRONMENT,ROYTON MINIBUSES LIMITED,07/11/2017,"2,003.45",TAXI HIRE,V001189067
ROCHDALE BOROUGH COUNCIL,07/11/2017,NEIGHBOURHOODS AND ENVIRONMENT,J AND S TRAVEL,07/11/2017,680.00,TAXI HIRE,V001189068
ROCHDALE BOROUGH COUNCIL,07/11/2017,NEIGHBOURHOODS AND ENVIRONMENT,J AND S TRAVEL,07/11/2017,650.00,TAXI HIRE,V001189068
ROCHDALE BOROUGH COUNCIL,07/11/2017,NEIGHBOURHOODS AND ENVIRONMENT,J AND S TRAVEL,07/11/2017,641.30,TAXI HIRE,V001189068
ROCHDALE BOROUGH COUNCIL,07/11/2017,NEIGHBOURHOODS AND ENVIRONMENT,J AND S TRAVEL,07/11/2017,638.60,TAXI HIRE,V001189068
ROCHDALE BOROUGH COUNCIL,14/11/2017,RESOURCES,CHILDCARE VOUCHERS LIMITED,14/11/2017,"47,473.31",TRANSACTIONS-EXPENDITURE,V001189075
ROCHDALE BOROUGH COUNCIL,14/11/2017,RESOURCES,CHILDCARE VOUCHERS LIMITED,14/11/2017,"2,373.67",TRANSACTIONS-EXPENDITURE,V001189075
ROCHDALE BOROUGH COUNCIL,10/11/2017,NEIGHBOURHOODS AND ENVIRONMENT,DLA PIPER UK LLP,10/11/2017,"13,250.00",LEGAL SERVICES INTERNAL,V001189076
ROCHDALE BOROUGH COUNCIL,07/11/2017,NEIGHBOURHOODS AND ENVIRONMENT,CAR 2000 HEYWOOD LLP,07/11/2017,"2,181.96",TAXI HIRE,V001189080
ROCHDALE BOROUGH COUNCIL,07/11/2017,NEIGHBOURHOODS AND ENVIRONMENT,CAR 2000 HEYWOOD LLP,07/11/2017,"1,040.40",TAXI HIRE,V001189082
ROCHDALE BOROUGH COUNCIL,08/11/2017,NEIGHBOURHOODS AND ENVIRONMENT,CAR 2000 HEYWOOD LLP,08/11/2017,"1,347.20",TAXI HIRE,V001189083
ROCHDALE BOROUGH COUNCIL,07/11/2017,NEIGHBOURHOODS AND ENVIRONMENT,CAR 2000 HEYWOOD LLP,07/11/2017,934.15,TAXI HIRE,V001189084
ROCHDALE BOROUGH COUNCIL,07/11/2017,NEIGHBOURHOODS AND ENVIRONMENT,CAR 2000 HEYWOOD LLP,07/11/2017,938.74,TAXI HIRE,V001189085
ROCHDALE BOROUGH COUNCIL,07/11/2017,NEIGHBOURHOODS AND ENVIRONMENT,CAR 2000 HEYWOOD LLP,07/11/2017,"1,528.80",TAXI HIRE,V001189086
ROCHDALE BOROUGH COUNCIL,07/11/2017,NEIGHBOURHOODS AND ENVIRONMENT,CAR 2000 HEYWOOD LLP,07/11/2017,"1,120.00",TAXI HIRE,V001189087
ROCHDALE BOROUGH COUNCIL,24/11/2017,NEIGHBOURHOODS AND ENVIRONMENT,SSI SCHAEFER LIMITED,24/11/2017,"13,273.80",EQUIPMENT - GENERAL,V001189098
ROCHDALE BOROUGH COUNCIL,09/11/2017,ECONOMY DIRECTORATE,VIVID RESOURCING LTD,09/11/2017,"2,639.88",AGENCY STAFF,V001189103
ROCHDALE BOROUGH COUNCIL,07/11/2017,ECONOMY DIRECTORATE,VIVID RESOURCING LTD,07/11/2017,"2,688.12",AGENCY STAFF,V001189104
ROCHDALE BOROUGH COUNCIL,07/11/2017,ECONOMY DIRECTORATE,VIVID RESOURCING LTD,07/11/2017,"2,651.76",AGENCY STAFF,V001189105
ROCHDALE BOROUGH COUNCIL,07/11/2017,ECONOMY DIRECTORATE,VIVID RESOURCING LTD,07/11/2017,"1,326.24",AGENCY STAFF,V001189106
ROCHDALE BOROUGH COUNCIL,15/11/2017,NEIGHBOURHOODS AND ENVIRONMENT,BEECHWOOD TREE SERVICES NORTHWEST LTD,15/11/2017,"1,650.00",EQUIPMENT - GENERAL,V001189108
ROCHDALE BOROUGH COUNCIL,16/11/2017,RESOURCES,P AND MM EMPLOYEE BENEFITS,16/11/2017,"1,445.95",TRANSACTIONS-EXPENDITURE,V001189118
ROCHDALE BOROUGH COUNCIL,15/11/2017,EARLY HELP AND SCHOOLS,EMMA GORDON TUTORING,15/11/2017,595.00,OTHER EST - SEN PROVISION,V001189165
ROCHDALE BOROUGH COUNCIL,10/11/2017,RESOURCES,REDACTED - PERSONAL DATA,10/11/2017,"5,600.00",PROFESSIONAL FEES,V001189173
ROCHDALE BOROUGH COUNCIL,10/11/2017,RESOURCES,REDACTED - PERSONAL DATA,10/11/2017,"1,400.00",PROFESSIONAL FEES,V001189173
ROCHDALE BOROUGH COUNCIL,10/11/2017,NEIGHBOURHOODS AND ENVIRONMENT,WLG LTD,10/11/2017,617.71,CATERING - GENERAL,V001189186
ROCHDALE BOROUGH COUNCIL,23/11/2017,RESOURCES,ROSSENDALES,23/11/2017,533.93,INPUT VAT -  ADJUSTMENTS,V001189206
ROCHDALE BOROUGH COUNCIL,16/11/2017,NEIGHBOURHOODS AND ENVIRONMENT,CORPS,16/11/2017,"6,006.25",SECURITY,V001189208
ROCHDALE BOROUGH COUNCIL,15/11/2017,EARLY HELP AND SCHOOLS,THE AWARDS SCHEME LTD,15/11/2017,"3,000.00",ACTIVITIES,V001189209
ROCHDALE BOROUGH COUNCIL,15/11/2017,EARLY HELP AND SCHOOLS,THE AWARDS SCHEME LTD,15/11/2017,"1,080.00",ACTIVITIES,V001189209
ROCHDALE BOROUGH COUNCIL,15/11/2017,EARLY HELP AND SCHOOLS,THE AWARDS SCHEME LTD,15/11/2017,"1,000.00",ACTIVITIES,V001189209
ROCHDALE BOROUGH COUNCIL,10/11/2017,NEIGHBOURHOODS AND ENVIRONMENT,NORTHERN COMMERCIALS,10/11/2017,639.12,VEHICLE MAINTENANCE,V001189211
ROCHDALE BOROUGH COUNCIL,07/11/2017,PUBLIC HEALTH,HORNBEAM CPAM LIMITED,07/11/2017,"11,979.10",RENTS,V001189216
ROCHDALE BOROUGH COUNCIL,15/11/2017,PHYSICAL DIS & OLDER PEOPLE,TUNSTALL HEALTHCARE (UK) LTD,15/11/2017,"2,200.00",EQUIPMENT - GENERAL,V001189217
ROCHDALE BOROUGH COUNCIL,15/11/2017,RESOURCES,JACOBS,15/11/2017,"1,810.71",INPUT VAT -  ADJUSTMENTS,V001189223
ROCHDALE BOROUGH COUNCIL,07/11/2017,NEIGHBOURHOODS AND ENVIRONMENT,PETRUS,07/11/2017,"1,982.52",ACTIVITIES,V001189225
ROCHDALE BOROUGH COUNCIL,16/11/2017,ECONOMY DIRECTORATE,DUNCAN HODGSON COMMUNICATIONS,16/11/2017,550.00,CONSULTANTS FEES,V001189229
ROCHDALE BOROUGH COUNCIL,27/11/2017,RESOURCES,NORTHGATE PUBLIC SERVICES UK LTD,27/11/2017,"1,370.40",POSTAGE,V001189232
ROCHDALE BOROUGH COUNCIL,07/11/2017,EARLY HELP AND SCHOOLS,BELMONT SCHOOL LIMITED,07/11/2017,"11,345.13",OTHER EST - SEN PROVISION,V001189240
ROCHDALE BOROUGH COUNCIL,07/11/2017,EARLY HELP AND SCHOOLS,PENNINE CARE IN PATIENT SERVICES PRIORY,07/11/2017,525.00,OTHER EST - SEN PROVISION,V001189241
ROCHDALE BOROUGH COUNCIL,07/11/2017,EARLY HELP AND SCHOOLS,RAISE THE YOUTH FOUNDATION CIC,07/11/2017,"20,951.00",OTHER EST - SEN PROVISION,V001189242
ROCHDALE BOROUGH COUNCIL,23/11/2017,EARLY HELP AND SCHOOLS,NEW BRIDGE  SCHOOL,23/11/2017,"6,623.36",OTHER EST - SEN PROVISION,V001189243
ROCHDALE BOROUGH COUNCIL,15/11/2017,EARLY HELP AND SCHOOLS,ST CHRISTOPHERS C E HIGH SCHOOL,15/11/2017,"9,075.82",OTHER EST - SEN PROVISION,V001189244
ROCHDALE BOROUGH COUNCIL,27/11/2017,RESOURCES,ROSSENDALES,27/11/2017,556.27,INPUT VAT -  ADJUSTMENTS,V001189245
ROCHDALE BOROUGH COUNCIL,10/11/2017,EARLY HELP AND SCHOOLS,F S MOULT AND SON,10/11/2017,"2,650.00",MINOR BUILDING WORKS,V001189252
ROCHDALE BOROUGH COUNCIL,10/11/2017,EARLY HELP AND SCHOOLS,F S MOULT AND SON,10/11/2017,"1,506.05",MINOR BUILDING WORKS,V001189252
ROCHDALE BOROUGH COUNCIL,08/11/2017,PHYSICAL DIS & OLDER PEOPLE,PRIESTLEYS JOINERS,08/11/2017,"1,306.10",ADAPTATIONS,V001189269
ROCHDALE BOROUGH COUNCIL,08/11/2017,PHYSICAL DIS & OLDER PEOPLE,CAREWATCH CARE SERVICES LTD,08/11/2017,"11,392.19",HOME CARE - ADULT SERVICES,V001189276
ROCHDALE BOROUGH COUNCIL,10/11/2017,NEIGHBOURHOODS AND ENVIRONMENT,NORTHGATE VEHICLE HIRE LIMITED,10/11/2017,656.04,VEHICLE MAINTENANCE,V001189280
ROCHDALE BOROUGH COUNCIL,16/11/2017,EARLY HELP AND SCHOOLS,ENTERPRISE FLEX-E-RENT,16/11/2017,783.77,EXTERNAL HIRE,V001189281
ROCHDALE BOROUGH COUNCIL,08/11/2017,EARLY HELP AND SCHOOLS,APOLLO HOME HEALTHCARE,08/11/2017,"1,243.04",HOME CARE - CHILDRENS SERVICES,V001189282
ROCHDALE BOROUGH COUNCIL,15/11/2017,EARLY HELP AND SCHOOLS,THE TOGETHER TRUST,15/11/2017,"1,026.68",RESIDENTIAL RESPITE - CHILDRENS SERVICES,V001189283
ROCHDALE BOROUGH COUNCIL,08/11/2017,ECONOMY DIRECTORATE,BERNARD TAYLOR PARTNERSHIP,08/11/2017,"11,349.42",GRANTS TO OTHER BODIES,V001189290
ROCHDALE BOROUGH COUNCIL,08/11/2017,EARLY HELP AND SCHOOLS,MIDDLETON TECHNOLOGY ACADEMY,08/11/2017,"25,000.00",MANAGED TRANSFERS EXPENDITURE,V001189308
ROCHDALE BOROUGH COUNCIL,15/11/2017,NEIGHBOURHOODS AND ENVIRONMENT,THE COOPERATIVE FUNERALCARE,15/11/2017,"1,386.00",UNDERTAKERS COSTS,V001189311
ROCHDALE BOROUGH COUNCIL,15/11/2017,NEIGHBOURHOODS AND ENVIRONMENT,THE COOPERATIVE FUNERALCARE,15/11/2017,"1,188.00",UNDERTAKERS COSTS,V001189312
ROCHDALE BOROUGH COUNCIL,09/11/2017,NEIGHBOURHOODS AND ENVIRONMENT,DR ARUN MANOHARAN,09/11/2017,"1,452.00",MEDICAL FEES,V001189316
ROCHDALE BOROUGH COUNCIL,09/11/2017,NEIGHBOURHOODS AND ENVIRONMENT,DR ARUN MANOHARAN,09/11/2017,910.00,HISTOLOGY PAYMENTS,V001189316
ROCHDALE BOROUGH COUNCIL,14/11/2017,NEIGHBOURHOODS AND ENVIRONMENT,OEADS LIMITED,14/11/2017,600.00,OTHER MEDICAL EXPENSES,V001189318
ROCHDALE BOROUGH COUNCIL,14/11/2017,NEIGHBOURHOODS AND ENVIRONMENT,OEADS LIMITED,14/11/2017,600.00,OTHER MEDICAL EXPENSES,V001189319
ROCHDALE BOROUGH COUNCIL,15/11/2017,NEIGHBOURHOODS AND ENVIRONMENT,FORENSICS LTD,15/11/2017,517.50,TOXICOLOGY PAYMENTS,V001189320
ROCHDALE BOROUGH COUNCIL,14/11/2017,NEIGHBOURHOODS AND ENVIRONMENT,FORENSICS LTD,14/11/2017,517.50,TOXICOLOGY PAYMENTS,V001189321
ROCHDALE BOROUGH COUNCIL,10/11/2017,NEIGHBOURHOODS AND ENVIRONMENT,DR C A WILSON,10/11/2017,553.80,MEDICAL FEES,V001189322
ROCHDALE BOROUGH COUNCIL,10/11/2017,NEIGHBOURHOODS AND ENVIRONMENT,DR C A WILSON,10/11/2017,529.00,HISTOLOGY PAYMENTS,V001189322
ROCHDALE BOROUGH COUNCIL,10/11/2017,NEIGHBOURHOODS AND ENVIRONMENT,OEADS LIMITED,10/11/2017,600.00,OTHER MEDICAL EXPENSES,V001189325
ROCHDALE BOROUGH COUNCIL,08/11/2017,NEIGHBOURHOODS AND ENVIRONMENT,HIGH PEAK FORENSICS LTD,08/11/2017,830.70,MEDICAL FEES,V001189328
ROCHDALE BOROUGH COUNCIL,08/11/2017,NEIGHBOURHOODS AND ENVIRONMENT,MULTICULTURAL RESOURCE CENTRE,08/11/2017,"1,100.00",ACTIVITIES,V001189330
ROCHDALE BOROUGH COUNCIL,08/11/2017,NEIGHBOURHOODS AND ENVIRONMENT,FORENSICS LTD,08/11/2017,"1,035.00",TOXICOLOGY PAYMENTS,V001189331
ROCHDALE BOROUGH COUNCIL,09/11/2017,NEIGHBOURHOODS AND ENVIRONMENT,FORENSICS LTD,09/11/2017,"1,960.00",TOXICOLOGY PAYMENTS,V001189333
ROCHDALE BOROUGH COUNCIL,17/11/2017,ECONOMY DIRECTORATE,EAST LANCASHIRE SERVICES LIMITED,17/11/2017,905.02,SUPPLIES AND SERVICES PROVISION,V001189349
ROCHDALE BOROUGH COUNCIL,20/11/2017,PROPERTY AND HIGHWAYS,ENTWISTLE GROUP,20/11/2017,949.14,PRINTING & STATIONERY,V001189350
ROCHDALE BOROUGH COUNCIL,17/11/2017,NEIGHBOURHOODS AND ENVIRONMENT,H2O FLOWTECH LTD,17/11/2017,852.80,MAINTENANCE,V001189351
ROCHDALE BOROUGH COUNCIL,15/11/2017,NEIGHBOURHOODS AND ENVIRONMENT,CP DAVIDSON AND SONS LTD,15/11/2017,"2,640.00",TRANSACTIONS-EXPENDITURE,V001189371
ROCHDALE BOROUGH COUNCIL,08/11/2017,NEIGHBOURHOODS AND ENVIRONMENT,STEWART HOUSE LTD,08/11/2017,"1,440.00",EXPERT REPORTS,V001189372
ROCHDALE BOROUGH COUNCIL,17/11/2017,ECONOMY DIRECTORATE,GROUNDWORK LANDSCAPES LIMITED,17/11/2017,800.40,MINOR BUILDING WORKS,V001189374
ROCHDALE BOROUGH COUNCIL,14/11/2017,NEIGHBOURHOODS AND ENVIRONMENT,WHISTL UK LTD,14/11/2017,932.26,POSTAGE,V001189386
ROCHDALE BOROUGH COUNCIL,16/11/2017,NEIGHBOURHOODS AND ENVIRONMENT,P & R FIRE SECURITY,16/11/2017,"1,066.00",EQUIPMENT - GENERAL,V001189389
ROCHDALE BOROUGH COUNCIL,08/11/2017,NEIGHBOURHOODS AND ENVIRONMENT,ASH TIMBER LIMITED,08/11/2017,652.20,EQUIPMENT - GENERAL,V001189394
ROCHDALE BOROUGH COUNCIL,13/11/2017,NEIGHBOURHOODS AND ENVIRONMENT,GREENS AUTOMOTIVE,13/11/2017,630.00,VEHICLE MAINTENANCE,V001189395
ROCHDALE BOROUGH COUNCIL,16/11/2017,RESOURCES,TUSKERDIRECT LIMITED,16/11/2017,"11,218.46",TRANSACTIONS-EXPENDITURE,V001189402
ROCHDALE BOROUGH COUNCIL,16/11/2017,RESOURCES,TUSKERDIRECT LIMITED,16/11/2017,"2,364.41",TRANSACTIONS-EXPENDITURE,V001189402
ROCHDALE BOROUGH COUNCIL,08/11/2017,NEIGHBOURHOODS AND ENVIRONMENT,TODMORDEN ANGLING SOCIETY,08/11/2017,"10,000.00",ACTIVITIES,V001189403
ROCHDALE BOROUGH COUNCIL,30/11/2017,NEIGHBOURHOODS AND ENVIRONMENT,EVENTOLOGISTS LTD,30/11/2017,"2,300.00",EVENTS,V001189404
ROCHDALE BOROUGH COUNCIL,30/11/2017,NEIGHBOURHOODS AND ENVIRONMENT,EVENTOLOGISTS LTD,30/11/2017,"7,400.00",EVENTS,V001189405
ROCHDALE BOROUGH COUNCIL,17/11/2017,NEIGHBOURHOODS AND ENVIRONMENT,ARTIFAX SOFTWARE LTD,17/11/2017,"3,475.00",SOFTWARE,V001189406
ROCHDALE BOROUGH COUNCIL,17/11/2017,NEIGHBOURHOODS AND ENVIRONMENT,ARTIFAX SOFTWARE LTD,17/11/2017,"5,412.00",SOFTWARE,V001189407
ROCHDALE BOROUGH COUNCIL,17/11/2017,NEIGHBOURHOODS AND ENVIRONMENT,RESTORE DOCUMENT MANAGEMENT,17/11/2017,"3,410.14",DATA COLLECTION,V001189412
ROCHDALE BOROUGH COUNCIL,10/11/2017,PROPERTY AND HIGHWAYS,BALFOUR BEATTY  LIVING PLACES,10/11/2017,"528,007.90",TRANSACTIONS-EXPENDITURE,V001189415
ROCHDALE BOROUGH COUNCIL,15/11/2017,NEIGHBOURHOODS AND ENVIRONMENT,HEYWOOD SCAFFOLDING SERVICES,15/11/2017,602.33,MINOR BUILDING WORKS,V001189416
ROCHDALE BOROUGH COUNCIL,23/11/2017,NEIGHBOURHOODS AND ENVIRONMENT,G M WASTE DISPOSAL AUTHORITY,23/11/2017,"1,877,000.00",WASTE DISPOSAL LEVY,V001189425
ROCHDALE BOROUGH COUNCIL,23/11/2017,COLLECTION FUND,GMCA,23/11/2017,"717,163.00",TRANSACTIONS-EXPENDITURE,V001189426
ROCHDALE BOROUGH COUNCIL,23/11/2017,COLLECTION FUND,GMCA,23/11/2017,"264,904.00",TRANSACTIONS-EXPENDITURE,V001189427
ROCHDALE BOROUGH COUNCIL,23/11/2017,COLLECTION FUND,GMCA,23/11/2017,"46,650.00",TRANSACTIONS-EXPENDITURE,V001189427
ROCHDALE BOROUGH COUNCIL,16/11/2017,PROPERTY AND HIGHWAYS,WOLSELEY UK LIMITED,16/11/2017,885.36,TRANSACTIONS-EXPENDITURE,V001189429
ROCHDALE BOROUGH COUNCIL,29/11/2017,PROPERTY AND HIGHWAYS,DDH FABRICATIONS LTD,29/11/2017,"1,450.00",TRANSACTIONS-EXPENDITURE,V001189434
ROCHDALE BOROUGH COUNCIL,29/11/2017,PROPERTY AND HIGHWAYS,DDH FABRICATIONS LTD,29/11/2017,"1,305.00",TRANSACTIONS-EXPENDITURE,V001189435
ROCHDALE BOROUGH COUNCIL,30/11/2017,ECONOMY DIRECTORATE,GTM ELECTRICAL SERVICES LIMITED,30/11/2017,634.20,ELECTRICAL,V001189436
ROCHDALE BOROUGH COUNCIL,30/11/2017,EARLY HELP AND SCHOOLS,INSPIREDSPACES ROCHDALE PROJECT CO1 LTD,30/11/2017,"334,708.80",PFI SCHEMES RPIX,V001189441
ROCHDALE BOROUGH COUNCIL,17/11/2017,NEIGHBOURHOODS AND ENVIRONMENT,STHREE PARTNERSHIP LLP,17/11/2017,"1,875.00",AGENCY STAFF,V001189442
ROCHDALE BOROUGH COUNCIL,30/11/2017,EARLY HELP AND SCHOOLS,INSPIREDSPACES ROCHDALE PROJECTCO2 LTD,30/11/2017,"409,800.87",PFI SCHEMES RPIX,V001189446
ROCHDALE BOROUGH COUNCIL,08/11/2017,RESOURCES,TOPMARK CLAIMS MANAGEMENT LTD IMPREST,08/11/2017,"45,304.59",TRANSACTIONS-EXPENDITURE,V001189447
ROCHDALE BOROUGH COUNCIL,08/11/2017,PHYSICAL DIS & OLDER PEOPLE,TERRY GROUP LTD,08/11/2017,"7,613.00",MINOR BUILDING WORKS,V001189448
ROCHDALE BOROUGH COUNCIL,08/11/2017,PHYSICAL DIS & OLDER PEOPLE,STANNAH LIFT SERVICES LTD,08/11/2017,"1,150.00",MINOR BUILDING WORKS,V001189450
ROCHDALE BOROUGH COUNCIL,08/11/2017,PHYSICAL DIS & OLDER PEOPLE,ABM LANCASHIRE LIMITED,08/11/2017,"3,790.00",TRANSACTIONS-EXPENDITURE,V001189451
ROCHDALE BOROUGH COUNCIL,08/11/2017,PHYSICAL DIS & OLDER PEOPLE,STANNAH LIFT SERVICES LTD,08/11/2017,"2,303.00",MINOR BUILDING WORKS,V001189453
ROCHDALE BOROUGH COUNCIL,08/11/2017,CHILDREN�S SOCIAL CARE,FOX AND ASSOCIATES CONSULTING LTD,08/11/2017,"5,495.38",TRAINING,V001189457
ROCHDALE BOROUGH COUNCIL,17/11/2017,EARLY HELP AND SCHOOLS,TES  GLOBAL  LIMITED,17/11/2017,853.12,ADVERTISING,V001189458
ROCHDALE BOROUGH COUNCIL,16/11/2017,RESOURCES,BLOOM PROCUREMENT SERVICES LTD,16/11/2017,"20,968.15",AGENCY STAFF,V001189466
ROCHDALE BOROUGH COUNCIL,08/11/2017,EARLY HELP AND SCHOOLS,HOLLINGWORTH ACADEMY,08/11/2017,"25,000.00",MANAGED TRANSFERS EXPENDITURE,V001189467
ROCHDALE BOROUGH COUNCIL,17/11/2017,EARLY HELP AND SCHOOLS,UNIVERSITY OF BIRMINGHAM,17/11/2017,"3,750.00",TRAINING-QUALIFICATION,V001189468
ROCHDALE BOROUGH COUNCIL,08/11/2017,NEIGHBOURHOODS AND ENVIRONMENT,ANGLIA SIGN CASTING COMPANY LIMITED,08/11/2017,560.00,MATERIAL - GENERAL,V001189477
ROCHDALE BOROUGH COUNCIL,08/11/2017,RESOURCES,REDACTED - PERSONAL DATA,08/11/2017,533.28,RENT ALLOWS-PRIVATE TENANTS ST,V001189527
ROCHDALE BOROUGH COUNCIL,08/11/2017,RESOURCES,REDACTED - PERSONAL DATA,08/11/2017,"1,005.96",RENT ALLOWS-PRIVATE TENANTS ST,V001189531
ROCHDALE BOROUGH COUNCIL,09/11/2017,PHYSICAL DIS & OLDER PEOPLE,K P DODD CONSTRUCTION LIMITED,09/11/2017,"2,244.00",MINOR BUILDING WORKS,V001189536
ROCHDALE BOROUGH COUNCIL,21/11/2017,ECONOMY DIRECTORATE,METCRAFT LIGHTING LIMITED,21/11/2017,"3,000.00",ARCHITECTS FEES,V001189547
ROCHDALE BOROUGH COUNCIL,21/11/2017,ECONOMY DIRECTORATE,METCRAFT LIGHTING LIMITED,21/11/2017,"30,308.40",ARCHITECTS FEES,V001189548
ROCHDALE BOROUGH COUNCIL,15/11/2017,NEIGHBOURHOODS AND ENVIRONMENT,NO GRAFFITI LTD,15/11/2017,"1,500.00",CONTRACTED SERVICES,V001189549
ROCHDALE BOROUGH COUNCIL,15/11/2017,RESOURCES,FORBES SOLICITORS,15/11/2017,510.61,INPUT VAT -  ADJUSTMENTS,V001189552
ROCHDALE BOROUGH COUNCIL,13/11/2017,PROPERTY AND HIGHWAYS,TARGET FIRE PROTECTION LTD,13/11/2017,"2,895.50",PROPERTY - WORKS ELEMENT,V001189554
ROCHDALE BOROUGH COUNCIL,13/11/2017,PROPERTY AND HIGHWAYS,TARGET FIRE PROTECTION LTD,13/11/2017,585.23,PROPERTY - WORKS ELEMENT,V001189554
ROCHDALE BOROUGH COUNCIL,15/11/2017,PROPERTY AND HIGHWAYS,F BRIERLEY & SON LIMITED,15/11/2017,"1,280.00",TRANSACTIONS-EXPENDITURE,V001189559
ROCHDALE BOROUGH COUNCIL,10/11/2017,PHYSICAL DIS & OLDER PEOPLE,LITTLEBOROUGH CARE HOME LIMITED,10/11/2017,900.00,RESIDENTIAL LONG TERM,V001189561
ROCHDALE BOROUGH COUNCIL,10/11/2017,LEARNING DIS & MENTAL HEALTH,CALTON SYSTEMS LIMITED,10/11/2017,583.76,NURSING LONG TERM,V001189562
ROCHDALE BOROUGH COUNCIL,10/11/2017,LEARNING DIS & MENTAL HEALTH,BELGRAVIA CARE,10/11/2017,999.60,RESIDENTIAL LONG TERM,V001189563
ROCHDALE BOROUGH COUNCIL,10/11/2017,PHYSICAL DIS & OLDER PEOPLE,HC ONE OVAL LTD,10/11/2017,578.14,RESIDENTIAL LONG TERM,V001189564
ROCHDALE BOROUGH COUNCIL,10/11/2017,LEARNING DIS & MENTAL HEALTH,LIVING AMBITIONS LTD,10/11/2017,"2,075.00",RESIDENTIAL LONG TERM,V001189565
ROCHDALE BOROUGH COUNCIL,10/11/2017,LEARNING DIS & MENTAL HEALTH,THE ELMS,10/11/2017,730.50,NURSING LONG TERM,V001189566
ROCHDALE BOROUGH COUNCIL,10/11/2017,LEARNING DIS & MENTAL HEALTH,UNITED RESPONSE,10/11/2017,"2,228.44",RESIDENTIAL LONG TERM,V001189567
ROCHDALE BOROUGH COUNCIL,10/11/2017,LEARNING DIS & MENTAL HEALTH,EAST AND WEST HEALTHCARE LIMITED,10/11/2017,914.00,RESIDENTIAL LONG TERM,V001189568
ROCHDALE BOROUGH COUNCIL,10/11/2017,PHYSICAL DIS & OLDER PEOPLE,LEONARD CHESHIRE FOUNDATION WALES & WEST,10/11/2017,"1,092.86",NURSING LONG TERM,V001189569
ROCHDALE BOROUGH COUNCIL,10/11/2017,PHYSICAL DIS & OLDER PEOPLE,EAST AND WEST HEALTHCARE LIMITED,10/11/2017,754.50,NURSING LONG TERM,V001189570
ROCHDALE BOROUGH COUNCIL,10/11/2017,PHYSICAL DIS & OLDER PEOPLE,MCAULEY MOUNT RESIDENTIAL CARE HOME,10/11/2017,610.66,RESIDENTIAL LONG TERM,V001189571
ROCHDALE BOROUGH COUNCIL,10/11/2017,PHYSICAL DIS & OLDER PEOPLE,LITTLEBOROUGH CARE HOME LIMITED,10/11/2017,900.00,RESIDENTIAL LONG TERM,V001189572
ROCHDALE BOROUGH COUNCIL,10/11/2017,PHYSICAL DIS & OLDER PEOPLE,EAST AND WEST HEALTHCARE LIMITED,10/11/2017,594.32,NURSING LONG TERM,V001189573
ROCHDALE BOROUGH COUNCIL,10/11/2017,LEARNING DIS & MENTAL HEALTH,THE JOSEPH COX CHARITY,10/11/2017,946.08,RESIDENTIAL LONG TERM,V001189574
ROCHDALE BOROUGH COUNCIL,10/11/2017,PHYSICAL DIS & OLDER PEOPLE,EAGLE CARE HOMES LTD,10/11/2017,645.10,RESIDENTIAL LONG TERM,V001189575
ROCHDALE BOROUGH COUNCIL,10/11/2017,LEARNING DIS & MENTAL HEALTH,THE ELMS,10/11/2017,738.50,RESIDENTIAL LONG TERM,V001189576
ROCHDALE BOROUGH COUNCIL,10/11/2017,LEARNING DIS & MENTAL HEALTH,HEALEY CARE LTD,10/11/2017,"2,335.78",RESIDENTIAL LONG TERM,V001189577
ROCHDALE BOROUGH COUNCIL,10/11/2017,PHYSICAL DIS & OLDER PEOPLE,HC ONE LTD,10/11/2017,900.00,RESIDENTIAL LONG TERM,V001189578
ROCHDALE BOROUGH COUNCIL,10/11/2017,PHYSICAL DIS & OLDER PEOPLE,MT CARE PROPERTY LTD,10/11/2017,900.00,RESIDENTIAL LONG TERM,V001189579
ROCHDALE BOROUGH COUNCIL,10/11/2017,LEARNING DIS & MENTAL HEALTH,PASSMONDS NURSING HOME,10/11/2017,900.00,RESIDENTIAL LONG TERM,V001189580
ROCHDALE BOROUGH COUNCIL,10/11/2017,PHYSICAL DIS & OLDER PEOPLE,ST GEORGES NURSING HOME OLDHAM LTD,10/11/2017,"2,812.50",NURSING LONG TERM,V001189581
ROCHDALE BOROUGH COUNCIL,10/11/2017,PHYSICAL DIS & OLDER PEOPLE,CHADDERTON TOTAL CARE UNIT LTD,10/11/2017,"1,122.18",NURSING LONG TERM,V001189597
ROCHDALE BOROUGH COUNCIL,10/11/2017,PHYSICAL DIS & OLDER PEOPLE,DRB HEALTHCARE LTD,10/11/2017,"-1,078.70",NURSING LONG TERM,V001189599
ROCHDALE BOROUGH COUNCIL,10/11/2017,PHYSICAL DIS & OLDER PEOPLE,DRB HEALTHCARE LTD,10/11/2017,"-1,078.70",NURSING LONG TERM,V001189600
ROCHDALE BOROUGH COUNCIL,10/11/2017,PHYSICAL DIS & OLDER PEOPLE,DRB HEALTHCARE LTD,10/11/2017,"-1,078.70",NURSING LONG TERM,V001189601
ROCHDALE BOROUGH COUNCIL,10/11/2017,PHYSICAL DIS & OLDER PEOPLE,DRB HEALTHCARE LTD,10/11/2017,"-1,078.70",NURSING LONG TERM,V001189602
ROCHDALE BOROUGH COUNCIL,10/11/2017,PHYSICAL DIS & OLDER PEOPLE,MONA CLIFFE CARE HOME,10/11/2017,900.00,RESIDENTIAL LONG TERM,V001189604
ROCHDALE BOROUGH COUNCIL,10/11/2017,PHYSICAL DIS & OLDER PEOPLE,HC ONE LTD,10/11/2017,914.00,RESIDENTIAL LONG TERM,V001189605
ROCHDALE BOROUGH COUNCIL,10/11/2017,PHYSICAL DIS & OLDER PEOPLE,ELDERCARE LANCS LIMITED,10/11/2017,900.00,RESIDENTIAL LONG TERM,V001189606
ROCHDALE BOROUGH COUNCIL,10/11/2017,PHYSICAL DIS & OLDER PEOPLE,EAST AND WEST HEALTHCARE LIMITED,10/11/2017,639.72,RESIDENTIAL LONG TERM,V001189607
ROCHDALE BOROUGH COUNCIL,10/11/2017,PHYSICAL DIS & OLDER PEOPLE,LITTLE HEATON CARE HOME,10/11/2017,900.00,RESIDENTIAL LONG TERM,V001189608
ROCHDALE BOROUGH COUNCIL,10/11/2017,PHYSICAL DIS & OLDER PEOPLE,MONA CLIFFE CARE HOME,10/11/2017,900.00,RESIDENTIAL LONG TERM,V001189609
ROCHDALE BOROUGH COUNCIL,10/11/2017,PHYSICAL DIS & OLDER PEOPLE,THE JOSEPH COX CHARITY,10/11/2017,947.00,RESIDENTIAL LONG TERM,V001189611
ROCHDALE BOROUGH COUNCIL,10/11/2017,PHYSICAL DIS & OLDER PEOPLE,EAST AND WEST HEALTHCARE LIMITED,10/11/2017,635.68,RESIDENTIAL LONG TERM,V001189612
ROCHDALE BOROUGH COUNCIL,10/11/2017,PHYSICAL DIS & OLDER PEOPLE,BUPA CARE HOMES LIMITED,10/11/2017,588.00,NURSING LONG TERM,V001189613
ROCHDALE BOROUGH COUNCIL,10/11/2017,LEARNING DIS & MENTAL HEALTH,GENHAWK LIMITED,10/11/2017,"3,372.68",RESIDENTIAL LONG TERM,V001189614
ROCHDALE BOROUGH COUNCIL,10/11/2017,PHYSICAL DIS & OLDER PEOPLE,EAST AND WEST HEALTHCARE LIMITED,10/11/2017,681.10,NURSING LONG TERM,V001189615
ROCHDALE BOROUGH COUNCIL,10/11/2017,PHYSICAL DIS & OLDER PEOPLE,HORIZON  RESIDENTIAL HOMES LTD,10/11/2017,631.10,RESIDENTIAL LONG TERM,V001189617
ROCHDALE BOROUGH COUNCIL,10/11/2017,PHYSICAL DIS & OLDER PEOPLE,MT CARE PROPERTY LTD,10/11/2017,900.00,RESIDENTIAL LONG TERM,V001189618
ROCHDALE BOROUGH COUNCIL,10/11/2017,LEARNING DIS & MENTAL HEALTH,THE LAKES CARE CENTRE,10/11/2017,771.70,NURSING LONG TERM,V001189619
ROCHDALE BOROUGH COUNCIL,10/11/2017,LEARNING DIS & MENTAL HEALTH,MORNINGTON HOUSE W E F,10/11/2017,"2,876.36",RESIDENTIAL LONG TERM,V001189620
ROCHDALE BOROUGH COUNCIL,10/11/2017,PHYSICAL DIS & OLDER PEOPLE,HC ONE OVAL LTD,10/11/2017,638.60,NURSING LONG TERM,V001189621
ROCHDALE BOROUGH COUNCIL,10/11/2017,LEARNING DIS & MENTAL HEALTH,PASSMONDS NURSING HOME,10/11/2017,900.00,RESIDENTIAL LONG TERM,V001189622
ROCHDALE BOROUGH COUNCIL,10/11/2017,LEARNING DIS & MENTAL HEALTH,BROWFIELD RESIDENTIAL HOME,10/11/2017,706.50,RESIDENTIAL LONG TERM,V001189638
ROCHDALE BOROUGH COUNCIL,10/11/2017,LEARNING DIS & MENTAL HEALTH,ROOKWOOD,10/11/2017,800.00,RESIDENTIAL LONG TERM,V001189639
ROCHDALE BOROUGH COUNCIL,10/11/2017,LEARNING DIS & MENTAL HEALTH,BROWFIELD RESIDENTIAL HOME,10/11/2017,"1,093.24",RESIDENTIAL LONG TERM,V001189640
ROCHDALE BOROUGH COUNCIL,10/11/2017,LEARNING DIS & MENTAL HEALTH,BELVOIR CARE HOME LIMITED,10/11/2017,900.00,RESIDENTIAL LONG TERM,V001189641
ROCHDALE BOROUGH COUNCIL,10/11/2017,LEARNING DIS & MENTAL HEALTH,HC ONE OVAL LTD,10/11/2017,631.10,RESIDENTIAL LONG TERM,V001189642
ROCHDALE BOROUGH COUNCIL,10/11/2017,LEARNING DIS & MENTAL HEALTH,SUNNYBANK P R S LTD,10/11/2017,"1,148.80",RESIDENTIAL LONG TERM,V001189643
ROCHDALE BOROUGH COUNCIL,10/11/2017,LEARNING DIS & MENTAL HEALTH,SUNNYBANK P R S LTD,10/11/2017,571.20,RESIDENTIAL LONG TERM,V001189644
ROCHDALE BOROUGH COUNCIL,10/11/2017,LEARNING DIS & MENTAL HEALTH,HEALEY CARE LTD,10/11/2017,840.64,RESIDENTIAL LONG TERM,V001189645
ROCHDALE BOROUGH COUNCIL,10/11/2017,LEARNING DIS & MENTAL HEALTH,MORNINGTON HOUSE W E F,10/11/2017,"1,854.50",RESIDENTIAL LONG TERM,V001189646
ROCHDALE BOROUGH COUNCIL,10/11/2017,LEARNING DIS & MENTAL HEALTH,APSLEY HOUSE,10/11/2017,"1,876.76",RESIDENTIAL LONG TERM,V001189647
ROCHDALE BOROUGH COUNCIL,10/11/2017,LEARNING DIS & MENTAL HEALTH,STRATHMORE HOUSE,10/11/2017,654.54,RESIDENTIAL LONG TERM,V001189648
ROCHDALE BOROUGH COUNCIL,10/11/2017,LEARNING DIS & MENTAL HEALTH,CHAFFINCH RESIDENTIAL HOME,10/11/2017,585.44,RESIDENTIAL LONG TERM,V001189649
ROCHDALE BOROUGH COUNCIL,10/11/2017,LEARNING DIS & MENTAL HEALTH,BROWFIELD RESIDENTIAL HOME,10/11/2017,"1,115.10",RESIDENTIAL LONG TERM,V001189650
ROCHDALE BOROUGH COUNCIL,10/11/2017,LEARNING DIS & MENTAL HEALTH,CALTON SYSTEMS LIMITED,10/11/2017,737.40,RESIDENTIAL LONG TERM,V001189651
ROCHDALE BOROUGH COUNCIL,10/11/2017,LEARNING DIS & MENTAL HEALTH,HC ONE OVAL LTD,10/11/2017,631.10,NURSING LONG TERM,V001189652
ROCHDALE BOROUGH COUNCIL,10/11/2017,LEARNING DIS & MENTAL HEALTH,ROOKWOOD,10/11/2017,"2,198.48",RESIDENTIAL LONG TERM,V001189653
ROCHDALE BOROUGH COUNCIL,10/11/2017,LEARNING DIS & MENTAL HEALTH,EAST AND WEST HEALTHCARE LIMITED,10/11/2017,736.50,NURSING LONG TERM,V001189654
ROCHDALE BOROUGH COUNCIL,10/11/2017,LEARNING DIS & MENTAL HEALTH,CHOICE LIMITED,10/11/2017,"3,564.56",RESIDENTIAL LONG TERM,V001189655
ROCHDALE BOROUGH COUNCIL,10/11/2017,PHYSICAL DIS & OLDER PEOPLE,EAST AND WEST HEALTHCARE LIMITED,10/11/2017,"1,012.28",NURSING LONG TERM,V001189656
ROCHDALE BOROUGH COUNCIL,10/11/2017,PHYSICAL DIS & OLDER PEOPLE,LITTLEBOROUGH CARE HOME LIMITED,10/11/2017,900.00,RESIDENTIAL LONG TERM,V001189657
ROCHDALE BOROUGH COUNCIL,10/11/2017,LEARNING DIS & MENTAL HEALTH,WELLESLEY HOUSE,10/11/2017,"1,806.98",RESIDENTIAL LONG TERM,V001189658
ROCHDALE BOROUGH COUNCIL,10/11/2017,PHYSICAL DIS & OLDER PEOPLE,MOORHAVEN NURSING HOME,10/11/2017,529.80,RESIDENTIAL LONG TERM,V001189659
ROCHDALE BOROUGH COUNCIL,10/11/2017,LEARNING DIS & MENTAL HEALTH,PASSMONDS NURSING HOME,10/11/2017,900.00,RESIDENTIAL LONG TERM,V001189660
ROCHDALE BOROUGH COUNCIL,10/11/2017,LEARNING DIS & MENTAL HEALTH,HC ONE LTD,10/11/2017,"1,062.82",NURSING LONG TERM,V001189661
ROCHDALE BOROUGH COUNCIL,10/11/2017,LEARNING DIS & MENTAL HEALTH,ROOKWOOD,10/11/2017,714.50,RESIDENTIAL LONG TERM,V001189662
ROCHDALE BOROUGH COUNCIL,10/11/2017,PHYSICAL DIS & OLDER PEOPLE,FERN BANK THERAPEUTIC COMMUNITY LTD,10/11/2017,759.10,RESIDENTIAL LONG TERM,V001189663
ROCHDALE BOROUGH COUNCIL,10/11/2017,PHYSICAL DIS & OLDER PEOPLE,DRB HEALTHCARE LTD,10/11/2017,585.30,NURSING LONG TERM,V001189664
ROCHDALE BOROUGH COUNCIL,10/11/2017,PHYSICAL DIS & OLDER PEOPLE,LITTLE HEATON CARE HOME,10/11/2017,900.00,RESIDENTIAL LONG TERM,V001189665
ROCHDALE BOROUGH COUNCIL,10/11/2017,LEARNING DIS & MENTAL HEALTH,DRB HEALTHCARE LTD,10/11/2017,611.38,RESIDENTIAL LONG TERM,V001189666
ROCHDALE BOROUGH COUNCIL,10/11/2017,LEARNING DIS & MENTAL HEALTH,HEALEY CARE LTD,10/11/2017,"2,578.70",RESIDENTIAL LONG TERM,V001189667
ROCHDALE BOROUGH COUNCIL,10/11/2017,LEARNING DIS & MENTAL HEALTH,HEALEY CARE LTD,10/11/2017,"2,572.40",RESIDENTIAL LONG TERM,V001189668
ROCHDALE BOROUGH COUNCIL,10/11/2017,LEARNING DIS & MENTAL HEALTH,RANDOMLIGHT LIMITED,10/11/2017,"3,000.00",RESIDENTIAL LONG TERM,V001189669
ROCHDALE BOROUGH COUNCIL,10/11/2017,LEARNING DIS & MENTAL HEALTH,CALTON SYSTEMS LIMITED,10/11/2017,698.70,RESIDENTIAL LONG TERM,V001189685
ROCHDALE BOROUGH COUNCIL,10/11/2017,LEARNING DIS & MENTAL HEALTH,EAST AND WEST HEALTHCARE LIMITED,10/11/2017,738.70,NURSING LONG TERM,V001189686
ROCHDALE BOROUGH COUNCIL,10/11/2017,LEARNING DIS & MENTAL HEALTH,FITZROY,10/11/2017,"2,121.96",RESIDENTIAL LONG TERM,V001189687
ROCHDALE BOROUGH COUNCIL,10/11/2017,LEARNING DIS & MENTAL HEALTH,HEALEY CARE LTD,10/11/2017,"2,380.80",RESIDENTIAL LONG TERM,V001189688
ROCHDALE BOROUGH COUNCIL,10/11/2017,LEARNING DIS & MENTAL HEALTH,HEALEY CARE LTD,10/11/2017,"2,403.60",RESIDENTIAL LONG TERM,V001189689
ROCHDALE BOROUGH COUNCIL,10/11/2017,LEARNING DIS & MENTAL HEALTH,AUTISM INITIATIVES,10/11/2017,"2,937.66",RESIDENTIAL LONG TERM,V001189690
ROCHDALE BOROUGH COUNCIL,10/11/2017,LEARNING DIS & MENTAL HEALTH,BROWFIELD RESIDENTIAL HOME,10/11/2017,631.10,NURSING LONG TERM,V001189706
ROCHDALE BOROUGH COUNCIL,10/11/2017,LEARNING DIS & MENTAL HEALTH,ROOKWOOD,10/11/2017,"1,228.78",RESIDENTIAL LONG TERM,V001189707
ROCHDALE BOROUGH COUNCIL,10/11/2017,LEARNING DIS & MENTAL HEALTH,CALTON SYSTEMS LIMITED,10/11/2017,969.42,RESIDENTIAL LONG TERM,V001189708
ROCHDALE BOROUGH COUNCIL,10/11/2017,LEARNING DIS & MENTAL HEALTH,HEALEY CARE LTD,10/11/2017,"3,319.44",RESIDENTIAL LONG TERM,V001189709
ROCHDALE BOROUGH COUNCIL,10/11/2017,LEARNING DIS & MENTAL HEALTH,HEALEY CARE LTD,10/11/2017,"2,636.08",RESIDENTIAL LONG TERM,V001189710
ROCHDALE BOROUGH COUNCIL,10/11/2017,LEARNING DIS & MENTAL HEALTH,HEALEY CARE LTD,10/11/2017,"1,731.90",RESIDENTIAL LONG TERM,V001189711
ROCHDALE BOROUGH COUNCIL,10/11/2017,LEARNING DIS & MENTAL HEALTH,MORNINGTON HOUSE W E F,10/11/2017,"2,387.64",RESIDENTIAL LONG TERM,V001189712
ROCHDALE BOROUGH COUNCIL,10/11/2017,LEARNING DIS & MENTAL HEALTH,MORNINGTON HOUSE W E F,10/11/2017,"2,495.82",RESIDENTIAL LONG TERM,V001189713
ROCHDALE BOROUGH COUNCIL,10/11/2017,LEARNING DIS & MENTAL HEALTH,HEALEY CARE LTD,10/11/2017,"1,864.40",RESIDENTIAL LONG TERM,V001189714
ROCHDALE BOROUGH COUNCIL,10/11/2017,LEARNING DIS & MENTAL HEALTH,AUTISM PLUS LIMITED,10/11/2017,"2,071.08",RESIDENTIAL LONG TERM,V001189715
ROCHDALE BOROUGH COUNCIL,10/11/2017,LEARNING DIS & MENTAL HEALTH,MORNINGTON HOUSE W E F,10/11/2017,"1,832.76",RESIDENTIAL LONG TERM,V001189716
ROCHDALE BOROUGH COUNCIL,10/11/2017,LEARNING DIS & MENTAL HEALTH,HEALEY CARE LTD,10/11/2017,"1,748.10",RESIDENTIAL LONG TERM,V001189717
ROCHDALE BOROUGH COUNCIL,10/11/2017,LEARNING DIS & MENTAL HEALTH,RANDOMLIGHT LIMITED,10/11/2017,"1,200.00",RESIDENTIAL LONG TERM,V001189719
ROCHDALE BOROUGH COUNCIL,10/11/2017,LEARNING DIS & MENTAL HEALTH,APSLEY HOUSE,10/11/2017,"2,265.18",RESIDENTIAL LONG TERM,V001189720
ROCHDALE BOROUGH COUNCIL,10/11/2017,LEARNING DIS & MENTAL HEALTH,BROOKFIELD CARE HOME,10/11/2017,838.36,RESIDENTIAL LONG TERM,V001189721
ROCHDALE BOROUGH COUNCIL,10/11/2017,LEARNING DIS & MENTAL HEALTH,HEALEY CARE LTD,10/11/2017,"2,111.00",RESIDENTIAL LONG TERM,V001189722
ROCHDALE BOROUGH COUNCIL,10/11/2017,LEARNING DIS & MENTAL HEALTH,DAVID LEWIS ORGANISATION,10/11/2017,"6,503.68",RESIDENTIAL LONG TERM,V001189723
ROCHDALE BOROUGH COUNCIL,10/11/2017,LEARNING DIS & MENTAL HEALTH,HEALEY CARE LTD,10/11/2017,"2,185.10",RESIDENTIAL LONG TERM,V001189724
ROCHDALE BOROUGH COUNCIL,10/11/2017,LEARNING DIS & MENTAL HEALTH,HEALEY CARE LTD,10/11/2017,"1,450.70",RESIDENTIAL LONG TERM,V001189725
ROCHDALE BOROUGH COUNCIL,10/11/2017,PHYSICAL DIS & OLDER PEOPLE,ATLANTIS MEDICARE LTD,10/11/2017,900.00,RESIDENTIAL LONG TERM,V001189726
ROCHDALE BOROUGH COUNCIL,10/11/2017,LEARNING DIS & MENTAL HEALTH,MORNINGTON HOUSE W E F,10/11/2017,"1,976.20",RESIDENTIAL LONG TERM,V001189727
ROCHDALE BOROUGH COUNCIL,10/11/2017,LEARNING DIS & MENTAL HEALTH,CALTON SYSTEMS LIMITED,10/11/2017,698.70,RESIDENTIAL LONG TERM,V001189743
ROCHDALE BOROUGH COUNCIL,10/11/2017,PHYSICAL DIS & OLDER PEOPLE,LITTLE HEATON CARE HOME,10/11/2017,900.00,RESIDENTIAL LONG TERM,V001189744
ROCHDALE BOROUGH COUNCIL,10/11/2017,PHYSICAL DIS & OLDER PEOPLE,ARCHMOOR CARE HOME,10/11/2017,900.00,RESIDENTIAL LONG TERM,V001189745
ROCHDALE BOROUGH COUNCIL,10/11/2017,PHYSICAL DIS & OLDER PEOPLE,STAMFORD HOUSE REST HOME LIMITED,10/11/2017,631.10,RESIDENTIAL LONG TERM,V001189746
ROCHDALE BOROUGH COUNCIL,10/11/2017,LEARNING DIS & MENTAL HEALTH,CALTON SYSTEMS LIMITED,10/11/2017,900.00,RESIDENTIAL LONG TERM,V001189762
ROCHDALE BOROUGH COUNCIL,10/11/2017,LEARNING DIS & MENTAL HEALTH,AVERILL HOUSE CARE HOME,10/11/2017,615.80,RESIDENTIAL LONG TERM,V001189763
ROCHDALE BOROUGH COUNCIL,10/11/2017,LEARNING DIS & MENTAL HEALTH,ROOKWOOD,10/11/2017,806.52,NURSING LONG TERM,V001189764
ROCHDALE BOROUGH COUNCIL,10/11/2017,LEARNING DIS & MENTAL HEALTH,OAKLAND HOUSE CARE HOME,10/11/2017,938.96,NURSING LONG TERM,V001189765
ROCHDALE BOROUGH COUNCIL,10/11/2017,LEARNING DIS & MENTAL HEALTH,ROOKWOOD,10/11/2017,805.64,NURSING LONG TERM,V001189766
ROCHDALE BOROUGH COUNCIL,10/11/2017,PHYSICAL DIS & OLDER PEOPLE,EAST AND WEST HEALTHCARE LIMITED,10/11/2017,671.10,NURSING LONG TERM,V001189767
ROCHDALE BOROUGH COUNCIL,10/11/2017,LEARNING DIS & MENTAL HEALTH,SUNNYBANK P R S LTD,10/11/2017,"1,618.80",RESIDENTIAL LONG TERM,V001189768
ROCHDALE BOROUGH COUNCIL,10/11/2017,LEARNING DIS & MENTAL HEALTH,LIVING AMBITIONS LTD,10/11/2017,"2,887.24",RESIDENTIAL LONG TERM,V001189769
ROCHDALE BOROUGH COUNCIL,10/11/2017,LEARNING DIS & MENTAL HEALTH,CALTON SYSTEMS LIMITED,10/11/2017,698.70,RESIDENTIAL LONG TERM,V001189770
ROCHDALE BOROUGH COUNCIL,10/11/2017,LEARNING DIS & MENTAL HEALTH,WELLESLEY HOUSE,10/11/2017,"2,316.28",RESIDENTIAL LONG TERM,V001189771
ROCHDALE BOROUGH COUNCIL,10/11/2017,LEARNING DIS & MENTAL HEALTH,LIVING AMBITIONS LTD,10/11/2017,"5,398.70",RESIDENTIAL LONG TERM,V001189772
ROCHDALE BOROUGH COUNCIL,10/11/2017,PHYSICAL DIS & OLDER PEOPLE,BELVOIR CARE HOME LIMITED,10/11/2017,900.00,RESIDENTIAL LONG TERM,V001189773
ROCHDALE BOROUGH COUNCIL,10/11/2017,LEARNING DIS & MENTAL HEALTH,HEALEY CARE LTD,10/11/2017,"2,017.90",RESIDENTIAL LONG TERM,V001189774
ROCHDALE BOROUGH COUNCIL,10/11/2017,PHYSICAL DIS & OLDER PEOPLE,EAST AND WEST HEALTHCARE LIMITED,10/11/2017,940.00,NURSING LONG TERM,V001189775
ROCHDALE BOROUGH COUNCIL,10/11/2017,LEARNING DIS & MENTAL HEALTH,ROOKWOOD,10/11/2017,631.10,NURSING LONG TERM,V001189791
ROCHDALE BOROUGH COUNCIL,10/11/2017,LEARNING DIS & MENTAL HEALTH,CARE IN SAFE HANDS HEALTHCARE LIMITED,10/11/2017,"3,473.10",RESIDENTIAL LONG TERM,V001189792
ROCHDALE BOROUGH COUNCIL,10/11/2017,LEARNING DIS & MENTAL HEALTH,FREEHOLD COTTAGE,10/11/2017,"1,184.00",RESIDENTIAL LONG TERM,V001189793
ROCHDALE BOROUGH COUNCIL,10/11/2017,LEARNING DIS & MENTAL HEALTH,THE REGARD PARTNERSHIP LIMITED,10/11/2017,919.10,RESIDENTIAL LONG TERM,V001189794
ROCHDALE BOROUGH COUNCIL,10/11/2017,PHYSICAL DIS & OLDER PEOPLE,HC ONE,10/11/2017,533.58,NURSING LONG TERM,V001189795
ROCHDALE BOROUGH COUNCIL,10/11/2017,LEARNING DIS & MENTAL HEALTH,ROOKWOOD,10/11/2017,806.52,RESIDENTIAL LONG TERM,V001189796
ROCHDALE BOROUGH COUNCIL,10/11/2017,LEARNING DIS & MENTAL HEALTH,HEALEY CARE LTD,10/11/2017,"1,460.28",RESIDENTIAL LONG TERM,V001189797
ROCHDALE BOROUGH COUNCIL,10/11/2017,LEARNING DIS & MENTAL HEALTH,BROOKVALE RESIDENTIAL CARE,10/11/2017,991.98,RESIDENTIAL LONG TERM,V001189798
ROCHDALE BOROUGH COUNCIL,10/11/2017,LEARNING DIS & MENTAL HEALTH,BROOKVALE RESIDENTIAL CARE,10/11/2017,938.50,RESIDENTIAL LONG TERM,V001189799
ROCHDALE BOROUGH COUNCIL,10/11/2017,PHYSICAL DIS & OLDER PEOPLE,BRIARMEDE CARE LTD,10/11/2017,900.00,RESIDENTIAL LONG TERM,V001189800
ROCHDALE BOROUGH COUNCIL,10/11/2017,LEARNING DIS & MENTAL HEALTH,MORNINGTON HOUSE W E F,10/11/2017,"2,037.74",RESIDENTIAL LONG TERM,V001189801
ROCHDALE BOROUGH COUNCIL,10/11/2017,PHYSICAL DIS & OLDER PEOPLE,HC ONE OVAL LTD,10/11/2017,508.30,RESIDENTIAL LONG TERM,V001189802
ROCHDALE BOROUGH COUNCIL,10/11/2017,PHYSICAL DIS & OLDER PEOPLE,HC ONE OVAL LTD,10/11/2017,565.76,RESIDENTIAL LONG TERM,V001189803
ROCHDALE BOROUGH COUNCIL,10/11/2017,PHYSICAL DIS & OLDER PEOPLE,BUPA CARE HOMES LIMITED,10/11/2017,604.28,NURSING LONG TERM,V001189804
ROCHDALE BOROUGH COUNCIL,10/11/2017,PHYSICAL DIS & OLDER PEOPLE,ATLANTIS MEDICARE LTD,10/11/2017,900.00,RESIDENTIAL LONG TERM,V001189805
ROCHDALE BOROUGH COUNCIL,10/11/2017,PHYSICAL DIS & OLDER PEOPLE,EAGLE CARE HOMES LTD,10/11/2017,645.10,RESIDENTIAL LONG TERM,V001189806
ROCHDALE BOROUGH COUNCIL,10/11/2017,PHYSICAL DIS & OLDER PEOPLE,ATLANTIS MEDICARE LTD,10/11/2017,900.00,RESIDENTIAL LONG TERM,V001189807
ROCHDALE BOROUGH COUNCIL,10/11/2017,PHYSICAL DIS & OLDER PEOPLE,EAST AND WEST HEALTHCARE LIMITED,10/11/2017,"1,435.28",NURSING LONG TERM,V001189808
ROCHDALE BOROUGH COUNCIL,10/11/2017,PHYSICAL DIS & OLDER PEOPLE,STAMFORD HOUSE REST HOME LIMITED,10/11/2017,611.48,RESIDENTIAL LONG TERM,V001189809
ROCHDALE BOROUGH COUNCIL,10/11/2017,LEARNING DIS & MENTAL HEALTH,WELLESLEY HOUSE,10/11/2017,"1,875.14",RESIDENTIAL LONG TERM,V001189810
ROCHDALE BOROUGH COUNCIL,10/11/2017,LEARNING DIS & MENTAL HEALTH,PASSMONDS NURSING HOME,10/11/2017,900.00,RESIDENTIAL LONG TERM,V001189811
ROCHDALE BOROUGH COUNCIL,10/11/2017,LEARNING DIS & MENTAL HEALTH,PENDLETON CARE LTD,10/11/2017,"3,355.60",RESIDENTIAL LONG TERM,V001189812
ROCHDALE BOROUGH COUNCIL,10/11/2017,LEARNING DIS & MENTAL HEALTH,MT CARE PROPERTY LTD,10/11/2017,900.00,RESIDENTIAL LONG TERM,V001189813
ROCHDALE BOROUGH COUNCIL,10/11/2017,LEARNING DIS & MENTAL HEALTH,HEALEY CARE LTD,10/11/2017,"2,310.30",RESIDENTIAL LONG TERM,V001189814
ROCHDALE BOROUGH COUNCIL,10/11/2017,LEARNING DIS & MENTAL HEALTH,HEALEY CARE LTD,10/11/2017,"2,746.00",RESIDENTIAL LONG TERM,V001189815
ROCHDALE BOROUGH COUNCIL,10/11/2017,LEARNING DIS & MENTAL HEALTH,MORNINGTON HOUSE W E F,10/11/2017,"2,368.94",RESIDENTIAL LONG TERM,V001189816
ROCHDALE BOROUGH COUNCIL,10/11/2017,PHYSICAL DIS & OLDER PEOPLE,ST GEORGES NURSING HOME OLDHAM LTD,10/11/2017,"1,472.60",NURSING LONG TERM,V001189817
ROCHDALE BOROUGH COUNCIL,10/11/2017,PHYSICAL DIS & OLDER PEOPLE,HOLLIN KNOWLE RESIDENTIAL CARE HOME,10/11/2017,727.50,RESIDENTIAL LONG TERM,V001189818
ROCHDALE BOROUGH COUNCIL,10/11/2017,PHYSICAL DIS & OLDER PEOPLE,STAMFORD HOUSE REST HOME LIMITED,10/11/2017,611.40,RESIDENTIAL LONG TERM,V001189819
ROCHDALE BOROUGH COUNCIL,10/11/2017,PHYSICAL DIS & OLDER PEOPLE,STANSFIELD HALL REST HOME,10/11/2017,900.00,RESIDENTIAL LONG TERM,V001189820
ROCHDALE BOROUGH COUNCIL,10/11/2017,LEARNING DIS & MENTAL HEALTH,ROOKWOOD,10/11/2017,630.50,RESIDENTIAL LONG TERM,V001189821
ROCHDALE BOROUGH COUNCIL,10/11/2017,PHYSICAL DIS & OLDER PEOPLE,DENTAK CARE AND SERVICES LTD,10/11/2017,900.00,NURSING LONG TERM,V001189822
ROCHDALE BOROUGH COUNCIL,10/11/2017,LEARNING DIS & MENTAL HEALTH,FOUR SEASONS HEALTHCARE,10/11/2017,645.10,RESIDENTIAL LONG TERM,V001189823
ROCHDALE BOROUGH COUNCIL,10/11/2017,PHYSICAL DIS & OLDER PEOPLE,DRB HEALTHCARE LTD,10/11/2017,631.10,NURSING LONG TERM,V001189824
ROCHDALE BOROUGH COUNCIL,10/11/2017,PHYSICAL DIS & OLDER PEOPLE,BUPA CARE HOMES LIMITED,10/11/2017,579.40,RESIDENTIAL LONG TERM,V001189825
ROCHDALE BOROUGH COUNCIL,10/11/2017,PHYSICAL DIS & OLDER PEOPLE,CLEGGSWORTH CARE HOME LIMITED,10/11/2017,900.00,RESIDENTIAL LONG TERM,V001189826
ROCHDALE BOROUGH COUNCIL,10/11/2017,PHYSICAL DIS & OLDER PEOPLE,CLEGGSWORTH CARE HOME LIMITED,10/11/2017,900.00,RESIDENTIAL LONG TERM,V001189827
ROCHDALE BOROUGH COUNCIL,10/11/2017,LEARNING DIS & MENTAL HEALTH,EAST AND WEST HEALTHCARE LIMITED,10/11/2017,838.70,NURSING LONG TERM,V001189828
ROCHDALE BOROUGH COUNCIL,10/11/2017,LEARNING DIS & MENTAL HEALTH,BUPA CARE HOMES LIMITED,10/11/2017,920.00,NURSING LONG TERM,V001189829
ROCHDALE BOROUGH COUNCIL,10/11/2017,PHYSICAL DIS & OLDER PEOPLE,FIELDHOUSE CARE HOME,10/11/2017,900.00,RESIDENTIAL LONG TERM,V001189830
ROCHDALE BOROUGH COUNCIL,10/11/2017,LEARNING DIS & MENTAL HEALTH,ASHBOURNE NURSING HOME,10/11/2017,900.00,RESIDENTIAL LONG TERM,V001189831
ROCHDALE BOROUGH COUNCIL,10/11/2017,PHYSICAL DIS & OLDER PEOPLE,STAMFORD HOUSE REST HOME LIMITED,10/11/2017,514.14,RESIDENTIAL LONG TERM,V001189832
ROCHDALE BOROUGH COUNCIL,10/11/2017,PHYSICAL DIS & OLDER PEOPLE,HENSHAWS SOCIETY FOR BLIND PEOPLE,10/11/2017,"2,298.70",RESIDENTIAL LONG TERM,V001189833
ROCHDALE BOROUGH COUNCIL,10/11/2017,PHYSICAL DIS & OLDER PEOPLE,DRB HEALTHCARE LTD,10/11/2017,574.52,RESIDENTIAL LONG TERM,V001189834
ROCHDALE BOROUGH COUNCIL,10/11/2017,PHYSICAL DIS & OLDER PEOPLE,DRB HEALTHCARE LTD,10/11/2017,848.52,NURSING LONG TERM,V001189835
ROCHDALE BOROUGH COUNCIL,10/11/2017,PHYSICAL DIS & OLDER PEOPLE,BELVOIR CARE HOME LIMITED,10/11/2017,900.00,RESIDENTIAL LONG TERM,V001189836
ROCHDALE BOROUGH COUNCIL,10/11/2017,PHYSICAL DIS & OLDER PEOPLE,FIDELITY RESIDENTIAL LIMITED,10/11/2017,920.08,SHORT TERM CARE - RESIDENTIAL,V001189838
ROCHDALE BOROUGH COUNCIL,10/11/2017,PHYSICAL DIS & OLDER PEOPLE,FIDELITY RESIDENTIAL LIMITED,10/11/2017,920.08,SHORT TERM CARE - RESIDENTIAL,V001189839
ROCHDALE BOROUGH COUNCIL,10/11/2017,LEARNING DIS & MENTAL HEALTH,RANDOMLIGHT LIMITED,10/11/2017,"2,400.00",RESIDENTIAL LONG TERM,V001189840
ROCHDALE BOROUGH COUNCIL,10/11/2017,LEARNING DIS & MENTAL HEALTH,STAMFORD HOUSE REST HOME LIMITED,10/11/2017,625.48,RESIDENTIAL LONG TERM,V001189841
ROCHDALE BOROUGH COUNCIL,10/11/2017,PHYSICAL DIS & OLDER PEOPLE,DRB HEALTHCARE LTD,10/11/2017,631.10,RESIDENTIAL LONG TERM,V001189843
ROCHDALE BOROUGH COUNCIL,10/11/2017,PHYSICAL DIS & OLDER PEOPLE,ORCHARD CARE HOMES,10/11/2017,900.00,RESIDENTIAL LONG TERM,V001189844
ROCHDALE BOROUGH COUNCIL,10/11/2017,LEARNING DIS & MENTAL HEALTH,ELDERCARE LANCS LIMITED,10/11/2017,900.00,RESIDENTIAL LONG TERM,V001189845
ROCHDALE BOROUGH COUNCIL,10/11/2017,PHYSICAL DIS & OLDER PEOPLE,FINBROOK LIMITED,10/11/2017,914.00,RESIDENTIAL LONG TERM,V001189846
ROCHDALE BOROUGH COUNCIL,10/11/2017,PHYSICAL DIS & OLDER PEOPLE,ASHBOURNE NURSING HOME,10/11/2017,900.00,RESIDENTIAL LONG TERM,V001189847
ROCHDALE BOROUGH COUNCIL,10/11/2017,PHYSICAL DIS & OLDER PEOPLE,HURSTEAD HOUSE CARE HOME,10/11/2017,738.50,RESIDENTIAL LONG TERM,V001189849
ROCHDALE BOROUGH COUNCIL,10/11/2017,PHYSICAL DIS & OLDER PEOPLE,HURSTEAD HOUSE CARE HOME,10/11/2017,738.50,RESIDENTIAL LONG TERM,V001189850
ROCHDALE BOROUGH COUNCIL,10/11/2017,PHYSICAL DIS & OLDER PEOPLE,HURSTEAD HOUSE CARE HOME,10/11/2017,738.50,RESIDENTIAL LONG TERM,V001189851
ROCHDALE BOROUGH COUNCIL,10/11/2017,PHYSICAL DIS & OLDER PEOPLE,HURSTEAD HOUSE CARE HOME,10/11/2017,738.50,RESIDENTIAL LONG TERM,V001189852
ROCHDALE BOROUGH COUNCIL,10/11/2017,PHYSICAL DIS & OLDER PEOPLE,HURSTEAD HOUSE CARE HOME,10/11/2017,738.50,RESIDENTIAL LONG TERM,V001189853
ROCHDALE BOROUGH COUNCIL,10/11/2017,PHYSICAL DIS & OLDER PEOPLE,HURSTEAD HOUSE CARE HOME,10/11/2017,738.50,RESIDENTIAL LONG TERM,V001189854
ROCHDALE BOROUGH COUNCIL,10/11/2017,PHYSICAL DIS & OLDER PEOPLE,HURSTEAD HOUSE CARE HOME,10/11/2017,900.00,RESIDENTIAL LONG TERM,V001189855
ROCHDALE BOROUGH COUNCIL,10/11/2017,PHYSICAL DIS & OLDER PEOPLE,HURSTEAD HOUSE CARE HOME,10/11/2017,900.00,RESIDENTIAL LONG TERM,V001189856
ROCHDALE BOROUGH COUNCIL,10/11/2017,PHYSICAL DIS & OLDER PEOPLE,HC ONE OVAL LTD,10/11/2017,631.10,RESIDENTIAL LONG TERM,V001189857
ROCHDALE BOROUGH COUNCIL,10/11/2017,LEARNING DIS & MENTAL HEALTH,EAST AND WEST HEALTHCARE LIMITED,10/11/2017,926.40,RESIDENTIAL LONG TERM,V001189858
ROCHDALE BOROUGH COUNCIL,10/11/2017,PHYSICAL DIS & OLDER PEOPLE,MT CARE PROPERTY LTD,10/11/2017,900.00,RESIDENTIAL LONG TERM,V001189859
ROCHDALE BOROUGH COUNCIL,10/11/2017,PHYSICAL DIS & OLDER PEOPLE,EMBRACE CARE LIMITED,10/11/2017,612.06,RESIDENTIAL LONG TERM,V001189860
ROCHDALE BOROUGH COUNCIL,10/11/2017,PHYSICAL DIS & OLDER PEOPLE,EMBRACE CARE LIMITED,10/11/2017,612.06,RESIDENTIAL LONG TERM,V001189861
ROCHDALE BOROUGH COUNCIL,10/11/2017,PHYSICAL DIS & OLDER PEOPLE,EMBRACE CARE LIMITED,10/11/2017,612.06,RESIDENTIAL LONG TERM,V001189862
ROCHDALE BOROUGH COUNCIL,10/11/2017,PHYSICAL DIS & OLDER PEOPLE,EMBRACE CARE LIMITED,10/11/2017,612.06,RESIDENTIAL LONG TERM,V001189863
ROCHDALE BOROUGH COUNCIL,10/11/2017,PHYSICAL DIS & OLDER PEOPLE,EMBRACE CARE LIMITED,10/11/2017,612.06,RESIDENTIAL LONG TERM,V001189864
ROCHDALE BOROUGH COUNCIL,10/11/2017,PHYSICAL DIS & OLDER PEOPLE,EMBRACE CARE LIMITED,10/11/2017,612.06,RESIDENTIAL LONG TERM,V001189865
ROCHDALE BOROUGH COUNCIL,10/11/2017,PHYSICAL DIS & OLDER PEOPLE,EMBRACE CARE LIMITED,10/11/2017,612.06,RESIDENTIAL LONG TERM,V001189866
ROCHDALE BOROUGH COUNCIL,10/11/2017,PHYSICAL DIS & OLDER PEOPLE,EMBRACE CARE LIMITED,10/11/2017,612.06,RESIDENTIAL LONG TERM,V001189867
ROCHDALE BOROUGH COUNCIL,10/11/2017,PHYSICAL DIS & OLDER PEOPLE,EMBRACE CARE LIMITED,10/11/2017,612.06,RESIDENTIAL LONG TERM,V001189868
ROCHDALE BOROUGH COUNCIL,10/11/2017,PHYSICAL DIS & OLDER PEOPLE,BRIARMEDE CARE LTD,10/11/2017,900.00,SELF - FUNDING DEFERRED PAYMENTS,V001189869
ROCHDALE BOROUGH COUNCIL,10/11/2017,LEARNING DIS & MENTAL HEALTH,ORCHARD CARE HOMES,10/11/2017,900.00,RESIDENTIAL LONG TERM,V001189870
ROCHDALE BOROUGH COUNCIL,10/11/2017,PHYSICAL DIS & OLDER PEOPLE,HC ONE LTD,10/11/2017,900.00,RESIDENTIAL LONG TERM,V001189871
ROCHDALE BOROUGH COUNCIL,10/11/2017,PHYSICAL DIS & OLDER PEOPLE,BELVOIR CARE HOME LIMITED,10/11/2017,900.00,RESIDENTIAL LONG TERM,V001189872
ROCHDALE BOROUGH COUNCIL,10/11/2017,PHYSICAL DIS & OLDER PEOPLE,CLEGGSWORTH CARE HOME LIMITED,10/11/2017,900.00,RESIDENTIAL LONG TERM,V001189873
ROCHDALE BOROUGH COUNCIL,10/11/2017,PHYSICAL DIS & OLDER PEOPLE,FIELDHOUSE CARE HOME,10/11/2017,900.00,RESIDENTIAL LONG TERM,V001189874
ROCHDALE BOROUGH COUNCIL,10/11/2017,PHYSICAL DIS & OLDER PEOPLE,LEIGHTON HOUSE RETIREMENT HOME LIMITED,10/11/2017,900.00,RESIDENTIAL LONG TERM,V001189875
ROCHDALE BOROUGH COUNCIL,10/11/2017,PHYSICAL DIS & OLDER PEOPLE,ORCHARD CARE HOMES,10/11/2017,900.00,RESIDENTIAL LONG TERM,V001189876
ROCHDALE BOROUGH COUNCIL,10/11/2017,PHYSICAL DIS & OLDER PEOPLE,CLEGGSWORTH CARE HOME LIMITED,10/11/2017,900.00,RESIDENTIAL LONG TERM,V001189877
ROCHDALE BOROUGH COUNCIL,10/11/2017,LEARNING DIS & MENTAL HEALTH,BEECH HOUSE,10/11/2017,900.00,RESIDENTIAL LONG TERM,V001189878
ROCHDALE BOROUGH COUNCIL,10/11/2017,PHYSICAL DIS & OLDER PEOPLE,LITTLE HEATON CARE HOME,10/11/2017,914.00,RESIDENTIAL LONG TERM,V001189879
ROCHDALE BOROUGH COUNCIL,10/11/2017,PHYSICAL DIS & OLDER PEOPLE,ORCHARD CARE HOMES,10/11/2017,900.00,RESIDENTIAL LONG TERM,V001189880
ROCHDALE BOROUGH COUNCIL,10/11/2017,PHYSICAL DIS & OLDER PEOPLE,LEIGHTON HOUSE RETIREMENT HOME LIMITED,10/11/2017,900.00,RESIDENTIAL LONG TERM,V001189882
ROCHDALE BOROUGH COUNCIL,10/11/2017,PHYSICAL DIS & OLDER PEOPLE,CHADDERTON TOTAL CARE UNIT LTD,10/11/2017,533.38,NURSING LONG TERM,V001189883
ROCHDALE BOROUGH COUNCIL,10/11/2017,LEARNING DIS & MENTAL HEALTH,BROOKVALE RESIDENTIAL CARE,10/11/2017,"1,584.70",RESIDENTIAL LONG TERM,V001189884
ROCHDALE BOROUGH COUNCIL,10/11/2017,PHYSICAL DIS & OLDER PEOPLE,FINBROOK LIMITED,10/11/2017,900.00,RESIDENTIAL LONG TERM,V001189885
ROCHDALE BOROUGH COUNCIL,10/11/2017,LEARNING DIS & MENTAL HEALTH,THE JOSEPH COX CHARITY,10/11/2017,776.90,RESIDENTIAL LONG TERM,V001189886
ROCHDALE BOROUGH COUNCIL,10/11/2017,PHYSICAL DIS & OLDER PEOPLE,BRIARMEDE CARE LTD,10/11/2017,900.00,RESIDENTIAL LONG TERM,V001189887
ROCHDALE BOROUGH COUNCIL,10/11/2017,PHYSICAL DIS & OLDER PEOPLE,LEIGHTON HOUSE RETIREMENT HOME LIMITED,10/11/2017,900.00,RESIDENTIAL LONG TERM,V001189888
ROCHDALE BOROUGH COUNCIL,10/11/2017,PHYSICAL DIS & OLDER PEOPLE,DRB HEALTHCARE LTD,10/11/2017,900.00,SHORT TERM CARE - RESIDENTIAL,V001189889
ROCHDALE BOROUGH COUNCIL,10/11/2017,PHYSICAL DIS & OLDER PEOPLE,EAST AND WEST HEALTHCARE LIMITED,10/11/2017,671.10,NURSING LONG TERM,V001189890
ROCHDALE BOROUGH COUNCIL,10/11/2017,PHYSICAL DIS & OLDER PEOPLE,DRB HEALTHCARE LTD,10/11/2017,-586.02,NURSING LONG TERM,V001189891
ROCHDALE BOROUGH COUNCIL,10/11/2017,PHYSICAL DIS & OLDER PEOPLE,DRB HEALTHCARE LTD,10/11/2017,-631.10,NURSING LONG TERM,V001189892
ROCHDALE BOROUGH COUNCIL,10/11/2017,PHYSICAL DIS & OLDER PEOPLE,DRB HEALTHCARE LTD,10/11/2017,-631.10,NURSING LONG TERM,V001189893
ROCHDALE BOROUGH COUNCIL,10/11/2017,PHYSICAL DIS & OLDER PEOPLE,DRB HEALTHCARE LTD,10/11/2017,-631.10,NURSING LONG TERM,V001189894
ROCHDALE BOROUGH COUNCIL,10/11/2017,PHYSICAL DIS & OLDER PEOPLE,DRB HEALTHCARE LTD,10/11/2017,-631.10,NURSING LONG TERM,V001189895
ROCHDALE BOROUGH COUNCIL,10/11/2017,PHYSICAL DIS & OLDER PEOPLE,DRB HEALTHCARE LTD,10/11/2017,-631.10,NURSING LONG TERM,V001189896
ROCHDALE BOROUGH COUNCIL,10/11/2017,PHYSICAL DIS & OLDER PEOPLE,EAST AND WEST HEALTHCARE LIMITED,10/11/2017,914.00,RESIDENTIAL LONG TERM,V001189897
ROCHDALE BOROUGH COUNCIL,10/11/2017,PHYSICAL DIS & OLDER PEOPLE,ATLANTIS MEDICARE LTD,10/11/2017,900.00,RESIDENTIAL LONG TERM,V001189898
ROCHDALE BOROUGH COUNCIL,10/11/2017,LEARNING DIS & MENTAL HEALTH,MT CARE PROPERTY LTD,10/11/2017,900.00,RESIDENTIAL LONG TERM,V001189899
ROCHDALE BOROUGH COUNCIL,10/11/2017,PHYSICAL DIS & OLDER PEOPLE,BUPA CARE HOMES LIMITED,10/11/2017,651.10,NURSING LONG TERM,V001189901
ROCHDALE BOROUGH COUNCIL,10/11/2017,PHYSICAL DIS & OLDER PEOPLE,STANSFIELD HALL REST HOME,10/11/2017,900.00,RESIDENTIAL LONG TERM,V001189904
ROCHDALE BOROUGH COUNCIL,10/11/2017,PHYSICAL DIS & OLDER PEOPLE,ATLANTIS MEDICARE LTD,10/11/2017,900.00,RESIDENTIAL LONG TERM,V001189905
ROCHDALE BOROUGH COUNCIL,10/11/2017,PHYSICAL DIS & OLDER PEOPLE,CHADDERTON TOTAL CARE UNIT LTD,10/11/2017,691.10,NURSING LONG TERM,V001189906
ROCHDALE BOROUGH COUNCIL,10/11/2017,LEARNING DIS & MENTAL HEALTH,FOUR SEASONS HEALTHCARE,10/11/2017,631.10,RESIDENTIAL LONG TERM,V001189907
ROCHDALE BOROUGH COUNCIL,10/11/2017,PHYSICAL DIS & OLDER PEOPLE,LILY CARE LIMITED,10/11/2017,619.86,RESIDENTIAL LONG TERM,V001189908
ROCHDALE BOROUGH COUNCIL,10/11/2017,PHYSICAL DIS & OLDER PEOPLE,EAST AND WEST HEALTHCARE LIMITED,10/11/2017,770.50,NURSING LONG TERM,V001189911
ROCHDALE BOROUGH COUNCIL,10/11/2017,PHYSICAL DIS & OLDER PEOPLE,HC ONE LTD,10/11/2017,900.00,RESIDENTIAL LONG TERM,V001189912
ROCHDALE BOROUGH COUNCIL,10/11/2017,PHYSICAL DIS & OLDER PEOPLE,HC ONE OVAL LTD,10/11/2017,518.96,RESIDENTIAL LONG TERM,V001189913
ROCHDALE BOROUGH COUNCIL,10/11/2017,PHYSICAL DIS & OLDER PEOPLE,HC ONE LTD,10/11/2017,900.00,NURSING LONG TERM,V001189915
ROCHDALE BOROUGH COUNCIL,10/11/2017,LEARNING DIS & MENTAL HEALTH,PASSMONDS NURSING HOME,10/11/2017,900.00,RESIDENTIAL LONG TERM,V001189916
ROCHDALE BOROUGH COUNCIL,10/11/2017,PHYSICAL DIS & OLDER PEOPLE,HC ONE OVAL LTD,10/11/2017,631.10,NURSING LONG TERM,V001189917
ROCHDALE BOROUGH COUNCIL,10/11/2017,PHYSICAL DIS & OLDER PEOPLE,CLEGGSWORTH CARE HOME LIMITED,10/11/2017,-578.57,RESIDENTIAL LONG TERM,V001189918
ROCHDALE BOROUGH COUNCIL,10/11/2017,LEARNING DIS & MENTAL HEALTH,LIVING AMBITIONS LTD,10/11/2017,"3,086.26",RESIDENTIAL LONG TERM,V001189919
ROCHDALE BOROUGH COUNCIL,10/11/2017,PHYSICAL DIS & OLDER PEOPLE,BUPA CARE HOMES LIMITED,10/11/2017,-634.98,NURSING LONG TERM,V001189921
ROCHDALE BOROUGH COUNCIL,10/11/2017,PHYSICAL DIS & OLDER PEOPLE,BUPA CARE HOMES LIMITED,10/11/2017,-634.98,NURSING LONG TERM,V001189922
ROCHDALE BOROUGH COUNCIL,10/11/2017,PHYSICAL DIS & OLDER PEOPLE,BUPA CARE HOMES LIMITED,10/11/2017,-544.27,NURSING LONG TERM,V001189923
ROCHDALE BOROUGH COUNCIL,10/11/2017,PHYSICAL DIS & OLDER PEOPLE,FOUR SEASONS HEALTHCARE,10/11/2017,604.24,RESIDENTIAL LONG TERM,V001189924
ROCHDALE BOROUGH COUNCIL,10/11/2017,PHYSICAL DIS & OLDER PEOPLE,HALF ACRE HOUSE,10/11/2017,627.14,RESIDENTIAL LONG TERM,V001189925
ROCHDALE BOROUGH COUNCIL,10/11/2017,LEARNING DIS & MENTAL HEALTH,EAST AND WEST HEALTHCARE LIMITED,10/11/2017,900.00,NURSING LONG TERM,V001189940
ROCHDALE BOROUGH COUNCIL,10/11/2017,LEARNING DIS & MENTAL HEALTH,BRIARMEDE CARE LTD,10/11/2017,900.00,RESIDENTIAL LONG TERM,V001189941
ROCHDALE BOROUGH COUNCIL,10/11/2017,LEARNING DIS & MENTAL HEALTH,FIELDHOUSE CARE HOME,10/11/2017,900.00,RESIDENTIAL LONG TERM,V001189942
ROCHDALE BOROUGH COUNCIL,10/11/2017,LEARNING DIS & MENTAL HEALTH,AVERY HOMES MOSTON LIMITED,10/11/2017,802.48,RESIDENTIAL LONG TERM,V001189943
ROCHDALE BOROUGH COUNCIL,10/11/2017,LEARNING DIS & MENTAL HEALTH,BUPA CARE SERVICES,10/11/2017,"1,976.00",NURSING LONG TERM,V001189944
ROCHDALE BOROUGH COUNCIL,10/11/2017,LEARNING DIS & MENTAL HEALTH,LILY CARE LIMITED,10/11/2017,920.08,RESIDENTIAL LONG TERM,V001189945
ROCHDALE BOROUGH COUNCIL,10/11/2017,PHYSICAL DIS & OLDER PEOPLE,BEECH HOUSE,10/11/2017,900.00,RESIDENTIAL LONG TERM,V001189946
ROCHDALE BOROUGH COUNCIL,10/11/2017,PHYSICAL DIS & OLDER PEOPLE,ORCHARD CARE HOMES,10/11/2017,900.00,RESIDENTIAL LONG TERM,V001189947
ROCHDALE BOROUGH COUNCIL,10/11/2017,PHYSICAL DIS & OLDER PEOPLE,HURSTEAD HOUSE CARE HOME,10/11/2017,900.00,RESIDENTIAL LONG TERM,V001189949
ROCHDALE BOROUGH COUNCIL,10/11/2017,LEARNING DIS & MENTAL HEALTH,MERIDIAN HEALTHCARE LTD,10/11/2017,924.00,RESIDENTIAL LONG TERM,V001189953
ROCHDALE BOROUGH COUNCIL,10/11/2017,PHYSICAL DIS & OLDER PEOPLE,ATLANTIS MEDICARE LTD,10/11/2017,900.00,RESIDENTIAL LONG TERM,V001189954
ROCHDALE BOROUGH COUNCIL,10/11/2017,PHYSICAL DIS & OLDER PEOPLE,CLEGGSWORTH CARE HOME LIMITED,10/11/2017,900.00,RESIDENTIAL LONG TERM,V001189955
ROCHDALE BOROUGH COUNCIL,10/11/2017,PHYSICAL DIS & OLDER PEOPLE,ASHBOURNE NURSING HOME,10/11/2017,900.00,RESIDENTIAL LONG TERM,V001189956
ROCHDALE BOROUGH COUNCIL,10/11/2017,PHYSICAL DIS & OLDER PEOPLE,EAST AND WEST HEALTHCARE LIMITED,10/11/2017,596.68,RESIDENTIAL LONG TERM,V001189957
ROCHDALE BOROUGH COUNCIL,10/11/2017,PHYSICAL DIS & OLDER PEOPLE,HC ONE LTD,10/11/2017,914.00,RESIDENTIAL LONG TERM,V001189958
ROCHDALE BOROUGH COUNCIL,10/11/2017,PHYSICAL DIS & OLDER PEOPLE,CLEGGSWORTH CARE HOME LIMITED,10/11/2017,900.00,RESIDENTIAL LONG TERM,V001189959
ROCHDALE BOROUGH COUNCIL,10/11/2017,PHYSICAL DIS & OLDER PEOPLE,MT CARE PROPERTY LTD,10/11/2017,900.00,RESIDENTIAL LONG TERM,V001189960
ROCHDALE BOROUGH COUNCIL,10/11/2017,PHYSICAL DIS & OLDER PEOPLE,EAST AND WEST HEALTHCARE LIMITED,10/11/2017,631.10,NURSING LONG TERM,V001189961
ROCHDALE BOROUGH COUNCIL,10/11/2017,PHYSICAL DIS & OLDER PEOPLE,PASSMONDS NURSING HOME,10/11/2017,900.00,SHORT TERM CARE - RESIDENTIAL,V001189962
ROCHDALE BOROUGH COUNCIL,10/11/2017,LEARNING DIS & MENTAL HEALTH,WOODLANDS RESIDENTIAL CARE HOME LTD,10/11/2017,"1,128.00",RESIDENTIAL LONG TERM,V001189963
ROCHDALE BOROUGH COUNCIL,10/11/2017,PHYSICAL DIS & OLDER PEOPLE,HC ONE OVAL LTD,10/11/2017,631.10,RESIDENTIAL LONG TERM,V001189964
ROCHDALE BOROUGH COUNCIL,10/11/2017,PHYSICAL DIS & OLDER PEOPLE,QUALIA CARE LTD,10/11/2017,617.10,RESIDENTIAL LONG TERM,V001189965
ROCHDALE BOROUGH COUNCIL,10/11/2017,PHYSICAL DIS & OLDER PEOPLE,QUALIA CARE LTD,10/11/2017,617.10,RESIDENTIAL LONG TERM,V001189966
ROCHDALE BOROUGH COUNCIL,10/11/2017,LEARNING DIS & MENTAL HEALTH,LIVING AMBITIONS LTD,10/11/2017,"5,546.50",RESIDENTIAL LONG TERM,V001189967
ROCHDALE BOROUGH COUNCIL,10/11/2017,PHYSICAL DIS & OLDER PEOPLE,CANTERBURY CARE HOMES LTD,10/11/2017,575.58,NURSING LONG TERM,V001189968
ROCHDALE BOROUGH COUNCIL,10/11/2017,LEARNING DIS & MENTAL HEALTH,HC ONE OVAL LTD,10/11/2017,900.00,RESIDENTIAL LONG TERM,V001189969
ROCHDALE BOROUGH COUNCIL,10/11/2017,PHYSICAL DIS & OLDER PEOPLE,DRB HEALTHCARE LTD,10/11/2017,"1,280.00",NURSING LONG TERM,V001189970
ROCHDALE BOROUGH COUNCIL,10/11/2017,PHYSICAL DIS & OLDER PEOPLE,HC ONE OVAL LTD,10/11/2017,567.86,RESIDENTIAL LONG TERM,V001189972
ROCHDALE BOROUGH COUNCIL,10/11/2017,PHYSICAL DIS & OLDER PEOPLE,QUALIA CARE LTD,10/11/2017,601.16,RESIDENTIAL LONG TERM,V001189973
ROCHDALE BOROUGH COUNCIL,10/11/2017,PHYSICAL DIS & OLDER PEOPLE,QUALIA CARE LTD,10/11/2017,601.16,RESIDENTIAL LONG TERM,V001189974
ROCHDALE BOROUGH COUNCIL,10/11/2017,PHYSICAL DIS & OLDER PEOPLE,HC ONE LTD,10/11/2017,914.00,RESIDENTIAL LONG TERM,V001189975
ROCHDALE BOROUGH COUNCIL,10/11/2017,PHYSICAL DIS & OLDER PEOPLE,LITTLE HEATON CARE HOME,10/11/2017,900.00,RESIDENTIAL LONG TERM,V001189976
ROCHDALE BOROUGH COUNCIL,10/11/2017,LEARNING DIS & MENTAL HEALTH,APSLEY HOUSE,10/11/2017,"2,090.88",RESIDENTIAL LONG TERM,V001189977
ROCHDALE BOROUGH COUNCIL,10/11/2017,PHYSICAL DIS & OLDER PEOPLE,PASSMONDS NURSING HOME,10/11/2017,"2,520.00",RESIDENTIAL LONG TERM,V001189979
ROCHDALE BOROUGH COUNCIL,10/11/2017,PHYSICAL DIS & OLDER PEOPLE,PASSMONDS NURSING HOME,10/11/2017,"2,520.00",RESIDENTIAL LONG TERM,V001189980
ROCHDALE BOROUGH COUNCIL,10/11/2017,PHYSICAL DIS & OLDER PEOPLE,PASSMONDS NURSING HOME,10/11/2017,"3,420.00",RESIDENTIAL LONG TERM,V001189981
ROCHDALE BOROUGH COUNCIL,10/11/2017,PHYSICAL DIS & OLDER PEOPLE,LITTLE HEATON CARE HOME,10/11/2017,900.00,RESIDENTIAL LONG TERM,V001189982
ROCHDALE BOROUGH COUNCIL,10/11/2017,PHYSICAL DIS & OLDER PEOPLE,EAGLE CARE HOMES LTD,10/11/2017,647.10,RESIDENTIAL LONG TERM,V001189983
ROCHDALE BOROUGH COUNCIL,10/11/2017,PHYSICAL DIS & OLDER PEOPLE,FOUR SEASONS,10/11/2017,900.00,RESIDENTIAL LONG TERM,V001189984
ROCHDALE BOROUGH COUNCIL,10/11/2017,PHYSICAL DIS & OLDER PEOPLE,EAST AND WEST HEALTHCARE LIMITED,10/11/2017,738.70,NURSING LONG TERM,V001189985
ROCHDALE BOROUGH COUNCIL,10/11/2017,PHYSICAL DIS & OLDER PEOPLE,FOUR SEASONS HEALTHCARE,10/11/2017,-542.04,RESIDENTIAL LONG TERM,V001189986
ROCHDALE BOROUGH COUNCIL,10/11/2017,PHYSICAL DIS & OLDER PEOPLE,FOUR SEASONS HEALTHCARE,10/11/2017,-583.74,RESIDENTIAL LONG TERM,V001189987
ROCHDALE BOROUGH COUNCIL,10/11/2017,PHYSICAL DIS & OLDER PEOPLE,FOUR SEASONS HEALTHCARE,10/11/2017,-583.74,RESIDENTIAL LONG TERM,V001189988
ROCHDALE BOROUGH COUNCIL,10/11/2017,PHYSICAL DIS & OLDER PEOPLE,FOUR SEASONS HEALTHCARE,10/11/2017,-583.74,RESIDENTIAL LONG TERM,V001189989
ROCHDALE BOROUGH COUNCIL,10/11/2017,PHYSICAL DIS & OLDER PEOPLE,FOUR SEASONS HEALTHCARE,10/11/2017,-583.74,RESIDENTIAL LONG TERM,V001189990
ROCHDALE BOROUGH COUNCIL,10/11/2017,PHYSICAL DIS & OLDER PEOPLE,FOUR SEASONS HEALTHCARE,10/11/2017,-583.74,RESIDENTIAL LONG TERM,V001189991
ROCHDALE BOROUGH COUNCIL,10/11/2017,PHYSICAL DIS & OLDER PEOPLE,FOUR SEASONS HEALTHCARE,10/11/2017,-583.74,RESIDENTIAL LONG TERM,V001189992
ROCHDALE BOROUGH COUNCIL,10/11/2017,PHYSICAL DIS & OLDER PEOPLE,FOUR SEASONS HEALTHCARE,10/11/2017,-514.29,SHORT TERM CARE - RESIDENTIAL,V001189993
ROCHDALE BOROUGH COUNCIL,10/11/2017,PHYSICAL DIS & OLDER PEOPLE,FOUR SEASONS HEALTHCARE,10/11/2017,-900.00,SHORT TERM CARE - RESIDENTIAL,V001189994
ROCHDALE BOROUGH COUNCIL,10/11/2017,PHYSICAL DIS & OLDER PEOPLE,FOUR SEASONS HEALTHCARE,10/11/2017,-900.00,SHORT TERM CARE - RESIDENTIAL,V001189995
ROCHDALE BOROUGH COUNCIL,10/11/2017,PHYSICAL DIS & OLDER PEOPLE,FOUR SEASONS HEALTHCARE,10/11/2017,-900.00,SHORT TERM CARE - RESIDENTIAL,V001189996
ROCHDALE BOROUGH COUNCIL,10/11/2017,PHYSICAL DIS & OLDER PEOPLE,EAGLE CARE HOMES LTD,10/11/2017,604.52,RESIDENTIAL LONG TERM,V001189998
ROCHDALE BOROUGH COUNCIL,10/11/2017,PHYSICAL DIS & OLDER PEOPLE,ORCHARD CARE HOMES,10/11/2017,900.00,RESIDENTIAL LONG TERM,V001189999
ROCHDALE BOROUGH COUNCIL,10/11/2017,PHYSICAL DIS & OLDER PEOPLE,HURSTEAD HOUSE CARE HOME,10/11/2017,900.00,RESIDENTIAL LONG TERM,V001190000
ROCHDALE BOROUGH COUNCIL,10/11/2017,PHYSICAL DIS & OLDER PEOPLE,BUPA CARE HOMES LIMITED,10/11/2017,642.86,ASSESSMENT CARE,V001190001
ROCHDALE BOROUGH COUNCIL,10/11/2017,PHYSICAL DIS & OLDER PEOPLE,BUPA CARE HOMES LIMITED,10/11/2017,900.00,ASSESSMENT CARE,V001190002
ROCHDALE BOROUGH COUNCIL,10/11/2017,PHYSICAL DIS & OLDER PEOPLE,ASHBOURNE NURSING HOME,10/11/2017,-900.00,RESIDENTIAL LONG TERM,V001190004
ROCHDALE BOROUGH COUNCIL,10/11/2017,LEARNING DIS & MENTAL HEALTH,RANDOMLIGHT LIMITED,10/11/2017,"1,500.00",RESIDENTIAL LONG TERM,V001190006
ROCHDALE BOROUGH COUNCIL,10/11/2017,PHYSICAL DIS & OLDER PEOPLE,HALF ACRE HOUSE,10/11/2017,605.00,RESIDENTIAL LONG TERM,V001190007
ROCHDALE BOROUGH COUNCIL,10/11/2017,PHYSICAL DIS & OLDER PEOPLE,FOUR SEASONS HEALTHCARE,10/11/2017,900.00,RESIDENTIAL LONG TERM,V001190008
ROCHDALE BOROUGH COUNCIL,10/11/2017,PHYSICAL DIS & OLDER PEOPLE,HURSTEAD HOUSE CARE HOME,10/11/2017,900.00,NURSING LONG TERM,V001190009
ROCHDALE BOROUGH COUNCIL,10/11/2017,PHYSICAL DIS & OLDER PEOPLE,BUPA CARE HOMES LIMITED,10/11/2017,590.62,NURSING LONG TERM,V001190010
ROCHDALE BOROUGH COUNCIL,10/11/2017,PHYSICAL DIS & OLDER PEOPLE,FIELDHOUSE CARE HOME,10/11/2017,900.00,RESIDENTIAL LONG TERM,V001190011
ROCHDALE BOROUGH COUNCIL,10/11/2017,PHYSICAL DIS & OLDER PEOPLE,HC ONE OVAL LTD,10/11/2017,572.44,RESIDENTIAL LONG TERM,V001190012
ROCHDALE BOROUGH COUNCIL,10/11/2017,PHYSICAL DIS & OLDER PEOPLE,ARCHMOOR CARE HOME,10/11/2017,900.00,RESIDENTIAL LONG TERM,V001190013
ROCHDALE BOROUGH COUNCIL,10/11/2017,PHYSICAL DIS & OLDER PEOPLE,BUPA CARE HOMES LIMITED,10/11/2017,698.40,NURSING LONG TERM,V001190014
ROCHDALE BOROUGH COUNCIL,10/11/2017,LEARNING DIS & MENTAL HEALTH,FIELDHOUSE CARE HOME,10/11/2017,900.00,RESIDENTIAL LONG TERM,V001190015
ROCHDALE BOROUGH COUNCIL,10/11/2017,PHYSICAL DIS & OLDER PEOPLE,ELDERCARE LANCS LIMITED,10/11/2017,900.00,RESIDENTIAL LONG TERM,V001190016
ROCHDALE BOROUGH COUNCIL,10/11/2017,PHYSICAL DIS & OLDER PEOPLE,ARCHMOOR CARE HOME,10/11/2017,900.00,RESIDENTIAL LONG TERM,V001190017
ROCHDALE BOROUGH COUNCIL,10/11/2017,PHYSICAL DIS & OLDER PEOPLE,CLEGGSWORTH CARE HOME LIMITED,10/11/2017,900.00,RESIDENTIAL LONG TERM,V001190018
ROCHDALE BOROUGH COUNCIL,10/11/2017,PHYSICAL DIS & OLDER PEOPLE,FIELDHOUSE CARE HOME,10/11/2017,900.00,RESIDENTIAL LONG TERM,V001190019
ROCHDALE BOROUGH COUNCIL,10/11/2017,LEARNING DIS & MENTAL HEALTH,EAGLE CARE HOMES LTD,10/11/2017,645.10,RESIDENTIAL LONG TERM,V001190020
ROCHDALE BOROUGH COUNCIL,10/11/2017,LEARNING DIS & MENTAL HEALTH,EAST AND WEST HEALTHCARE LIMITED,10/11/2017,656.44,RESIDENTIAL LONG TERM,V001190021
ROCHDALE BOROUGH COUNCIL,10/11/2017,LEARNING DIS & MENTAL HEALTH,AS CARE SOLUTIONS LTD,10/11/2017,"2,900.00",RESIDENTIAL LONG TERM,V001190022
ROCHDALE BOROUGH COUNCIL,10/11/2017,LEARNING DIS & MENTAL HEALTH,BROOKVALE RESIDENTIAL CARE,10/11/2017,"1,600.50",RESIDENTIAL LONG TERM,V001190023
ROCHDALE BOROUGH COUNCIL,10/11/2017,PHYSICAL DIS & OLDER PEOPLE,EAST AND WEST HEALTHCARE LIMITED,10/11/2017,754.50,NURSING LONG TERM,V001190024
ROCHDALE BOROUGH COUNCIL,10/11/2017,LEARNING DIS & MENTAL HEALTH,DRB HEALTHCARE LTD,10/11/2017,596.36,RESIDENTIAL LONG TERM,V001190025
ROCHDALE BOROUGH COUNCIL,10/11/2017,PHYSICAL DIS & OLDER PEOPLE,EAST AND WEST HEALTHCARE LIMITED,10/11/2017,543.78,RESIDENTIAL LONG TERM,V001190026
ROCHDALE BOROUGH COUNCIL,10/11/2017,PHYSICAL DIS & OLDER PEOPLE,QUALIA CARE LTD,10/11/2017,900.00,SHORT TERM CARE - RESIDENTIAL,V001190027
ROCHDALE BOROUGH COUNCIL,10/11/2017,PHYSICAL DIS & OLDER PEOPLE,QUALIA CARE LTD,10/11/2017,900.00,SHORT TERM CARE - RESIDENTIAL,V001190028
ROCHDALE BOROUGH COUNCIL,10/11/2017,PHYSICAL DIS & OLDER PEOPLE,QUALIA CARE LTD,10/11/2017,900.00,SHORT TERM CARE - RESIDENTIAL,V001190029
ROCHDALE BOROUGH COUNCIL,10/11/2017,PHYSICAL DIS & OLDER PEOPLE,BUPA CARE HOMES LIMITED,10/11/2017,859.52,NURSING LONG TERM,V001190030
ROCHDALE BOROUGH COUNCIL,10/11/2017,PHYSICAL DIS & OLDER PEOPLE,ORCHARD CARE HOMES,10/11/2017,900.00,RESIDENTIAL LONG TERM,V001190031
ROCHDALE BOROUGH COUNCIL,10/11/2017,PHYSICAL DIS & OLDER PEOPLE,HC ONE OVAL LTD,10/11/2017,649.10,RESIDENTIAL LONG TERM,V001190032
ROCHDALE BOROUGH COUNCIL,10/11/2017,PHYSICAL DIS & OLDER PEOPLE,BRIARMEDE CARE LTD,10/11/2017,900.00,RESIDENTIAL LONG TERM,V001190033
ROCHDALE BOROUGH COUNCIL,10/11/2017,PHYSICAL DIS & OLDER PEOPLE,ASHBOURNE NURSING HOME,10/11/2017,900.00,RESIDENTIAL LONG TERM,V001190034
ROCHDALE BOROUGH COUNCIL,10/11/2017,PHYSICAL DIS & OLDER PEOPLE,LEIGHTON HOUSE RETIREMENT HOME LIMITED,10/11/2017,900.00,RESIDENTIAL LONG TERM,V001190035
ROCHDALE BOROUGH COUNCIL,10/11/2017,PHYSICAL DIS & OLDER PEOPLE,HC ONE LTD,10/11/2017,900.00,RESIDENTIAL LONG TERM,V001190036
ROCHDALE BOROUGH COUNCIL,10/11/2017,PHYSICAL DIS & OLDER PEOPLE,FOUR SEASONS HEALTHCARE,10/11/2017,561.96,RESIDENTIAL LONG TERM,V001190037
ROCHDALE BOROUGH COUNCIL,10/11/2017,PHYSICAL DIS & OLDER PEOPLE,HC ONE OVAL LTD,10/11/2017,630.56,RESIDENTIAL LONG TERM,V001190038
ROCHDALE BOROUGH COUNCIL,10/11/2017,LEARNING DIS & MENTAL HEALTH,QUALIA CARE LTD,10/11/2017,867.52,RESIDENTIAL LONG TERM,V001190039
ROCHDALE BOROUGH COUNCIL,10/11/2017,PHYSICAL DIS & OLDER PEOPLE,HC ONE LTD,10/11/2017,900.00,RESIDENTIAL LONG TERM,V001190040
ROCHDALE BOROUGH COUNCIL,10/11/2017,PHYSICAL DIS & OLDER PEOPLE,LILY CARE LIMITED,10/11/2017,631.10,RESIDENTIAL LONG TERM,V001190041
ROCHDALE BOROUGH COUNCIL,10/11/2017,PHYSICAL DIS & OLDER PEOPLE,MT CARE PROPERTY LTD,10/11/2017,900.00,RESIDENTIAL LONG TERM,V001190042
ROCHDALE BOROUGH COUNCIL,10/11/2017,PHYSICAL DIS & OLDER PEOPLE,BUPA CARE HOMES LIMITED,10/11/2017,631.10,RESIDENTIAL LONG TERM,V001190043
ROCHDALE BOROUGH COUNCIL,10/11/2017,PHYSICAL DIS & OLDER PEOPLE,MARSHMEAD LIMITED,10/11/2017,809.50,RESIDENTIAL LONG TERM,V001190044
ROCHDALE BOROUGH COUNCIL,10/11/2017,PHYSICAL DIS & OLDER PEOPLE,BUPA CARE HOMES LIMITED,10/11/2017,900.00,NURSING LONG TERM,V001190045
ROCHDALE BOROUGH COUNCIL,10/11/2017,LEARNING DIS & MENTAL HEALTH,DENTAK CARE AND SERVICES LTD,10/11/2017,900.00,NURSING LONG TERM,V001190046
ROCHDALE BOROUGH COUNCIL,10/11/2017,LEARNING DIS & MENTAL HEALTH,HEALEY CARE LTD,10/11/2017,"2,100.00",RESIDENTIAL LONG TERM,V001190048
ROCHDALE BOROUGH COUNCIL,10/11/2017,PHYSICAL DIS & OLDER PEOPLE,CALTON SYSTEMS LIMITED,10/11/2017,"1,100.00",RESIDENTIAL LONG TERM,V001190049
ROCHDALE BOROUGH COUNCIL,10/11/2017,LEARNING DIS & MENTAL HEALTH,ELIZABETH HOUSE OLDHAM LTD,10/11/2017,540.94,RESIDENTIAL LONG TERM,V001190050
ROCHDALE BOROUGH COUNCIL,10/11/2017,LEARNING DIS & MENTAL HEALTH,ELIZABETH HOUSE OLDHAM LTD,10/11/2017,631.10,RESIDENTIAL LONG TERM,V001190051
ROCHDALE BOROUGH COUNCIL,10/11/2017,LEARNING DIS & MENTAL HEALTH,ELIZABETH HOUSE OLDHAM LTD,10/11/2017,631.10,RESIDENTIAL LONG TERM,V001190052
ROCHDALE BOROUGH COUNCIL,10/11/2017,LEARNING DIS & MENTAL HEALTH,ELIZABETH HOUSE OLDHAM LTD,10/11/2017,900.00,SHORT TERM CARE - RESIDENTIAL,V001190054
ROCHDALE BOROUGH COUNCIL,10/11/2017,LEARNING DIS & MENTAL HEALTH,ELIZABETH HOUSE OLDHAM LTD,10/11/2017,900.00,SHORT TERM CARE - RESIDENTIAL,V001190055
ROCHDALE BOROUGH COUNCIL,10/11/2017,LEARNING DIS & MENTAL HEALTH,CALTON SYSTEMS LIMITED,10/11/2017,900.00,RESIDENTIAL LONG TERM,V001190057
ROCHDALE BOROUGH COUNCIL,10/11/2017,PHYSICAL DIS & OLDER PEOPLE,QUALIA CARE LTD,10/11/2017,631.10,RESIDENTIAL LONG TERM,V001190058
ROCHDALE BOROUGH COUNCIL,10/11/2017,PHYSICAL DIS & OLDER PEOPLE,QUALIA CARE LTD,10/11/2017,627.12,RESIDENTIAL LONG TERM,V001190059
ROCHDALE BOROUGH COUNCIL,10/11/2017,PHYSICAL DIS & OLDER PEOPLE,FIELDHOUSE CARE HOME,10/11/2017,900.00,RESIDENTIAL LONG TERM,V001190060
ROCHDALE BOROUGH COUNCIL,10/11/2017,PHYSICAL DIS & OLDER PEOPLE,CLEGGSWORTH CARE HOME LIMITED,10/11/2017,900.00,RESIDENTIAL LONG TERM,V001190061
ROCHDALE BOROUGH COUNCIL,10/11/2017,LEARNING DIS & MENTAL HEALTH,STAMFORD HOUSE REST HOME LIMITED,10/11/2017,631.10,RESIDENTIAL LONG TERM,V001190062
ROCHDALE BOROUGH COUNCIL,10/11/2017,PHYSICAL DIS & OLDER PEOPLE,ORCHARD CARE HOMES,10/11/2017,900.00,RESIDENTIAL LONG TERM,V001190063
ROCHDALE BOROUGH COUNCIL,10/11/2017,LEARNING DIS & MENTAL HEALTH,HC ONE LTD,10/11/2017,900.00,RESIDENTIAL LONG TERM,V001190064
ROCHDALE BOROUGH COUNCIL,10/11/2017,LEARNING DIS & MENTAL HEALTH,DEAFWAY,10/11/2017,"2,500.00",RESIDENTIAL LONG TERM,V001190065
ROCHDALE BOROUGH COUNCIL,10/11/2017,PHYSICAL DIS & OLDER PEOPLE,EAGLE CARE HOMES LTD,10/11/2017,631.10,RESIDENTIAL LONG TERM,V001190066
ROCHDALE BOROUGH COUNCIL,10/11/2017,PHYSICAL DIS & OLDER PEOPLE,WESTVALE HOUSE,10/11/2017,719.10,NURSING LONG TERM,V001190067
ROCHDALE BOROUGH COUNCIL,10/11/2017,PHYSICAL DIS & OLDER PEOPLE,HC ONE OVAL LTD,10/11/2017,565.36,NURSING LONG TERM,V001190068
ROCHDALE BOROUGH COUNCIL,10/11/2017,PHYSICAL DIS & OLDER PEOPLE,FINBROOK LIMITED,10/11/2017,914.00,RESIDENTIAL LONG TERM,V001190069
ROCHDALE BOROUGH COUNCIL,10/11/2017,PHYSICAL DIS & OLDER PEOPLE,BUPA CARE HOMES LIMITED,10/11/2017,-519.62,NURSING LONG TERM,V001190071
ROCHDALE BOROUGH COUNCIL,10/11/2017,PHYSICAL DIS & OLDER PEOPLE,BUPA CARE HOMES LIMITED,10/11/2017,-519.62,NURSING LONG TERM,V001190072
ROCHDALE BOROUGH COUNCIL,10/11/2017,PHYSICAL DIS & OLDER PEOPLE,LITTLEBOROUGH CARE HOME LIMITED,10/11/2017,900.00,RESIDENTIAL LONG TERM,V001190074
ROCHDALE BOROUGH COUNCIL,10/11/2017,PHYSICAL DIS & OLDER PEOPLE,HC ONE OVAL LTD,10/11/2017,620.88,RESIDENTIAL LONG TERM,V001190075
ROCHDALE BOROUGH COUNCIL,10/11/2017,PHYSICAL DIS & OLDER PEOPLE,FOUR SEASONS HEALTHCARE,10/11/2017,645.10,RESIDENTIAL LONG TERM,V001190076
ROCHDALE BOROUGH COUNCIL,10/11/2017,PHYSICAL DIS & OLDER PEOPLE,ST GEORGES NURSING HOME OLDHAM LTD,10/11/2017,"1,830.50",NURSING LONG TERM,V001190077
ROCHDALE BOROUGH COUNCIL,10/11/2017,PHYSICAL DIS & OLDER PEOPLE,EAGLE CARE HOMES LTD,10/11/2017,606.02,RESIDENTIAL LONG TERM,V001190078
ROCHDALE BOROUGH COUNCIL,10/11/2017,PHYSICAL DIS & OLDER PEOPLE,QUALIA CARE LTD,10/11/2017,584.76,RESIDENTIAL LONG TERM,V001190079
ROCHDALE BOROUGH COUNCIL,10/11/2017,PHYSICAL DIS & OLDER PEOPLE,QUALIA CARE LTD,10/11/2017,584.76,RESIDENTIAL LONG TERM,V001190080
ROCHDALE BOROUGH COUNCIL,10/11/2017,PHYSICAL DIS & OLDER PEOPLE,WATERSIDE LODGE R H,10/11/2017,652.44,RESIDENTIAL LONG TERM,V001190081
ROCHDALE BOROUGH COUNCIL,10/11/2017,PHYSICAL DIS & OLDER PEOPLE,AVERY HOMES MOSTON LIMITED,10/11/2017,519.56,RESIDENTIAL LONG TERM,V001190082
ROCHDALE BOROUGH COUNCIL,10/11/2017,LEARNING DIS & MENTAL HEALTH,CAPSTONE CARE LIMITED,10/11/2017,920.08,RESIDENTIAL LONG TERM,V001190083
ROCHDALE BOROUGH COUNCIL,10/11/2017,PHYSICAL DIS & OLDER PEOPLE,ANTONI & RIENZIE LTD,10/11/2017,543.00,RESIDENTIAL LONG TERM,V001190084
ROCHDALE BOROUGH COUNCIL,10/11/2017,LEARNING DIS & MENTAL HEALTH,LEIGHTON HOUSE RETIREMENT HOME LIMITED,10/11/2017,900.00,RESIDENTIAL LONG TERM,V001190085
ROCHDALE BOROUGH COUNCIL,10/11/2017,LEARNING DIS & MENTAL HEALTH,HC ONE OVAL LTD,10/11/2017,900.00,NURSING LONG TERM,V001190087
ROCHDALE BOROUGH COUNCIL,10/11/2017,LEARNING DIS & MENTAL HEALTH,MT CARE PROPERTY LTD,10/11/2017,900.00,RESIDENTIAL LONG TERM,V001190089
ROCHDALE BOROUGH COUNCIL,10/11/2017,PHYSICAL DIS & OLDER PEOPLE,BRIARMEDE CARE LTD,10/11/2017,900.00,RESIDENTIAL LONG TERM,V001190090
ROCHDALE BOROUGH COUNCIL,10/11/2017,PHYSICAL DIS & OLDER PEOPLE,DRB HEALTHCARE LTD,10/11/2017,559.10,RESIDENTIAL LONG TERM,V001190092
ROCHDALE BOROUGH COUNCIL,10/11/2017,PHYSICAL DIS & OLDER PEOPLE,STAMFORD HOUSE REST HOME LIMITED,10/11/2017,585.72,RESIDENTIAL LONG TERM,V001190093
ROCHDALE BOROUGH COUNCIL,10/11/2017,PHYSICAL DIS & OLDER PEOPLE,HC ONE OVAL LTD,10/11/2017,643.10,NURSING LONG TERM,V001190094
ROCHDALE BOROUGH COUNCIL,10/11/2017,PHYSICAL DIS & OLDER PEOPLE,PASSMONDS NURSING HOME,10/11/2017,900.00,RESIDENTIAL LONG TERM,V001190095
ROCHDALE BOROUGH COUNCIL,10/11/2017,PHYSICAL DIS & OLDER PEOPLE,EAGLE CARE HOMES LTD,10/11/2017,914.00,RESIDENTIAL LONG TERM,V001190096
ROCHDALE BOROUGH COUNCIL,10/11/2017,PHYSICAL DIS & OLDER PEOPLE,ORCHARD CARE HOMES,10/11/2017,914.00,RESIDENTIAL LONG TERM,V001190097
ROCHDALE BOROUGH COUNCIL,10/11/2017,PHYSICAL DIS & OLDER PEOPLE,CHADDERTON TOTAL CARE UNIT LTD,10/11/2017,"1,050.00",NURSING LONG TERM,V001190098
ROCHDALE BOROUGH COUNCIL,10/11/2017,PHYSICAL DIS & OLDER PEOPLE,ORCHARD CARE HOMES,10/11/2017,900.00,RESIDENTIAL LONG TERM,V001190099
ROCHDALE BOROUGH COUNCIL,10/11/2017,PHYSICAL DIS & OLDER PEOPLE,BEECH HOUSE,10/11/2017,900.00,RESIDENTIAL LONG TERM,V001190100
ROCHDALE BOROUGH COUNCIL,10/11/2017,PHYSICAL DIS & OLDER PEOPLE,BRIARMEDE CARE LTD,10/11/2017,900.00,RESIDENTIAL LONG TERM,V001190101
ROCHDALE BOROUGH COUNCIL,10/11/2017,LEARNING DIS & MENTAL HEALTH,ROCHDALE GATEWAY LEISURE LIMITED,10/11/2017,"2,450.32",RESIDENTIAL LONG TERM,V001190102
ROCHDALE BOROUGH COUNCIL,10/11/2017,LEARNING DIS & MENTAL HEALTH,ROCHDALE GATEWAY LEISURE LIMITED,10/11/2017,"2,450.32",RESIDENTIAL LONG TERM,V001190103
ROCHDALE BOROUGH COUNCIL,10/11/2017,PHYSICAL DIS & OLDER PEOPLE,HC ONE LTD,10/11/2017,914.00,RESIDENTIAL LONG TERM,V001190104
ROCHDALE BOROUGH COUNCIL,10/11/2017,PHYSICAL DIS & OLDER PEOPLE,ORCHARD CARE HOMES,10/11/2017,900.00,RESIDENTIAL LONG TERM,V001190105
ROCHDALE BOROUGH COUNCIL,10/11/2017,PHYSICAL DIS & OLDER PEOPLE,HC ONE LTD,10/11/2017,914.00,RESIDENTIAL LONG TERM,V001190106
ROCHDALE BOROUGH COUNCIL,10/11/2017,PHYSICAL DIS & OLDER PEOPLE,FINBROOK LIMITED,10/11/2017,900.00,RESIDENTIAL LONG TERM,V001190107
ROCHDALE BOROUGH COUNCIL,10/11/2017,PHYSICAL DIS & OLDER PEOPLE,HC ONE OVAL LTD,10/11/2017,900.00,NURSING LONG TERM,V001190108
ROCHDALE BOROUGH COUNCIL,10/11/2017,PHYSICAL DIS & OLDER PEOPLE,ROSEMARY CARE HOME,10/11/2017,900.00,RESIDENTIAL LONG TERM,V001190109
ROCHDALE BOROUGH COUNCIL,10/11/2017,LEARNING DIS & MENTAL HEALTH,HC ONE,10/11/2017,"2,400.00",RESIDENTIAL LONG TERM,V001190110
ROCHDALE BOROUGH COUNCIL,10/11/2017,PHYSICAL DIS & OLDER PEOPLE,LITTLE HEATON CARE HOME,10/11/2017,900.00,RESIDENTIAL LONG TERM,V001190111
ROCHDALE BOROUGH COUNCIL,10/11/2017,LEARNING DIS & MENTAL HEALTH,HORIZON  RESIDENTIAL HOMES LTD,10/11/2017,631.10,RESIDENTIAL LONG TERM,V001190112
ROCHDALE BOROUGH COUNCIL,10/11/2017,PHYSICAL DIS & OLDER PEOPLE,FOUR SEASONS HEALTHCARE,10/11/2017,631.10,NURSING LONG TERM,V001190113
ROCHDALE BOROUGH COUNCIL,10/11/2017,PHYSICAL DIS & OLDER PEOPLE,LIVABILITY,10/11/2017,"1,593.44",RESIDENTIAL LONG TERM,V001190114
ROCHDALE BOROUGH COUNCIL,10/11/2017,PHYSICAL DIS & OLDER PEOPLE,LIVABILITY,10/11/2017,"1,593.44",RESIDENTIAL LONG TERM,V001190115
ROCHDALE BOROUGH COUNCIL,10/11/2017,PHYSICAL DIS & OLDER PEOPLE,ORCHARD CARE HOMES,10/11/2017,900.00,RESIDENTIAL LONG TERM,V001190116
ROCHDALE BOROUGH COUNCIL,10/11/2017,LEARNING DIS & MENTAL HEALTH,CALTON SYSTEMS LIMITED,10/11/2017,900.00,RESIDENTIAL LONG TERM,V001190117
ROCHDALE BOROUGH COUNCIL,10/11/2017,PHYSICAL DIS & OLDER PEOPLE,ANTONI & RIENZIE LTD,10/11/2017,631.10,RESIDENTIAL LONG TERM,V001190118
ROCHDALE BOROUGH COUNCIL,10/11/2017,PHYSICAL DIS & OLDER PEOPLE,HURSTEAD HOUSE CARE HOME,10/11/2017,914.00,RESIDENTIAL LONG TERM,V001190119
ROCHDALE BOROUGH COUNCIL,10/11/2017,LEARNING DIS & MENTAL HEALTH,ROOKWOOD,10/11/2017,900.00,RESIDENTIAL LONG TERM,V001190120
ROCHDALE BOROUGH COUNCIL,10/11/2017,PHYSICAL DIS & OLDER PEOPLE,EAGLE CARE HOMES LTD,10/11/2017,628.10,RESIDENTIAL LONG TERM,V001190121
ROCHDALE BOROUGH COUNCIL,10/11/2017,PHYSICAL DIS & OLDER PEOPLE,PASSMONDS NURSING HOME,10/11/2017,900.00,RESIDENTIAL LONG TERM,V001190122
ROCHDALE BOROUGH COUNCIL,10/11/2017,PHYSICAL DIS & OLDER PEOPLE,STAMFORD HOUSE REST HOME LIMITED,10/11/2017,631.10,RESIDENTIAL LONG TERM,V001190123
ROCHDALE BOROUGH COUNCIL,10/11/2017,PHYSICAL DIS & OLDER PEOPLE,HC ONE OVAL LTD,10/11/2017,595.16,RESIDENTIAL LONG TERM,V001190124
ROCHDALE BOROUGH COUNCIL,10/11/2017,PHYSICAL DIS & OLDER PEOPLE,CLEGGSWORTH CARE HOME LIMITED,10/11/2017,900.00,RESIDENTIAL LONG TERM,V001190126
ROCHDALE BOROUGH COUNCIL,10/11/2017,PHYSICAL DIS & OLDER PEOPLE,ROSEMARY CARE HOME,10/11/2017,900.00,RESIDENTIAL LONG TERM,V001190127
ROCHDALE BOROUGH COUNCIL,10/11/2017,PHYSICAL DIS & OLDER PEOPLE,DRB HEALTHCARE LTD,10/11/2017,"1,078.70",NURSING LONG TERM,V001190128
ROCHDALE BOROUGH COUNCIL,10/11/2017,PHYSICAL DIS & OLDER PEOPLE,FIELDHOUSE CARE HOME,10/11/2017,900.00,RESIDENTIAL LONG TERM,V001190129
ROCHDALE BOROUGH COUNCIL,10/11/2017,PHYSICAL DIS & OLDER PEOPLE,ARCHMOOR CARE HOME,10/11/2017,900.00,RESIDENTIAL LONG TERM,V001190130
ROCHDALE BOROUGH COUNCIL,10/11/2017,PHYSICAL DIS & OLDER PEOPLE,BEECH HOUSE,10/11/2017,900.00,RESIDENTIAL LONG TERM,V001190132
ROCHDALE BOROUGH COUNCIL,10/11/2017,LEARNING DIS & MENTAL HEALTH,FERN BANK THERAPEUTIC COMMUNITY LTD,10/11/2017,"2,800.00",RESIDENTIAL LONG TERM,V001190133
ROCHDALE BOROUGH COUNCIL,10/11/2017,LEARNING DIS & MENTAL HEALTH,PENDLETON CARE LTD,10/11/2017,"2,319.00",RESIDENTIAL LONG TERM,V001190134
ROCHDALE BOROUGH COUNCIL,10/11/2017,PHYSICAL DIS & OLDER PEOPLE,DRB HEALTHCARE LTD,10/11/2017,586.26,NURSING LONG TERM,V001190135
ROCHDALE BOROUGH COUNCIL,10/11/2017,PHYSICAL DIS & OLDER PEOPLE,DRB HEALTHCARE LTD,10/11/2017,643.10,RESIDENTIAL LONG TERM,V001190136
ROCHDALE BOROUGH COUNCIL,10/11/2017,PHYSICAL DIS & OLDER PEOPLE,BRIARMEDE CARE LTD,10/11/2017,900.00,RESIDENTIAL LONG TERM,V001190137
ROCHDALE BOROUGH COUNCIL,10/11/2017,PHYSICAL DIS & OLDER PEOPLE,DRB HEALTHCARE LTD,10/11/2017,631.10,RESIDENTIAL LONG TERM,V001190138
ROCHDALE BOROUGH COUNCIL,10/11/2017,PHYSICAL DIS & OLDER PEOPLE,DRB HEALTHCARE LTD,10/11/2017,698.70,RESIDENTIAL LONG TERM,V001190139
ROCHDALE BOROUGH COUNCIL,10/11/2017,PHYSICAL DIS & OLDER PEOPLE,EAST AND WEST HEALTHCARE LIMITED,10/11/2017,"1,008.90",RESIDENTIAL LONG TERM,V001190140
ROCHDALE BOROUGH COUNCIL,10/11/2017,PHYSICAL DIS & OLDER PEOPLE,HORIZON  RESIDENTIAL HOMES LTD,10/11/2017,560.60,RESIDENTIAL LONG TERM,V001190142
ROCHDALE BOROUGH COUNCIL,10/11/2017,PHYSICAL DIS & OLDER PEOPLE,FIELDHOUSE CARE HOME,10/11/2017,900.00,RESIDENTIAL LONG TERM,V001190143
ROCHDALE BOROUGH COUNCIL,10/11/2017,PHYSICAL DIS & OLDER PEOPLE,HURSTEAD HOUSE CARE HOME,10/11/2017,900.00,NURSING LONG TERM,V001190144
ROCHDALE BOROUGH COUNCIL,10/11/2017,PHYSICAL DIS & OLDER PEOPLE,MONA CLIFFE CARE HOME,10/11/2017,900.00,RESIDENTIAL LONG TERM,V001190145
ROCHDALE BOROUGH COUNCIL,10/11/2017,PHYSICAL DIS & OLDER PEOPLE,BEECH HOUSE,10/11/2017,900.00,RESIDENTIAL LONG TERM,V001190146
ROCHDALE BOROUGH COUNCIL,10/11/2017,PHYSICAL DIS & OLDER PEOPLE,FOUR SEASONS HEALTHCARE,10/11/2017,632.46,RESIDENTIAL LONG TERM,V001190147
ROCHDALE BOROUGH COUNCIL,10/11/2017,PHYSICAL DIS & OLDER PEOPLE,HC ONE LTD,10/11/2017,914.00,RESIDENTIAL LONG TERM,V001190148
ROCHDALE BOROUGH COUNCIL,10/11/2017,PHYSICAL DIS & OLDER PEOPLE,LEONARD CHESHIRE FOUNDATION WALES & WEST,10/11/2017,892.54,RESIDENTIAL LONG TERM,V001190149
ROCHDALE BOROUGH COUNCIL,10/11/2017,PHYSICAL DIS & OLDER PEOPLE,LEONARD CHESHIRE FOUNDATION WALES & WEST,10/11/2017,892.54,RESIDENTIAL LONG TERM,V001190150
ROCHDALE BOROUGH COUNCIL,10/11/2017,PHYSICAL DIS & OLDER PEOPLE,MT CARE PROPERTY LTD,10/11/2017,900.00,RESIDENTIAL LONG TERM,V001190153
ROCHDALE BOROUGH COUNCIL,10/11/2017,PHYSICAL DIS & OLDER PEOPLE,MT CARE PROPERTY LTD,10/11/2017,900.00,RESIDENTIAL LONG TERM,V001190154
ROCHDALE BOROUGH COUNCIL,10/11/2017,PHYSICAL DIS & OLDER PEOPLE,MT CARE PROPERTY LTD,10/11/2017,-771.43,SHORT TERM CARE - RESIDENTIAL,V001190155
ROCHDALE BOROUGH COUNCIL,10/11/2017,LEARNING DIS & MENTAL HEALTH,PASSMONDS NURSING HOME,10/11/2017,900.00,SHORT TERM CARE - RESIDENTIAL,V001190158
ROCHDALE BOROUGH COUNCIL,10/11/2017,LEARNING DIS & MENTAL HEALTH,PASSMONDS NURSING HOME,10/11/2017,900.00,SHORT TERM CARE - RESIDENTIAL,V001190159
ROCHDALE BOROUGH COUNCIL,10/11/2017,LEARNING DIS & MENTAL HEALTH,PASSMONDS NURSING HOME,10/11/2017,900.00,SHORT TERM CARE - RESIDENTIAL,V001190160
ROCHDALE BOROUGH COUNCIL,10/11/2017,LEARNING DIS & MENTAL HEALTH,DENTAK CARE AND SERVICES LTD,10/11/2017,900.00,RESIDENTIAL LONG TERM,V001190161
ROCHDALE BOROUGH COUNCIL,10/11/2017,PHYSICAL DIS & OLDER PEOPLE,DRB HEALTHCARE LTD,10/11/2017,707.14,ASSESSMENT CARE,V001190162
ROCHDALE BOROUGH COUNCIL,10/11/2017,PHYSICAL DIS & OLDER PEOPLE,DRB HEALTHCARE LTD,10/11/2017,900.00,ASSESSMENT CARE,V001190163
ROCHDALE BOROUGH COUNCIL,10/11/2017,LEARNING DIS & MENTAL HEALTH,HELME HALL LTD,10/11/2017,"4,489.52",RESIDENTIAL LONG TERM,V001190164
ROCHDALE BOROUGH COUNCIL,10/11/2017,LEARNING DIS & MENTAL HEALTH,HELME HALL LTD,10/11/2017,"5,713.94",RESIDENTIAL LONG TERM,V001190165
ROCHDALE BOROUGH COUNCIL,10/11/2017,LEARNING DIS & MENTAL HEALTH,THE REGARD PARTNERSHIP LIMITED,10/11/2017,"2,469.02",RESIDENTIAL LONG TERM,V001190166
ROCHDALE BOROUGH COUNCIL,10/11/2017,PHYSICAL DIS & OLDER PEOPLE,LITTLEBOROUGH CARE HOME LIMITED,10/11/2017,900.00,RESIDENTIAL LONG TERM,V001190167
ROCHDALE BOROUGH COUNCIL,10/11/2017,PHYSICAL DIS & OLDER PEOPLE,MT CARE PROPERTY LTD,10/11/2017,900.00,RESIDENTIAL LONG TERM,V001190169
ROCHDALE BOROUGH COUNCIL,10/11/2017,LEARNING DIS & MENTAL HEALTH,ANTONI & RIENZIE LTD,10/11/2017,554.72,RESIDENTIAL LONG TERM,V001190170
ROCHDALE BOROUGH COUNCIL,10/11/2017,PHYSICAL DIS & OLDER PEOPLE,FOUR SEASONS HEALTHCARE,10/11/2017,548.88,RESIDENTIAL LONG TERM,V001190171
ROCHDALE BOROUGH COUNCIL,10/11/2017,PHYSICAL DIS & OLDER PEOPLE,ORCHARD CARE HOMES,10/11/2017,900.00,RESIDENTIAL LONG TERM,V001190172
ROCHDALE BOROUGH COUNCIL,10/11/2017,LEARNING DIS & MENTAL HEALTH,AS CARE SOLUTIONS LTD,10/11/2017,"4,007.00",RESIDENTIAL LONG TERM,V001190173
ROCHDALE BOROUGH COUNCIL,10/11/2017,PHYSICAL DIS & OLDER PEOPLE,EAGLE CARE HOMES LTD,10/11/2017,631.10,RESIDENTIAL LONG TERM,V001190175
ROCHDALE BOROUGH COUNCIL,10/11/2017,PHYSICAL DIS & OLDER PEOPLE,EAGLE CARE HOMES LTD,10/11/2017,631.10,RESIDENTIAL LONG TERM,V001190176
ROCHDALE BOROUGH COUNCIL,10/11/2017,LEARNING DIS & MENTAL HEALTH,FOUR SEASONS HEALTHCARE,10/11/2017,652.60,RESIDENTIAL LONG TERM,V001190177
ROCHDALE BOROUGH COUNCIL,10/11/2017,PHYSICAL DIS & OLDER PEOPLE,MONA CLIFFE CARE HOME,10/11/2017,900.00,RESIDENTIAL LONG TERM,V001190178
ROCHDALE BOROUGH COUNCIL,10/11/2017,PHYSICAL DIS & OLDER PEOPLE,FOUR SEASONS,10/11/2017,900.00,RESIDENTIAL LONG TERM,V001190179
ROCHDALE BOROUGH COUNCIL,10/11/2017,PHYSICAL DIS & OLDER PEOPLE,HC ONE OVAL LTD,10/11/2017,631.10,RESIDENTIAL LONG TERM,V001190180
ROCHDALE BOROUGH COUNCIL,10/11/2017,LEARNING DIS & MENTAL HEALTH,FERN BANK THERAPEUTIC COMMUNITY LTD,10/11/2017,"1,433.00",RESIDENTIAL LONG TERM,V001190181
ROCHDALE BOROUGH COUNCIL,10/11/2017,PHYSICAL DIS & OLDER PEOPLE,BRIARMEDE CARE LTD,10/11/2017,900.00,RESIDENTIAL LONG TERM,V001190182
ROCHDALE BOROUGH COUNCIL,10/11/2017,PHYSICAL DIS & OLDER PEOPLE,BUPA CARE HOMES LIMITED,10/11/2017,615.80,RESIDENTIAL LONG TERM,V001190183
ROCHDALE BOROUGH COUNCIL,10/11/2017,LEARNING DIS & MENTAL HEALTH,HC ONE OVAL LTD,10/11/2017,914.00,RESIDENTIAL LONG TERM,V001190184
ROCHDALE BOROUGH COUNCIL,10/11/2017,PHYSICAL DIS & OLDER PEOPLE,LITTLEBOROUGH CARE HOME LIMITED,10/11/2017,900.00,RESIDENTIAL LONG TERM,V001190185
ROCHDALE BOROUGH COUNCIL,10/11/2017,PHYSICAL DIS & OLDER PEOPLE,EAGLE CARE HOMES LTD,10/11/2017,563.46,RESIDENTIAL LONG TERM,V001190186
ROCHDALE BOROUGH COUNCIL,10/11/2017,LEARNING DIS & MENTAL HEALTH,EAGLE CARE HOMES LTD,10/11/2017,900.00,RESIDENTIAL LONG TERM,V001190187
ROCHDALE BOROUGH COUNCIL,10/11/2017,PHYSICAL DIS & OLDER PEOPLE,BELVOIR CARE HOME LIMITED,10/11/2017,900.00,RESIDENTIAL LONG TERM,V001190188
ROCHDALE BOROUGH COUNCIL,10/11/2017,PHYSICAL DIS & OLDER PEOPLE,FOUR SEASONS HEALTHCARE,10/11/2017,914.00,RESIDENTIAL LONG TERM,V001190189
ROCHDALE BOROUGH COUNCIL,10/11/2017,PHYSICAL DIS & OLDER PEOPLE,LITTLEBOROUGH CARE HOME LIMITED,10/11/2017,900.00,RESIDENTIAL LONG TERM,V001190190
ROCHDALE BOROUGH COUNCIL,10/11/2017,LEARNING DIS & MENTAL HEALTH,CALTON SYSTEMS LIMITED,10/11/2017,900.00,RESIDENTIAL LONG TERM,V001190206
ROCHDALE BOROUGH COUNCIL,10/11/2017,PHYSICAL DIS & OLDER PEOPLE,EAGLE CARE HOMES LTD,10/11/2017,510.92,RESIDENTIAL LONG TERM,V001190207
ROCHDALE BOROUGH COUNCIL,10/11/2017,PHYSICAL DIS & OLDER PEOPLE,BUPA CARE HOMES LIMITED,10/11/2017,-653.10,RESIDENTIAL LONG TERM,V001190209
ROCHDALE BOROUGH COUNCIL,10/11/2017,PHYSICAL DIS & OLDER PEOPLE,BUPA CARE HOMES LIMITED,10/11/2017,-653.10,RESIDENTIAL LONG TERM,V001190210
ROCHDALE BOROUGH COUNCIL,10/11/2017,PHYSICAL DIS & OLDER PEOPLE,DENTAK CARE AND SERVICES LTD,10/11/2017,631.36,NURSING LONG TERM,V001190211
ROCHDALE BOROUGH COUNCIL,10/11/2017,PHYSICAL DIS & OLDER PEOPLE,EAGLE CARE HOMES LTD,10/11/2017,645.10,RESIDENTIAL LONG TERM,V001190212
ROCHDALE BOROUGH COUNCIL,10/11/2017,PHYSICAL DIS & OLDER PEOPLE,CALICO HOMES LTD,10/11/2017,802.48,RESIDENTIAL LONG TERM,V001190213
ROCHDALE BOROUGH COUNCIL,10/11/2017,PHYSICAL DIS & OLDER PEOPLE,EAST AND WEST HEALTHCARE LIMITED,10/11/2017,545.90,RESIDENTIAL LONG TERM,V001190214
ROCHDALE BOROUGH COUNCIL,10/11/2017,PHYSICAL DIS & OLDER PEOPLE,ELDERCARE LANCS LIMITED,10/11/2017,900.00,RESIDENTIAL LONG TERM,V001190215
ROCHDALE BOROUGH COUNCIL,10/11/2017,PHYSICAL DIS & OLDER PEOPLE,CHADDERTON TOTAL CARE UNIT LTD,10/11/2017,"1,268.10",NURSING LONG TERM,V001190216
ROCHDALE BOROUGH COUNCIL,10/11/2017,PHYSICAL DIS & OLDER PEOPLE,HORIZON  RESIDENTIAL HOMES LTD,10/11/2017,627.44,RESIDENTIAL LONG TERM,V001190217
ROCHDALE BOROUGH COUNCIL,10/11/2017,PHYSICAL DIS & OLDER PEOPLE,STAMFORD HOUSE REST HOME LIMITED,10/11/2017,643.10,RESIDENTIAL LONG TERM,V001190218
ROCHDALE BOROUGH COUNCIL,10/11/2017,LEARNING DIS & MENTAL HEALTH,FERN BANK THERAPEUTIC COMMUNITY LTD,10/11/2017,846.70,RESIDENTIAL LONG TERM,V001190219
ROCHDALE BOROUGH COUNCIL,10/11/2017,PHYSICAL DIS & OLDER PEOPLE,QUALITY RESPITE CARE,10/11/2017,"1,740.50",RESIDENTIAL LONG TERM,V001190220
ROCHDALE BOROUGH COUNCIL,10/11/2017,PHYSICAL DIS & OLDER PEOPLE,CIC GROUP EACHSTEP BLACKLEY,10/11/2017,582.88,NURSING LONG TERM,V001190221
ROCHDALE BOROUGH COUNCIL,10/11/2017,PHYSICAL DIS & OLDER PEOPLE,ROSEMARY CARE HOME,10/11/2017,900.00,RESIDENTIAL LONG TERM,V001190222
ROCHDALE BOROUGH COUNCIL,10/11/2017,PHYSICAL DIS & OLDER PEOPLE,BELVOIR CARE HOME LIMITED,10/11/2017,900.00,SELF - FUNDING DEFERRED PAYMENTS,V001190223
ROCHDALE BOROUGH COUNCIL,10/11/2017,PHYSICAL DIS & OLDER PEOPLE,EAGLE CARE HOMES LTD,10/11/2017,738.92,RESIDENTIAL LONG TERM,V001190224
ROCHDALE BOROUGH COUNCIL,10/11/2017,PHYSICAL DIS & OLDER PEOPLE,BEECH HOUSE,10/11/2017,900.00,RESIDENTIAL LONG TERM,V001190225
ROCHDALE BOROUGH COUNCIL,10/11/2017,PHYSICAL DIS & OLDER PEOPLE,DENTAK CARE AND SERVICES LTD,10/11/2017,620.12,NURSING LONG TERM,V001190230
ROCHDALE BOROUGH COUNCIL,10/11/2017,PHYSICAL DIS & OLDER PEOPLE,BRIARMEDE CARE LTD,10/11/2017,707.14,ASSESSMENT CARE,V001190232
ROCHDALE BOROUGH COUNCIL,10/11/2017,PHYSICAL DIS & OLDER PEOPLE,EAST AND WEST HEALTHCARE LIMITED,10/11/2017,900.00,SHORT TERM CARE - NURSING,V001190233
ROCHDALE BOROUGH COUNCIL,10/11/2017,PHYSICAL DIS & OLDER PEOPLE,EAGLE CARE HOMES LTD,10/11/2017,645.10,RESIDENTIAL LONG TERM,V001190234
ROCHDALE BOROUGH COUNCIL,10/11/2017,PHYSICAL DIS & OLDER PEOPLE,BUPA CARE HOMES LIMITED,10/11/2017,631.10,RESIDENTIAL LONG TERM,V001190235
ROCHDALE BOROUGH COUNCIL,10/11/2017,PHYSICAL DIS & OLDER PEOPLE,HURSTEAD HOUSE CARE HOME,10/11/2017,900.00,RESIDENTIAL LONG TERM,V001190236
ROCHDALE BOROUGH COUNCIL,10/11/2017,PHYSICAL DIS & OLDER PEOPLE,CARE WORLDWIDE OLDHAM LTD,10/11/2017,598.76,RESIDENTIAL LONG TERM,V001190237
ROCHDALE BOROUGH COUNCIL,10/11/2017,PHYSICAL DIS & OLDER PEOPLE,LILY CARE LIMITED,10/11/2017,631.08,RESIDENTIAL LONG TERM,V001190238
ROCHDALE BOROUGH COUNCIL,10/11/2017,PHYSICAL DIS & OLDER PEOPLE,FOUR SEASONS HEALTHCARE,10/11/2017,521.68,RESIDENTIAL LONG TERM,V001190239
ROCHDALE BOROUGH COUNCIL,10/11/2017,PHYSICAL DIS & OLDER PEOPLE,HORIZON  RESIDENTIAL HOMES LTD,10/11/2017,631.10,RESIDENTIAL LONG TERM,V001190240
ROCHDALE BOROUGH COUNCIL,10/11/2017,PHYSICAL DIS & OLDER PEOPLE,ELDERCARE LANCS LIMITED,10/11/2017,900.00,RESIDENTIAL LONG TERM,V001190241
ROCHDALE BOROUGH COUNCIL,10/11/2017,PHYSICAL DIS & OLDER PEOPLE,ROSEMARY CARE HOME,10/11/2017,900.00,RESIDENTIAL LONG TERM,V001190242
ROCHDALE BOROUGH COUNCIL,10/11/2017,PHYSICAL DIS & OLDER PEOPLE,EAGLE CARE HOMES LTD,10/11/2017,585.18,RESIDENTIAL LONG TERM,V001190243
ROCHDALE BOROUGH COUNCIL,10/11/2017,LEARNING DIS & MENTAL HEALTH,THE REGARD PARTNERSHIP LIMITED,10/11/2017,"2,992.32",RESIDENTIAL LONG TERM,V001190244
ROCHDALE BOROUGH COUNCIL,10/11/2017,PHYSICAL DIS & OLDER PEOPLE,HENSHAWS SOCIETY FOR BLIND PEOPLE,10/11/2017,"1,203.50",RESIDENTIAL LONG TERM,V001190245
ROCHDALE BOROUGH COUNCIL,10/11/2017,PHYSICAL DIS & OLDER PEOPLE,HC ONE OVAL LTD,10/11/2017,639.42,NURSING LONG TERM,V001190246
ROCHDALE BOROUGH COUNCIL,10/11/2017,PHYSICAL DIS & OLDER PEOPLE,PENDLE RESIDENTIAL CARE,10/11/2017,"1,794.70",RESIDENTIAL LONG TERM,V001190247
ROCHDALE BOROUGH COUNCIL,10/11/2017,PHYSICAL DIS & OLDER PEOPLE,HC ONE LTD,10/11/2017,914.00,RESIDENTIAL LONG TERM,V001190249
ROCHDALE BOROUGH COUNCIL,10/11/2017,LEARNING DIS & MENTAL HEALTH,IMAP CENTRE LTD,10/11/2017,"6,418.00",RESIDENTIAL LONG TERM,V001190250
ROCHDALE BOROUGH COUNCIL,10/11/2017,PHYSICAL DIS & OLDER PEOPLE,HC ONE LTD,10/11/2017,707.14,SHORT TERM CARE - RESIDENTIAL,V001190251
ROCHDALE BOROUGH COUNCIL,10/11/2017,PHYSICAL DIS & OLDER PEOPLE,ELDERCARE LANCS LIMITED,10/11/2017,900.00,RESIDENTIAL LONG TERM,V001190252
ROCHDALE BOROUGH COUNCIL,10/11/2017,PHYSICAL DIS & OLDER PEOPLE,HALF ACRE HOUSE,10/11/2017,595.04,RESIDENTIAL LONG TERM,V001190253
ROCHDALE BOROUGH COUNCIL,10/11/2017,PHYSICAL DIS & OLDER PEOPLE,STANSFIELD HALL REST HOME,10/11/2017,900.00,RESIDENTIAL LONG TERM,V001190254
ROCHDALE BOROUGH COUNCIL,10/11/2017,PHYSICAL DIS & OLDER PEOPLE,PASSMONDS NURSING HOME,10/11/2017,900.00,RESIDENTIAL LONG TERM,V001190255
ROCHDALE BOROUGH COUNCIL,10/11/2017,LEARNING DIS & MENTAL HEALTH,PENDLE RESIDENTIAL CARE,10/11/2017,"2,098.70",RESIDENTIAL LONG TERM,V001190256
ROCHDALE BOROUGH COUNCIL,10/11/2017,PHYSICAL DIS & OLDER PEOPLE,HC ONE OVAL LTD,10/11/2017,625.40,NURSING LONG TERM,V001190257
ROCHDALE BOROUGH COUNCIL,10/11/2017,PHYSICAL DIS & OLDER PEOPLE,DENTAK CARE AND SERVICES LTD,10/11/2017,900.00,NURSING LONG TERM,V001190258
ROCHDALE BOROUGH COUNCIL,10/11/2017,PHYSICAL DIS & OLDER PEOPLE,WATERSIDE LODGE R H,10/11/2017,576.70,NURSING LONG TERM,V001190259
ROCHDALE BOROUGH COUNCIL,10/11/2017,PHYSICAL DIS & OLDER PEOPLE,PASSMONDS NURSING HOME,10/11/2017,900.00,RESIDENTIAL LONG TERM,V001190260
ROCHDALE BOROUGH COUNCIL,10/11/2017,LEARNING DIS & MENTAL HEALTH,ARCHMOOR CARE HOME,10/11/2017,900.00,RESIDENTIAL LONG TERM,V001190261
ROCHDALE BOROUGH COUNCIL,10/11/2017,PHYSICAL DIS & OLDER PEOPLE,ASHBOURNE NURSING HOME,10/11/2017,900.00,NURSING LONG TERM,V001190262
ROCHDALE BOROUGH COUNCIL,10/11/2017,PHYSICAL DIS & OLDER PEOPLE,BEECH HOUSE,10/11/2017,900.00,RESIDENTIAL LONG TERM,V001190263
ROCHDALE BOROUGH COUNCIL,10/11/2017,LEARNING DIS & MENTAL HEALTH,STAMFORD HOUSE REST HOME LIMITED,10/11/2017,631.10,RESIDENTIAL LONG TERM,V001190264
ROCHDALE BOROUGH COUNCIL,10/11/2017,PHYSICAL DIS & OLDER PEOPLE,LEIGHTON HOUSE RETIREMENT HOME LIMITED,10/11/2017,900.00,RESIDENTIAL LONG TERM,V001190265
ROCHDALE BOROUGH COUNCIL,10/11/2017,PHYSICAL DIS & OLDER PEOPLE,CLEGGSWORTH CARE HOME LIMITED,10/11/2017,900.00,RESIDENTIAL LONG TERM,V001190266
ROCHDALE BOROUGH COUNCIL,10/11/2017,PHYSICAL DIS & OLDER PEOPLE,LITTLEBOROUGH CARE HOME LIMITED,10/11/2017,900.00,SHORT TERM CARE - RESIDENTIAL,V001190268
ROCHDALE BOROUGH COUNCIL,10/11/2017,PHYSICAL DIS & OLDER PEOPLE,FIELDHOUSE CARE HOME,10/11/2017,-900.00,RESIDENTIAL LONG TERM,V001190270
ROCHDALE BOROUGH COUNCIL,10/11/2017,PHYSICAL DIS & OLDER PEOPLE,EAGLE CARE HOMES LTD,10/11/2017,570.90,RESIDENTIAL LONG TERM,V001190271
ROCHDALE BOROUGH COUNCIL,10/11/2017,PHYSICAL DIS & OLDER PEOPLE,FOUR SEASONS,10/11/2017,900.00,RESIDENTIAL LONG TERM,V001190272
ROCHDALE BOROUGH COUNCIL,10/11/2017,PHYSICAL DIS & OLDER PEOPLE,BRIARMEDE CARE LTD,10/11/2017,771.43,RESIDENTIAL LONG TERM,V001190273
ROCHDALE BOROUGH COUNCIL,10/11/2017,PHYSICAL DIS & OLDER PEOPLE,BUPA CARE HOMES LIMITED,10/11/2017,599.00,RESIDENTIAL LONG TERM,V001190275
ROCHDALE BOROUGH COUNCIL,10/11/2017,PHYSICAL DIS & OLDER PEOPLE,BRIARMEDE CARE LTD,10/11/2017,900.00,RESIDENTIAL LONG TERM,V001190276
ROCHDALE BOROUGH COUNCIL,10/11/2017,PHYSICAL DIS & OLDER PEOPLE,MT CARE PROPERTY LTD,10/11/2017,900.00,RESIDENTIAL LONG TERM,V001190277
ROCHDALE BOROUGH COUNCIL,10/11/2017,PHYSICAL DIS & OLDER PEOPLE,HC ONE OVAL LTD,10/11/2017,645.10,RESIDENTIAL LONG TERM,V001190278
ROCHDALE BOROUGH COUNCIL,10/11/2017,LEARNING DIS & MENTAL HEALTH,ALMOND VILLAS LIMITED,10/11/2017,991.20,NURSING LONG TERM,V001190280
ROCHDALE BOROUGH COUNCIL,10/11/2017,PHYSICAL DIS & OLDER PEOPLE,BRIARMEDE CARE LTD,10/11/2017,900.00,RESIDENTIAL LONG TERM,V001190281
ROCHDALE BOROUGH COUNCIL,10/11/2017,PHYSICAL DIS & OLDER PEOPLE,HC ONE OVAL LTD,10/11/2017,613.64,RESIDENTIAL LONG TERM,V001190283
ROCHDALE BOROUGH COUNCIL,10/11/2017,LEARNING DIS & MENTAL HEALTH,EHC MOSTON GRANGE LTD,10/11/2017,925.00,NURSING LONG TERM,V001190284
ROCHDALE BOROUGH COUNCIL,10/11/2017,PHYSICAL DIS & OLDER PEOPLE,FOUR SEASONS HEALTHCARE,10/11/2017,631.10,NURSING LONG TERM,V001190285
ROCHDALE BOROUGH COUNCIL,10/11/2017,PHYSICAL DIS & OLDER PEOPLE,EAGLE CARE HOMES LTD,10/11/2017,617.10,RESIDENTIAL LONG TERM,V001190286
ROCHDALE BOROUGH COUNCIL,10/11/2017,PHYSICAL DIS & OLDER PEOPLE,QUALIA CARE LTD,10/11/2017,585.20,RESIDENTIAL LONG TERM,V001190287
ROCHDALE BOROUGH COUNCIL,10/11/2017,PHYSICAL DIS & OLDER PEOPLE,QUALIA CARE LTD,10/11/2017,585.20,RESIDENTIAL LONG TERM,V001190288
ROCHDALE BOROUGH COUNCIL,10/11/2017,PHYSICAL DIS & OLDER PEOPLE,ROSEMARY CARE HOME,10/11/2017,900.00,RESIDENTIAL LONG TERM,V001190289
ROCHDALE BOROUGH COUNCIL,10/11/2017,PHYSICAL DIS & OLDER PEOPLE,BUPA CARE HOMES LIMITED,10/11/2017,615.76,RESIDENTIAL LONG TERM,V001190290
ROCHDALE BOROUGH COUNCIL,10/11/2017,LEARNING DIS & MENTAL HEALTH,HC ONE LTD,10/11/2017,914.00,RESIDENTIAL LONG TERM,V001190291
ROCHDALE BOROUGH COUNCIL,10/11/2017,PHYSICAL DIS & OLDER PEOPLE,CEDAR COURT NURSING HOME,10/11/2017,986.38,NURSING LONG TERM,V001190292
ROCHDALE BOROUGH COUNCIL,10/11/2017,PHYSICAL DIS & OLDER PEOPLE,CHADDERTON TOTAL CARE UNIT LTD,10/11/2017,769.52,RESIDENTIAL LONG TERM,V001190293
ROCHDALE BOROUGH COUNCIL,10/11/2017,PHYSICAL DIS & OLDER PEOPLE,DENTAK CARE AND SERVICES LTD,10/11/2017,"1,711.94",NURSING LONG TERM,V001190294
ROCHDALE BOROUGH COUNCIL,10/11/2017,LEARNING DIS & MENTAL HEALTH,LEIGHTON HOUSE RETIREMENT HOME LIMITED,10/11/2017,900.00,RESIDENTIAL LONG TERM,V001190295
ROCHDALE BOROUGH COUNCIL,10/11/2017,PHYSICAL DIS & OLDER PEOPLE,QUALIA CARE LTD,10/11/2017,843.60,NURSING LONG TERM,V001190296
ROCHDALE BOROUGH COUNCIL,10/11/2017,PHYSICAL DIS & OLDER PEOPLE,QUALIA CARE LTD,10/11/2017,843.60,NURSING LONG TERM,V001190297
ROCHDALE BOROUGH COUNCIL,10/11/2017,PHYSICAL DIS & OLDER PEOPLE,EAST AND WEST HEALTHCARE LIMITED,10/11/2017,631.10,RESIDENTIAL LONG TERM,V001190298
ROCHDALE BOROUGH COUNCIL,10/11/2017,PHYSICAL DIS & OLDER PEOPLE,HC ONE LTD,10/11/2017,914.00,RESIDENTIAL LONG TERM,V001190299
ROCHDALE BOROUGH COUNCIL,10/11/2017,PHYSICAL DIS & OLDER PEOPLE,EAST AND WEST HEALTHCARE LIMITED,10/11/2017,914.00,ASSESSMENT CARE,V001190301
ROCHDALE BOROUGH COUNCIL,10/11/2017,PHYSICAL DIS & OLDER PEOPLE,EAST AND WEST HEALTHCARE LIMITED,10/11/2017,914.00,ASSESSMENT CARE,V001190302
ROCHDALE BOROUGH COUNCIL,10/11/2017,PHYSICAL DIS & OLDER PEOPLE,BUPA CARE HOMES LIMITED,10/11/2017,783.02,RESIDENTIAL LONG TERM,V001190303
ROCHDALE BOROUGH COUNCIL,10/11/2017,PHYSICAL DIS & OLDER PEOPLE,FOUR SEASONS,10/11/2017,-900.00,RESIDENTIAL LONG TERM,V001190304
ROCHDALE BOROUGH COUNCIL,10/11/2017,PHYSICAL DIS & OLDER PEOPLE,FOUR SEASONS HEALTHCARE,10/11/2017,623.82,RESIDENTIAL LONG TERM,V001190306
ROCHDALE BOROUGH COUNCIL,10/11/2017,PHYSICAL DIS & OLDER PEOPLE,EAST AND WEST HEALTHCARE LIMITED,10/11/2017,698.50,NURSING LONG TERM,V001190307
ROCHDALE BOROUGH COUNCIL,10/11/2017,PHYSICAL DIS & OLDER PEOPLE,EAST AND WEST HEALTHCARE LIMITED,10/11/2017,650.24,RESIDENTIAL LONG TERM,V001190308
ROCHDALE BOROUGH COUNCIL,10/11/2017,PHYSICAL DIS & OLDER PEOPLE,PASSMONDS NURSING HOME,10/11/2017,914.00,RESIDENTIAL LONG TERM,V001190310
ROCHDALE BOROUGH COUNCIL,10/11/2017,PHYSICAL DIS & OLDER PEOPLE,QUALIA CARE LTD,10/11/2017,697.80,NURSING LONG TERM,V001190311
ROCHDALE BOROUGH COUNCIL,10/11/2017,PHYSICAL DIS & OLDER PEOPLE,QUALIA CARE LTD,10/11/2017,697.80,NURSING LONG TERM,V001190312
ROCHDALE BOROUGH COUNCIL,10/11/2017,LEARNING DIS & MENTAL HEALTH,EAST AND WEST HEALTHCARE LIMITED,10/11/2017,971.70,NURSING LONG TERM,V001190313
ROCHDALE BOROUGH COUNCIL,10/11/2017,PHYSICAL DIS & OLDER PEOPLE,FIELDHOUSE CARE HOME,10/11/2017,900.00,RESIDENTIAL LONG TERM,V001190318
ROCHDALE BOROUGH COUNCIL,10/11/2017,PHYSICAL DIS & OLDER PEOPLE,FIELDHOUSE CARE HOME,10/11/2017,900.00,RESIDENTIAL LONG TERM,V001190319
ROCHDALE BOROUGH COUNCIL,10/11/2017,PHYSICAL DIS & OLDER PEOPLE,QUALIA CARE LTD,10/11/2017,560.98,RESIDENTIAL LONG TERM,V001190320
ROCHDALE BOROUGH COUNCIL,10/11/2017,PHYSICAL DIS & OLDER PEOPLE,QUALIA CARE LTD,10/11/2017,560.98,RESIDENTIAL LONG TERM,V001190321
ROCHDALE BOROUGH COUNCIL,10/11/2017,PHYSICAL DIS & OLDER PEOPLE,LILY CARE LIMITED,10/11/2017,596.30,RESIDENTIAL LONG TERM,V001190322
ROCHDALE BOROUGH COUNCIL,10/11/2017,PHYSICAL DIS & OLDER PEOPLE,EAGLE CARE HOMES LTD,10/11/2017,605.68,RESIDENTIAL LONG TERM,V001190323
ROCHDALE BOROUGH COUNCIL,10/11/2017,PHYSICAL DIS & OLDER PEOPLE,FIELDHOUSE CARE HOME,10/11/2017,900.00,RESIDENTIAL LONG TERM,V001190324
ROCHDALE BOROUGH COUNCIL,10/11/2017,PHYSICAL DIS & OLDER PEOPLE,MT CARE PROPERTY LTD,10/11/2017,900.00,RESIDENTIAL LONG TERM,V001190325
ROCHDALE BOROUGH COUNCIL,10/11/2017,PHYSICAL DIS & OLDER PEOPLE,CLEGGSWORTH CARE HOME LIMITED,10/11/2017,900.00,RESIDENTIAL LONG TERM,V001190326
ROCHDALE BOROUGH COUNCIL,10/11/2017,PHYSICAL DIS & OLDER PEOPLE,HC ONE LTD,10/11/2017,914.00,RESIDENTIAL LONG TERM,V001190332
ROCHDALE BOROUGH COUNCIL,10/11/2017,PHYSICAL DIS & OLDER PEOPLE,EAGLE CARE HOMES LTD,10/11/2017,645.10,RESIDENTIAL LONG TERM,V001190333
ROCHDALE BOROUGH COUNCIL,10/11/2017,PHYSICAL DIS & OLDER PEOPLE,HC ONE OVAL LTD,10/11/2017,539.86,NURSING LONG TERM,V001190334
ROCHDALE BOROUGH COUNCIL,10/11/2017,PHYSICAL DIS & OLDER PEOPLE,ELDERCARE LANCS LIMITED,10/11/2017,900.00,RESIDENTIAL LONG TERM,V001190335
ROCHDALE BOROUGH COUNCIL,10/11/2017,PHYSICAL DIS & OLDER PEOPLE,CLEGGSWORTH CARE HOME LIMITED,10/11/2017,900.00,RESIDENTIAL LONG TERM,V001190336
ROCHDALE BOROUGH COUNCIL,10/11/2017,LEARNING DIS & MENTAL HEALTH,FOUR SEASONS,10/11/2017,900.00,RESIDENTIAL LONG TERM,V001190337
ROCHDALE BOROUGH COUNCIL,10/11/2017,PHYSICAL DIS & OLDER PEOPLE,STAMFORD HOUSE REST HOME LIMITED,10/11/2017,738.50,RESIDENTIAL LONG TERM,V001190338
ROCHDALE BOROUGH COUNCIL,10/11/2017,PHYSICAL DIS & OLDER PEOPLE,AVERY HOMES MOSTON LIMITED,10/11/2017,615.80,RESIDENTIAL LONG TERM,V001190339
ROCHDALE BOROUGH COUNCIL,10/11/2017,PHYSICAL DIS & OLDER PEOPLE,FINBROOK LIMITED,10/11/2017,914.00,RESIDENTIAL LONG TERM,V001190340
ROCHDALE BOROUGH COUNCIL,10/11/2017,PHYSICAL DIS & OLDER PEOPLE,MONA CLIFFE CARE HOME,10/11/2017,900.00,RESIDENTIAL LONG TERM,V001190341
ROCHDALE BOROUGH COUNCIL,10/11/2017,PHYSICAL DIS & OLDER PEOPLE,PASSMONDS NURSING HOME,10/11/2017,"1,272.86",RESIDENTIAL LONG TERM,V001190342
ROCHDALE BOROUGH COUNCIL,10/11/2017,PHYSICAL DIS & OLDER PEOPLE,PASSMONDS NURSING HOME,10/11/2017,"5,940.00",RESIDENTIAL LONG TERM,V001190343
ROCHDALE BOROUGH COUNCIL,10/11/2017,PHYSICAL DIS & OLDER PEOPLE,PASSMONDS NURSING HOME,10/11/2017,"5,940.00",RESIDENTIAL LONG TERM,V001190344
ROCHDALE BOROUGH COUNCIL,10/11/2017,PHYSICAL DIS & OLDER PEOPLE,PASSMONDS NURSING HOME,10/11/2017,"5,940.00",RESIDENTIAL LONG TERM,V001190345
ROCHDALE BOROUGH COUNCIL,10/11/2017,PHYSICAL DIS & OLDER PEOPLE,STAMFORD HOUSE REST HOME LIMITED,10/11/2017,698.70,RESIDENTIAL LONG TERM,V001190346
ROCHDALE BOROUGH COUNCIL,10/11/2017,PHYSICAL DIS & OLDER PEOPLE,ELDERCARE LANCS LIMITED,10/11/2017,900.00,RESIDENTIAL LONG TERM,V001190347
ROCHDALE BOROUGH COUNCIL,10/11/2017,PHYSICAL DIS & OLDER PEOPLE,ARCHMOOR CARE HOME,10/11/2017,900.00,RESIDENTIAL LONG TERM,V001190348
ROCHDALE BOROUGH COUNCIL,10/11/2017,PHYSICAL DIS & OLDER PEOPLE,BELVOIR CARE HOME LIMITED,10/11/2017,900.00,RESIDENTIAL LONG TERM,V001190349
ROCHDALE BOROUGH COUNCIL,10/11/2017,LEARNING DIS & MENTAL HEALTH,CARR CROFT CARE HOME LIMITED,10/11/2017,936.00,RESIDENTIAL LONG TERM,V001190350
ROCHDALE BOROUGH COUNCIL,10/11/2017,LEARNING DIS & MENTAL HEALTH,CARR CROFT CARE HOME LIMITED,10/11/2017,936.00,RESIDENTIAL LONG TERM,V001190351
ROCHDALE BOROUGH COUNCIL,10/11/2017,PHYSICAL DIS & OLDER PEOPLE,EAST AND WEST HEALTHCARE LIMITED,10/11/2017,631.10,NURSING LONG TERM,V001190352
ROCHDALE BOROUGH COUNCIL,10/11/2017,PHYSICAL DIS & OLDER PEOPLE,PASSMONDS NURSING HOME,10/11/2017,914.00,RESIDENTIAL LONG TERM,V001190353
ROCHDALE BOROUGH COUNCIL,10/11/2017,PHYSICAL DIS & OLDER PEOPLE,HC ONE OVAL LTD,10/11/2017,623.68,RESIDENTIAL LONG TERM,V001190354
ROCHDALE BOROUGH COUNCIL,10/11/2017,PHYSICAL DIS & OLDER PEOPLE,ELDERCARE LANCS LIMITED,10/11/2017,900.00,RESIDENTIAL LONG TERM,V001190355
ROCHDALE BOROUGH COUNCIL,10/11/2017,PHYSICAL DIS & OLDER PEOPLE,BRIARMEDE CARE LTD,10/11/2017,900.00,RESIDENTIAL LONG TERM,V001190356
ROCHDALE BOROUGH COUNCIL,10/11/2017,LEARNING DIS & MENTAL HEALTH,EHC MOSTON GRANGE LTD,10/11/2017,"1,080.00",RESIDENTIAL LONG TERM,V001190357
ROCHDALE BOROUGH COUNCIL,10/11/2017,PHYSICAL DIS & OLDER PEOPLE,ORCHARD CARE HOMES,10/11/2017,900.00,RESIDENTIAL LONG TERM,V001190358
ROCHDALE BOROUGH COUNCIL,10/11/2017,LEARNING DIS & MENTAL HEALTH,ALMOND VILLAS LIMITED,10/11/2017,991.20,NURSING LONG TERM,V001190359
ROCHDALE BOROUGH COUNCIL,10/11/2017,LEARNING DIS & MENTAL HEALTH,CALTON SYSTEMS LIMITED,10/11/2017,"1,040.00",RESIDENTIAL LONG TERM,V001190360
ROCHDALE BOROUGH COUNCIL,10/11/2017,PHYSICAL DIS & OLDER PEOPLE,FOUR SEASONS HEALTHCARE,10/11/2017,611.62,NURSING LONG TERM,V001190361
ROCHDALE BOROUGH COUNCIL,10/11/2017,LEARNING DIS & MENTAL HEALTH,CHADDERTON TOTAL CARE UNIT LTD,10/11/2017,"1,050.00",NURSING LONG TERM,V001190362
ROCHDALE BOROUGH COUNCIL,10/11/2017,PHYSICAL DIS & OLDER PEOPLE,ATLANTIS MEDICARE LTD,10/11/2017,900.00,RESIDENTIAL LONG TERM,V001190363
ROCHDALE BOROUGH COUNCIL,10/11/2017,PHYSICAL DIS & OLDER PEOPLE,FINBROOK LIMITED,10/11/2017,900.00,RESIDENTIAL LONG TERM,V001190364
ROCHDALE BOROUGH COUNCIL,10/11/2017,PHYSICAL DIS & OLDER PEOPLE,HC ONE LTD,10/11/2017,900.00,RESIDENTIAL LONG TERM,V001190365
ROCHDALE BOROUGH COUNCIL,10/11/2017,LEARNING DIS & MENTAL HEALTH,BELVOIR CARE HOME LIMITED,10/11/2017,900.00,RESIDENTIAL LONG TERM,V001190366
ROCHDALE BOROUGH COUNCIL,10/11/2017,PHYSICAL DIS & OLDER PEOPLE,IDEAL CARE HOMES NUMBER ONE LIMITED,10/11/2017,523.49,SHORT TERM CARE - RESIDENTIAL,V001190367
ROCHDALE BOROUGH COUNCIL,10/11/2017,PHYSICAL DIS & OLDER PEOPLE,HC ONE OVAL LTD,10/11/2017,631.10,RESIDENTIAL LONG TERM,V001190368
ROCHDALE BOROUGH COUNCIL,10/11/2017,PHYSICAL DIS & OLDER PEOPLE,HC ONE OVAL LTD,10/11/2017,621.14,NURSING LONG TERM,V001190369
ROCHDALE BOROUGH COUNCIL,10/11/2017,PHYSICAL DIS & OLDER PEOPLE,BRIARMEDE CARE LTD,10/11/2017,900.00,RESIDENTIAL LONG TERM,V001190370
ROCHDALE BOROUGH COUNCIL,10/11/2017,PHYSICAL DIS & OLDER PEOPLE,ROSEMARY CARE HOME,10/11/2017,900.00,SELF - FUNDING DEFERRED PAYMENTS,V001190371
ROCHDALE BOROUGH COUNCIL,10/11/2017,PHYSICAL DIS & OLDER PEOPLE,BUPA CARE HOMES LIMITED,10/11/2017,625.10,NURSING LONG TERM,V001190372
ROCHDALE BOROUGH COUNCIL,10/11/2017,PHYSICAL DIS & OLDER PEOPLE,EAST AND WEST HEALTHCARE LIMITED,10/11/2017,604.40,NURSING LONG TERM,V001190373
ROCHDALE BOROUGH COUNCIL,10/11/2017,LEARNING DIS & MENTAL HEALTH,EAGLE CARE HOMES LTD,10/11/2017,628.94,RESIDENTIAL LONG TERM,V001190374
ROCHDALE BOROUGH COUNCIL,10/11/2017,PHYSICAL DIS & OLDER PEOPLE,CLEGGSWORTH CARE HOME LIMITED,10/11/2017,900.00,RESIDENTIAL LONG TERM,V001190375
ROCHDALE BOROUGH COUNCIL,10/11/2017,PHYSICAL DIS & OLDER PEOPLE,EAST AND WEST HEALTHCARE LIMITED,10/11/2017,770.50,NURSING LONG TERM,V001190376
ROCHDALE BOROUGH COUNCIL,10/11/2017,LEARNING DIS & MENTAL HEALTH,ALMOND VILLAS LIMITED,10/11/2017,991.20,NURSING LONG TERM,V001190377
ROCHDALE BOROUGH COUNCIL,10/11/2017,PHYSICAL DIS & OLDER PEOPLE,EAST AND WEST HEALTHCARE LIMITED,10/11/2017,639.10,NURSING LONG TERM,V001190378
ROCHDALE BOROUGH COUNCIL,10/11/2017,PHYSICAL DIS & OLDER PEOPLE,EAST AND WEST HEALTHCARE LIMITED,10/11/2017,631.10,RESIDENTIAL LONG TERM,V001190380
ROCHDALE BOROUGH COUNCIL,10/11/2017,PHYSICAL DIS & OLDER PEOPLE,BRIARMEDE CARE LTD,10/11/2017,900.00,RESIDENTIAL LONG TERM,V001190381
ROCHDALE BOROUGH COUNCIL,10/11/2017,PHYSICAL DIS & OLDER PEOPLE,QUALIA CARE LTD,10/11/2017,631.10,NURSING LONG TERM,V001190382
ROCHDALE BOROUGH COUNCIL,10/11/2017,PHYSICAL DIS & OLDER PEOPLE,QUALIA CARE LTD,10/11/2017,631.10,NURSING LONG TERM,V001190383
ROCHDALE BOROUGH COUNCIL,10/11/2017,LEARNING DIS & MENTAL HEALTH,ANTONI & RIENZIE LTD,10/11/2017,639.10,RESIDENTIAL LONG TERM,V001190384
ROCHDALE BOROUGH COUNCIL,10/11/2017,PHYSICAL DIS & OLDER PEOPLE,EAST AND WEST HEALTHCARE LIMITED,10/11/2017,631.10,NURSING LONG TERM,V001190385
ROCHDALE BOROUGH COUNCIL,10/11/2017,PHYSICAL DIS & OLDER PEOPLE,HC ONE LTD,10/11/2017,914.00,RESIDENTIAL LONG TERM,V001190387
ROCHDALE BOROUGH COUNCIL,10/11/2017,PHYSICAL DIS & OLDER PEOPLE,ELDERCARE LANCS LIMITED,10/11/2017,900.00,RESIDENTIAL LONG TERM,V001190388
